Workbook

Sheet Sumário
B1: Sumário
B3: *Clicar no botão para ser direcionado a página desejada
B4: DRE | E4: BP e DFC | H4: Incorporação | L4: Renda Recorrente | P4: H&G | T4: Aeroporto

Sheet Glossário
A3: Glossário
A5: ABL | B5: Área Bruta Locável -Correspondem as áreas disponíveis para locação em shoppings
A6: ABL Próprio | B6: ABL referente ao percentual que a JHSF detém dos shoppings de seu portfólio
A7: Amenities | B7: Facilidades/serviços oferecidos nos empreendimentos da Companhia. Ex: campo de golfe, clube, spa, piscina de ondas, entre outros.
A8: Ativo | B8: Bens e Direitos
A9: BP | B9: Balanço Patrimonial
A10: CDI | B10: Certificado de Depósito Interbancário
A11: CFO | B11: Catarina Fashion Outlet
A12: Circulante | B12: Referente as atividades de curto prazo
A13: CJS | B13: Cidade Jardim Shops
A14: Cluster | B14: Grandes áreas de terrenos onde são desenvolvidos projetos multi-uso
A15: Couvert | B15: Preço médio pago por refeição
A16: DF | B16: Demostração Financeira
A17: DRE | B17: Demostração do Resultado de Exercício
A18: EMAE | B18: Terreno para futuro empreendimento
A19: FBV | B19: Fazenda Boa Vista
A20: FC | B20: Fluxo de Caixa
A21: H&G | B21: Hotéis e Restaurantes
A22: Hospitalidade | B22: Serviços de hospedagem
A23: IGP-M | B23: Índice Geral de Preços Mercado
A24: INCC | B24: Índice de Nacional do Custo de Construção
A25: IPCA | B25: Índice de preços no consumidor
A26: Landbank | B26: Banco de terrenos que a JHSF possui para desenvolver empreendimentos futuros.
A27: Não Circulante | B27: Referente as atividades de longo prazo
A28: Passivo | B28: Obrigações com terceiros
A29: Patrimônio Liquido | B29: Obrigações com a empresa
A30: POC | B30: Percentage of Compliance, ou percentual de obra concluída
A31: Revpar | B31: Revenue per Available Room ou Receita por Apartamento Disponível, Índice equivalente à multiplicação da Diária Média de um determinado período pela Taxa de Ocupação.
A32: Santiago 3 | B32: Terreno para futuro empreendimento
A33: SAR | B33: Aluguel Mesma Área - Relação entre o aluguel faturado em uma mesma área no período atual comparado ao mesmo período do ano anterior
A34: SAS | B34: Vendas Mesma Área - Relação entre as vendas em uma mesma área no período atual comparado ao mesmo período do ano anterior
A35: SCJ | B35: Shopping Cidade Jardim
A36: SPN | B36: Shopping Ponta Negra
A37: SSR | B37: Aluguel Mesma loja - Relação entre o aluguel faturado em uma mesma área no período atual comparado ao mesmo período do ano anterior
A38: SSS | B38: Vendas Mesma Loja - Relação entre as vendas realizadas nas mesmas lojas no período atual comparado as vendas nestas mesmas lojas no período do ano anterior
A39: Taxa de Ocupação | B39: Área locada dívida pela ABL de cada shopping no fim do período apresentado
A40: TR | B40: Taxa Referencial
A41: UHS | B41: Unidade(s) Hoteleira(s)
A42: VGV | B42: Valor Geral de Vendas

Sheet DRE
A3: Demonstração de Resultados Consolidada (R$'Mil) | B3: 2T21 | C3: 1T21 | D3: 2020 | E3: 4T20 | F3: 3T20 | G3: 2T20 | H3: 1T20 | I3: 2019 ajustado¹ | J3: 2019 | K3: 4T19 | L3: 3T19 | M3: 2T19 | N3: 1T19 | O3: 2018 ajustado² | P3: 2018 | Q3: 4T18 | R3: 3T18 | S3: 2T18 | T3: 1T18 | U3: 2017 | V3: 4T17 | W3: 3T17 | X3: 2T17 | Y3: 1T17 | Z3: 2016 ¹ | AA3: 3T16 | AB3: 2T16 | AC3: 1T16 | AD3: 2015 ¹ | AE3: 4T15 ¹ | AF3: 3T15 ¹ | AG3: 2T15 ¹ | AH3: 1T15 ¹ | AI3: 2014 | AJ3: 4T14 | AK3: 3T14 | AL3: 2T14 | AM3: 1T14 | AN3: 2013
A4: Receita Bruta de Vendas e/ou Serviços | B4: 702290.1104 | C4: 412481 | D4: 1252449.516 | E4: 425404 | F4: 377410 | G4: 266210 | H4: 183425.4575 | I4: 701586 | J4: 703905.6199 | K4: 207372.8352 | L4: 201745.2404 | M4: 156339.0839 | N4: 138448.4604 | O4: 509552.2287 | P4: 540153.6796 | Q4: 154028 | R4: 150745 | S4: 135356.4941 | T4: 100331.2574 | U4: 401264.2482 | V4: 95427.62702 | W4: 89570.91029 | X4: 116469.2074 | Y4: 99796.49367 | Z4: 433964 | AA4: 110336.0511 | AB4: 106471 | AC4: 129703 | AD4: 686036.085 | AE4: 159311.5411 | AF4: 169729.8315 | AG4: 194755.1934 | AH4: 162238.519 | AI4: 635318.6467 | AJ4: 158847.6202 | AK4: 172512.0236 | AL4: 153704.1211 | AM4: 159981.6455 | AN4: 712812.3638
A5: Impostos sobre Receita | B5: -39932.07547 | C5: -27142 | D5: -81899 | E5: -30839 | F5: -21561 | G5: -13002 | H5: -16495.91401 | I5: -66896 | J5: -67116.62107 | K5: -20658.27224 | L5: -17249.29566 | M5: -15801.80895 | N5: -13407.24422 | O5: -53416.15357 | P5: -54459.63951 | Q5: -16833 | R5: -14552 | S5: -12694.65647 | T5: -10349.4748 | U5: -45379.95395 | V5: -11425.77267 | W5: -10012.4535 | X5: -12121.11185 | Y5: -11820.61593 | Z5: -48920 | AA5: -10744.13971 | AB5: -13524 | AC5: -11745 | AD5: -55074.78909 | AE5: -14202.48555 | AF5: -13202.22104 | AG5: -15544.45175 | AH5: -12124.63075 | AI5: -47793.4749 | AJ5: -12660.94972 | AK5: -12359.82209 | AL5: -10828.77849 | AM5: -11992.36414 | AN5: -41710.84035
A6: Receita Líquida de Vendas e/ou Serviços | B6: 662358.035 | C6: 385338 | D6: 1170550 | E6: 394564 | F6: 355848 | G6: 253207 | H6: 166929.5435 | I6: 634690 | J6: 636788.9988 | K6: 186714.563 | L6: 184495.9447 | M6: 140537.2749 | N6: 125041.2162 | O6: 456136.0752 | P6: 485694.0401 | Q6: 137195 | R6: 136193 | S6: 122661.8376 | T6: 89981.78262 | U6: 355884.2943 | V6: 84001.85434 | W6: 79558.4568 | X6: 104348.0955 | Y6: 87975.87774 | Z6: 385044 | AA6: 99591.91144 | AB6: 92947 | AC6: 117958 | AD6: 630961.2959 | AE6: 145109.0555 | AF6: 156527.6105 | AG6: 179210.7416 | AH6: 150113.8882 | AI6: 587525.1718 | AJ6: 146186.6704 | AK6: 160152.2016 | AL6: 142875.3426 | AM6: 147989.2814 | AN6: 671101.5235
A7: Custo de Bens e/ou Serviços Vendidos | B7: -180076.2065 | C7: -103208 | D7: -360120.8716 | E7: -111597 | F7: -90166 | G7: -70623 | H7: -87734.16563 | I7: -325936 | J7: -326444.5112 | K7: -87928.24121 | L7: -95220.56672 | M7: -72363.56119 | N7: -70932.14207 | O7: -240469.6113 | P7: -241924.8427 | Q7: -66522 | R7: -62218 | S7: -65839.6518 | T7: -47607.90698 | U7: -208644.2296 | V7: -53319.73233 | W7: -50206.04372 | X7: -53628.06765 | Y7: -51490.38588 | Z7: -233922 | AA7: -54828.40527 | AB7: -72777 | AC7: -66814 | AD7: -359039.983 | AE7: -101753.2682 | AF7: -82769.22667 | AG7: -90068.53117 | AH7: -83960.57011 | AI7: -299260.5949 | AJ7: -70657.31395 | AK7: -85839.46923 | AL7: -79882.87299 | AM7: -74048.37319 | AN7: -357262.4459
A8: Lucro Bruto | B8: 482281.8285 | C8: 282130 | D8: 810429 | E8: 282967 | F8: 265681 | G8: 182585 | H8: 79195.3779 | I8: 308753 | J8: 310354.4876 | K8: 98786.32179 | L8: 89275.37801 | M8: 68173.71371 | N8: 54109.07413 | O8: 215666.4638 | P8: 243769.1974 | Q8: 70673 | R8: 73975 | S8: 56822.18581 | T8: 42373.87564 | U8: 147240.0647 | V8: 30682.12201 | W8: 29352.41308 | X8: 50720.02786 | Y8: 36485.49186 | Z8: 151122 | AA8: 44763.50618 | AB8: 20170 | AC8: 51144 | AD8: 271921.3128 | AE8: 43355.78734 | AF8: 73758.38383 | AG8: 89142.21045 | AH8: 66153.3181 | AI8: 288264.5769 | AJ8: 75529.3565 | AK8: 74312.73232 | AL8: 62992.46965 | AM8: 73940.90822 | AN8: 313839.0776
A9: Despesas Gerais e Administrativas | B9: -46904.89493 | C9: -46615 | D9: -142392.3831 | E9: -47539 | F9: -45020 | G9: -18558 | H9: -31253.46504 | I9: -114502 | J9: -114663 | K9: -32231.73594 | L9: -18256.80019 | M9: -33219.44661 | N9: -30955.01725 | O9: -115217.1793 | P9: -114619.2195 | Q9: -47870 | R9: -22384 | S9: -20467.13576 | T9: -21844.09536 | U9: -102759 | V9: -37614.94559 | W9: -17266.91149 | X9: -19771.35998 | Y9: -28105.78294 | Z9: -100494 | AA9: -25590.755 | AB9: -22219 | AC9: -23699 | AD9: -81612.65651 | AE9: -21790.29561 | AF9: -7133.098016 | AG9: -18088.15248 | AH9: -23020.44521 | AI9: -69873.78407 | AJ9: -21545.56587 | AK9: -18847.89032 | AL9: -17449.59186 | AM9: -17302.09362 | AN9: -71794.45813
A10: Despesas com Vendas | B10: -11859.65285 | C10: -7990 | D10: -25863.46753 | E10: -8384.92601 | F10: -7810 | G10: -4362 | H10: -5305.742704 | I10: -28262 | J10: -28262.13101 | K10: -13540.79625 | L10: -6088.776248 | M10: -4828.75702 | N10: -3803.801501 | O10: -13273.88937 | P10: -13245.62183 | Q10: -4525 | R10: -5058 | S10: -2025.48116 | T10: -1637.664616 | U10: -10694 | V10: -2716.90905 | W10: -3083.104668 | X10: -3168.01346 | Y10: -1725.972822 | Z10: -19315 | AA10: -4364.91785 | AB10: -4201 | AC10: -3360 | AD10: -25310.30413 | AE10: -4932.68766 | AF10: -19255.40939 | AG10: -7601.95713 | AH10: -5642.561324 | AI10: -26578.46564 | AJ10: -9199.060482 | AK10: -6630.720856 | AL10: -6036.589332 | AM10: -4929.013385 | AN10: -28328.83251
A11: Outros Resultados Operacionais | B11: -14965.46864 | C11: -9563 | D11: -21598.70798 | E11: -13605.94447 | F11: -5579 | G11: 80732.67189 | H11: -8516.952465 | I11: 6048 | J11: 6254 | K11: -3595.246827 | L11: 13761.21498 | M11: 432.8830727 | N11: -4957.878031 | O11: 6218.446151 | P11: 6476.03054 | Q11: 7862 | R11: -5843 | S11: -549.7864299 | T11: 3978.550279 | U11: -270 | V11: 17124.14787 | W11: -5376.757825 | X11: -11083.85301 | Y11: -933.5370414 | Z11: -233709 | AA11: -2138.597525 | AB11: 113078 | AC11: -2940 | AD11: -20563.03729 | AE11: -29540.20623 | AF11: 1132.665436 | AG11: 9217.835353 | AH11: -1329.592556 | AI11: -74968.69161 | AJ11: -38333.29096 | AK11: -10389.29382 | AL11: -13360.81113 | AM11: -10253.40167 | AN11: -60712.6985
A12: Valor Justo de Propriedades para Investimentos | B12: -540.50973 | C12: 258 | D12: 195595.6834 | E12: -14744 | F12: 4847 | G12: 177332 | H12: 28160.42844 | I12: 434002 | J12: 437327.6828 | K12: 253950.1924 | L12: 70844.84922 | M12: 61781.37006 | N12: 50751.27119 | O12: 206205.3876 | P12: 206204.5372 | Q12: 174476 | R12: 16049 | S12: 18132.42297 | T12: -2452.05436 | U12: 155970.7312 | V12: 56309.56457 | W12: 10402.45667 | X12: 54420.59602 | Y12: 34838.11398 | Z12: 22600.2975 | AA12: -3717.058928 | AB12: -267 | AC12: 15597 | AD12: 313861.0988 | AE12: 246934.7722 | AF12: 25284.80936 | AG12: 1593 | AH12: 40048.51721 | AI12: 123514.0653 | AJ12: 78100 | AK12: 24811.013 | AL12: 20596.60327 | AM12: 0 | AN12: 389455
A13: Resultado Operacional | B13: 408011.3023 | C13: 218219 | D13: 816170.7358 | E13: 198693 | F13: 212118 | G13: 343100 | H13: 62279.64613 | I13: 606041 | J13: 611041.0395 | K13: 303368.7351 | L13: 149248.3837 | M13: 93240.27206 | N13: 65143.64853 | O13: 299499.2289 | P13: 328584.9239 | Q13: 200616 | R13: 56739 | S13: 51912.20543 | T13: 20418.61158 | U13: 189958 | V13: 64254.19376 | W13: 14028.09577 | X13: 71117.39743 | Y13: 40558.31304 | Z13: -179957 | AA13: 8952.176874 | AB13: 106561 | AC13: 36743 | AD13: 458296.4137 | AE13: 234027.3701 | AF13: 73787.35122 | AG13: 74262.93619 | AH13: 76209.23622 | AI13: 240357.7009 | AJ13: 84551.43919 | AK13: 63255.84032 | AL13: 46742.08059 | AM13: 41456.39955 | AN13: 542458.0885
A14: Despesas Financeiras | B14: -91084.07524 | C14: -46449 | D14: -145839.7729 | E14: -41283 | F14: -38080 | G14: -21418 | H14: -43637.55391 | J14: -158334.4618 | K14: -551.6634477 | L14: -40095.8197 | M14: -64741.0631 | N14: -52945.91551 | O14: -181016.6096 | P14: -181016.6096 | Q14: -59534 | R14: -44533 | S14: -41938.41983 | T14: -35010.24469 | U14: -153757.5206 | V14: -25921.69355 | W14: -34608.31535 | X14: -45267.5197 | Y14: -47959.86048 | Z14: -290900 | AA14: -96358.3247 | AB14: -68600 | AC14: -64724 | AD14: -270945.5104 | AE14: -59823.3023 | AF14: -85377.65612 | AG14: -55972.02846 | AH14: -69807.19426 | AI14: -214948.1487 | AJ14: -62265.1024 | AK14: -57330.87415 | AL14: -48710 | AM14: -47617 | AN14: -107453
A15: Receitas Financeiras | B15: 25007.36673 | C15: 35225 | D15: 80732.67189 | E15: 45342 | F15: 15740 | G15: 4188 | H15: 14042.37536 | J15: 19892.73303 | K15: -18066.87102 | L15: 15453.66168 | M15: 4161.600745 | N15: 18344.34163 | O15: 63538.23785 | P15: 63538.23785 | Q15: 29217 | R15: 15927 | S15: 10907.0521 | T15: 7519.010915 | U15: 4154 | V15: 1435.432718 | W15: -1420.799296 | X15: 833.5245029 | Y15: 3305.842075 | Z15: 22414.38703 | AA15: 8211.757878 | AB15: 2799 | AC15: 6783 | AD15: 59025.81414 | AE15: 4320.585148 | AF15: 22711.36946 | AG15: 15362.31578 | AH15: 16675.74361 | AI15: 83798.05007 | AJ15: 12087.85419 | AK15: 21818.5788 | AL15: 25637.4 | AM15: 24329 | AN15: 42888
A16: Lucro antes de Impostos | H16: - | J16: 472599.3107 | K16: 284750.2007 | L16: 124606.2257 | M16: 32660.8097 | N16: 34601.57389 | O16: 118482.6194 | P16: 211106.5521 | Q16: 170299 | R16: 28133 | S16: 19861.8377 | T16: -7072.622191 | U16: 40424.27538 | V16: 39837.12763 | W16: -22001.01888 | X16: 26683.40224 | Y16: -4095.705365 | Z16: -448442.613 | AA16: -79194.38994 | AB16: 40761 | AC16: -21198 | AD16: 246376.7174 | AE16: 178524.6529 | AF16: 11121.06456 | AG16: 33653.2235 | AH16: 23077.78557 | AI16: 109207.6022 | AJ16: 34374.19098 | AK16: 27743.54497 | AL16: 23669.48059 | AM16: 18168.39955 | AN16: 477893.0885
A17: Provisão para IR e Contribuição Social | B17: -20582.98281 | C17: -15443 | D17: -112209 | E17: -13591 | F17: -13770 | G17: -71177 | H17: -13670.3101 | I17: -145910 | J17: -145910.6256 | K17: -73795.48836 | L17: -30745.81803 | M17: -27696.99196 | N17: -13672.32727 | O17: -128346.7132 | P17: -15664.04566 | Q17: -89920 | R17: -90281 | S17: -13414.44645 | T17: -2612.543079 | U17: -67621.40971 | V17: -24030.98883 | W17: -7197.239634 | X17: -23049.68673 | Y17: -13343.49452 | Z17: 55312 | AA17: -1793.596422 | AB17: -5751 | AC17: -12853 | AD17: -109938.8828 | AE17: -82000.62528 | AF17: -2667.93359 | AG17: -7450.579 | AH17: -17819.74498 | AI17: -57729.69121 | AJ17: -30375.68321 | AK17: -13640.05305 | AL17: -10282.8822 | AM17: -4815 | AN17: -159817
A18: Resultado de Operações Descontinuadas | B18: - | C18: - | D18: - | E18: - | F18: - | G18: - | H18: - | I18: - | J18: 0 | K18: 0 | L18: - | M18: - | N18: - | O18: - | P18: - | Q18: - | R18: - | S18: - | T18: 0 | U18: 0 | V18: 0 | W18: 0 | X18: 0 | Y18: 0 | Z18: 134917 | AA18: - | AB18: - | AC18: - | AD18: -26696.64626 | AE18: -7877.677284 | AF18: -5174.913505 | AG18: -9423.31871 | AH18: -4220.736766 | AI18: -7877.677284 | AJ18: -1770.384724 | AK18: 0 | AL18: 0 | AM18: 0 | AN18: 0
A19: Lucro / Prejuízo do Período | B19: 321351.611 | C19: 191551 | D19: 638854 | E19: 189161.5452 | F19: 176008 | G19: 254692 | H19: 19014.15748 | I19: 321746 | J19: 326688.6851 | K19: 210954.7123 | L19: 93860.40767 | M19: 4963.817747 | N19: 16869.74738 | O19: -9864.093885 | P19: 195442.5065 | Q19: 80379 | R19: 118413 | S19: 6447.391244 | T19: -9685.16527 | U19: -27197.13433 | V19: 15806.13881 | W19: -29198.25851 | X19: 3633.71551 | Y19: -17439.19989 | Z19: -258229 | AA19: 109741.1883 | AB19: 47896 | AC19: -37205 | AD19: 109741.1883 | AE19: 88646.35035 | AF19: 3278.217464 | AG19: 16779.32579 | AH19: 1037.303821 | AI19: 43100.19809 | AJ19: 2228.123046 | AK19: 14103.49192 | AL19: 13386.59839 | AM19: 13353.39955 | AN19: 318076.0885
A20: Margem Líquida | B20: 0.4851629995 | C20: 0.497 | D20: 0.546 | E20: 0.479 | F20: =F19/F6 -> 0.4946156786 | G20: =G19/G6 -> 1.005864767 | H20: =H19/H6 -> 0.1139052865 | I20: 0.507 | J20: 0.5130250141 | K20: 1.129824631 | L20: 0.5087396789 | M20: 0.03532029314 | N20: 0.134913494 | O20: -0.02162533161 | P20: 0.4023984038 | Q20: 0.5858741208 | R20: 0.8694499717 | S20: 0.05256232394 | T20: -0.1076347344 | U20: -0.07642128289 | V20: 0.1881641653 | W20: -0.367003832 | X20: 0.03482301706 | Y20: -0.1982270633 | Z20: -0.6706480298 | AA20: 0.1739269731 | AB20: 0.52 | AC20: -0.315 | AD20: 0.1739269731 | AE20: 0.6108946821 | AF20: 0.02094338151 | AG20: 0.09362901822 | AH20: 0.006910112272 | AI20: 0.07335889618 | AJ20: 0.01524162935 | AK20: 0.08806305368 | AL20: 0.09369425223 | AM20: 0.09023220752 | AN20: 0.4739612076
A21: # total de ações JHSF3 | B21: 689024353 | C21: 689024353 | D21: 685530641 | E21: 689024353 | F21: 685530641 | G21: 682241829 | H21: 641241829 | I21: 638059981 | J21: 638059981 | K21: 638059981 | L21: 530059981 | M21: 530059981 | N21: 527233245 | O21: 526383839 | P21: 526383839 | Q21: 526383839 | R21: 526383839 | S21: 526383839 | T21: 526383839 | U21: 525661247 | V21: 525661247 | W21: 525661247 | X21: 525661247 | Y21: 525661247 | Z21: 525000000 | AA21: 525000000 | AB21: 525000000 | AC21: 525000000 | AD21: 525000000 | AE21: 525000000 | AF21: 525000000 | AG21: 432269894 | AH21: 432269894 | AI21: 432269894 | AJ21: 432269894 | AK21: 432269894 | AL21: 432043157 | AM21: 432043157 | AN21: 432043157
A22: Lucro por ação (não inclui ações em tesouraria) | B22: =B19*1000/686224353 -> 0.4682894299 | C22: =C19*1000/686224353 -> 0.2791375724 | D22: =D19*1000/686224353 -> 0.9309695834 | E22: =E19*1000/686224353 -> 0.2756555409 | F22: =F19*1000/F21 -> 0.2567470941 | G22: 0.3733163069 | H22: 0.02965208541 | I22: 0.5120030951 | J22: 0.5120030951 | K22: 0.3306189365 | L22: 0.1770750689 | M22: 9.364634051e-06 | N22: 0.03199674439 | O22: -0.01545950879 | P22: 0.3712927564 | Q22: 0.1527003567 | R22: 0.2249556146 | S22: 0.01224845971 | T22: -0.01839943507 | U22: -0.05173889931 | V22: 0.03006905854 | W22: -5.55457696e-05 | X22: 6.912656261e-06 | Y22: -3.317573815e-05 | Z22: -0.0004918647619 | AA22: 0.2090308349 | AB22: 0.09123047619 | AC22: -7.086666667e-05 | AD22: 0.0002090308349 | AE22: 0.0001688501911 | AF22: 6.244223741e-06 | AG22: 3.881678096e-05 | AH22: 2.399667049e-06 | AI22: 9.970668484e-05 | AJ22: 5.154471957e-06 | AK22: 3.262658843e-05 | AL22: 3.098440092e-05 | AM22: 3.090755943e-05 | AN22: 0.0007362136937
A24: Depreciação e Amortização | B24: 14343.4394 | C24: 13820 | D24: 21351 | E24: 7939 | F24: 4218 | G24: 3434 | H24: 5758.923596 | I24: 21308 | J24: 32657.09358 | K24: -8785.48122 | L24: -8615.885428 | M24: -8000.50727 | N24: -7255.219664 | O24: 20023.32911 | P24: 19986 | Q24: 5979 | R24: 5379 | S24: 4265.322722 | T24: 4362.406234 | U24: 13872 | V24: 3844.692153 | W24: 3510.878192 | X24: 3921.336238 | Y24: 2595.093416 | Z24: 17155 | AA24: 4698.501796 | AC24: 3644.82666 | AD24: 15757.3964 | AE24: 4016.672133 | AF24: 4930.31757 | AG24: 4922.083499 | AH24: 3840.08619 | AI24: 8298.01555 | AJ24: 2609.45127 | AK24: 2279.02696 | AL24: 2413.929007 | AM24: 3012.164794 | AN24: 11644.44217
A25: EBITDA | B25: 422354.7417 | C25: 232040 | D25: 837522 | E25: 206633 | F25: 216337 | G25: 346534 | H25: 68038.56972 | I25: 627349 | J25: 643698.133 | K25: 312154.2164 | L25: 157864.2692 | M25: 101240.7793 | N25: 73198.8682 | O25: 319522.558 | P25: 348570.9239 | Q25: 206595 | R25: 62118 | S25: 56177.52815 | T25: 24781.01782 | U25: 203830 | V25: 68098.88591 | W25: 17538.97396 | X25: 75038.73367 | Y25: 43153.40646 | Z25: -27917.38703 | AA25: 447357.1638 | AC25: 37233.27878 | AD25: 420660.5176 | AE25: 222288.6876 | AF25: 68367.84178 | AG25: 60338.38227 | AH25: 71607.84887 | AI25: 232400.3262 | AJ25: 83620.12101 | AK25: 65534.86728 | AL25: 49156.00959 | AM25: 44468.56435 | AN25: 554102.5306
A26: Margem EBITDA | B26: 0.637653232 | C26: =C25/C6 -> 0.602172638 | D26: =D25/D6 -> 0.7154944257 | E26: 0.5236995773 | F26: 0.6079477755 | G26: 1.368579858 | H26: 0.4075885447 | I26: 0.9884337236 | J26: 1.010849959 | K26: 1.671825761 | L26: 0.8556517022 | M26: 0.7203838227 | N26: 0.5853979226 | O26: 0.7004983281 | P26: 0.717675934 | Q26: 1.505849339 | R26: 0.4561027366 | S26: 0.4579870092 | T26: 0.2754003877 | U26: 0.5727423302 | V26: 0.8106831265 | W26: 0.2204539236 | X26: 0.7191193409 | Y26: 0.4905140769 | Z26: -0.07250440738 | AA26: 0.3467784493 | AC26: 0.2687046854 | AD26: 0.6666978154 | AE26: 1.531873299 | AF26: 0.4367781605 | AG26: 0.3366895406 | AH26: 0.4770234768 | AI26: 0.3955580753 | AJ26: 0.5720092041 | AK26: 0.4092036616 | AL26: 0.344048236 | AM26: 0.3004850346 | AN26: 0.8256612618
A27: PPI | B27: 540.50973 | C27: -258.1581 | D27: -195596 | E27: 14744 | F27: -4847 | G27: -177332.2316 | H27: -28160.42844 | I27: - | J27: -434003 | K27: -253950 | L27: -70845 | M27: -61781 | N27: -47426 | O27: - | P27: - | Q27: - | R27: - | S27: - | T27: - | U27: - | V27: - | W27: - | X27: - | Y27: - | Z27: - | AA27: - | AB27: - | AC27: - | AD27: - | AE27: - | AF27: - | AG27: - | AH27: - | AI27: - | AJ27: - | AK27: - | AL27: - | AM27: - | AN27: -
A28: Eventos não recorrentes (ajustes) | B28: 21466.57757 | C28: 9547 | D28: 53107 | E28: 18688 | F28: 17545 | G28: 2910.52156 | H28: 13964 | I28: 7867.369486 | J28: 20469 | K28: 18298 | L28: -15379 | M28: 11711 | N28: 5837 | O28: - | P28: - | Q28: - | R28: - | S28: - | T28: - | U28: - | V28: - | W28: - | X28: - | Y28: - | Z28: - | AA28: - | AB28: - | AC28: - | AD28: - | AE28: - | AF28: - | AG28: - | AH28: - | AI28: - | AJ28: - | AK28: - | AL28: - | AM28: - | AN28: -
A29: EBITDA Ajustado | B29: 444361.829 | C29: 231782 | D29: 695034 | E29: 240064.7467 | F29: 229035 | G29: 172112 | H29: 53842.4035 | I29: 201214 | J29: 226903.0037 | K29: 76607.73639 | L29: 71640.87325 | M29: 51170.05152 | N29: 27484.34253 | O29: 141556.9269 | P29: 184649.3082 | Q29: 49545.83602 | R29: 54854.58579 | S29: 45927.29124 | T29: 34321.59519 | U29: 72390.13146 | V29: 12822.41556 | W29: 14358.95434 | X29: 28501.86784 | Y29: 16706.89373 | Z29: - | AA29: - | AB29: - | AC29: - | AD29: - | AE29: - | AF29: - | AG29: - | AH29: - | AI29: - | AJ29: - | AK29: - | AL29: - | AM29: - | AN29: -
A30: Margem EBITDA Ajustado | B30: 0.6708785967 | C30: 0.602 | D30: 0.594 | E30: 0.608 | F30: 0.644 | G30: 0.679 | H30: 0.323 | I30: 0.317 | J30: 0.3563236867 | K30: 0.4097977717 | L30: 0.3883059509 | M30: 0.3641030577 | N30: 0.2198022649 | O30: 0.3103392488 | P30: 0.3804971715 | Q30: 0.3611344147 | R30: 0.4027709632 | S30: 0.3744220055 | T30: 0.3814282646 | U30: 0.2034091772 | V30: 0.1526444345 | W30: 0.1804830676 | X30: 0.2731421949 | Y30: 0.1899031207 | Z30: - | AD30: - | AE30: - | AF30: - | AG30: - | AH30: - | AI30: - | AJ30: - | AK30: - | AL30: - | AM30: - | AN30: -
A32: ¹ Os valores acima apresentados incluem os efeitos da venda dos ativos que a Companhia detinha no exterior.
A33: ² Ajustado para fins de comparação com o ano de 2019, considerando as vendas de participações minoritárias dos Shoppings do Portfólio da Companhia.
A35: OBS: As informações contidas nesta planilha são gerenciais e podem apresentar divergências com as demonstrações financeiras oficiais divulgadas na CVM (ITR/DFP)

Sheet DRE Incorporação
A3: INCORPORAÇÕES (R$'Mil) | B3: 2T21 | C3: 1T21 | D3: 2020 | E3: 4T20 | F3: 3T20 | G3: 2T20 | H3: 1T20 | I3: 2019 | J3: 4T19 | K3: 3T19 | L3: 2T19 | M3: 1T19 | N3: 2018 | O3: 4T18 | P3: 3T18 | Q3: 2T18 | R3: 1T18 | S3: 2017 | T3: 4T17 | U3: 3T17 | V3: 2T17 | W3: 1T17 | X3: 2016 ¹ | Y3: 3T16 | Z3: 2T16 | AA3: 1T16 | AB3: 2015 ¹ | AC3: 4T15 ¹ | AD3: 3T15 ¹ | AE3: 2T15 ¹ | AF3: 1T15 ¹ | AG3: 2014 | AH3: 4T14 | AI3: 3T14 | AJ3: 2T14 | AK3: 1T14 | AL3: 2013
A4: Receita Bruta de Vendas e/ou Serviços | B4: 581303.1551 | C4: 314286 | D4: 911624 | E4: 283725 | F4: 300709 | G4: 240823 | H4: 83677.38286 | I4: 265609.9182 | J4: 78452.33385 | K4: 93651.58849 | L4: 50066.69128 | M4: 43439.30457 | N4: 120465 | O4: 33564 | P4: 47303 | Q4: 32831.95839 | R4: 6765.18012 | S4: 18356.73362 | T4: -10361.97268 | U4: 889.77902 | V4: 21861.94323 | W4: 5966.98405 | X4: -46439.98318 | Y4: -2926.3423 | Z4: -13130.23897 | AA4: 8658 | AB4: 196806.3393 | AC4: 25890.8103 | AD4: 52758.73435 | AE4: 66648.24295 | AF4: 51508.5517 | AG4: 302331.599 | AH4: 48676.38406 | AI4: 95701.9816 | AJ4: 78065.54321 | AK4: 81636.1477 | AL4: 446856.9668
A5: Impostos sobre Receita | B5: -21590.33837 | C5: -13837 | D5: -34072 | E5: -11177 | F5: -10888 | G5: -9012 | H5: -2728.73504 | I5: -10092.12113 | J5: -3056.80865 | K5: -3050.69487 | L5: -2314.02165 | M5: -1670.59596 | N5: 4522 | O5: 1268 | P5: -1847 | Q5: -1196.859972 | R5: -211.06843 | S5: -1338.17933 | T5: -277.00987 | U5: -388.98443 | V5: -846.55936 | W5: 174.37433 | X5: 2548.95435 | Y5: 1345.26055 | Z5: -1700.020065 | AA5: -286 | AB5: -6323.33782 | AC5: -929.76238 | AD5: -1596.96604 | AE5: -2399.49928 | AF5: -1397.11012 | AG5: -11280.30638 | AH5: -1733.206301 | AI5: -3433.86868 | AJ5: -2701.13296 | AK5: -3420.86511 | AL5: -9325.25149
A6: Receita Líquida de Vendas e/ou Serviços | B6: 559712.8167 | C6: 300548 | D6: 877552 | E6: 272548 | F6: 289821 | G6: 231811 | H6: 80948.64782 | I6: 255517.7971 | J6: 75395.5252 | K6: 90600.89362 | L6: 47752.66963 | M6: 41768.70861 | N6: 115942 | O6: 32297 | P6: 45456 | Q6: 31635.09842 | R6: 6554.11169 | S6: 17018.55429 | T6: -10638.98255 | U6: 500.79459 | V6: 21015.38387 | W6: 6141.35838 | X6: -43891.02883 | Y6: -1581.08175 | Z6: -14830.25904 | AA6: 8372 | AB6: 190483.0015 | AC6: 24961.04792 | AD6: 51161.76831 | AE6: 64248.74367 | AF6: 50111.44158 | AG6: 291051.2926 | AH6: 46943.17776 | AI6: 92268.11292 | AJ6: 75364.41025 | AK6: 78215.28259 | AL6: 437531.7153
A7: Custo de Bens e/ou Serviços Vendidos | B7: -121554.7213 | C7: -51170 | D7: -178229 | E7: -46354 | F7: -50052 | G7: -49128 | H7: -32695.80604 | I7: -120759.7172 | J7: -29014.80938 | K7: -45353.90562 | L7: -23904.95025 | M7: -22485.96423 | N7: 51946 | O7: 18288 | P7: -12798 | Q7: -15064.48255 | R7: -5794.95788 | S7: -31147.91705 | T7: -4056.30336 | U7: -8237.31394 | V7: -11752.0645 | W7: -7102.23525 | X7: -23452.64526 | Y7: -3785.22178 | Z7: -20359.58924 | AA7: -13558 | AB7: -142922.7905 | AC7: -44556.59476 | AD7: -30270.70818 | AE7: -35063.48107 | AF7: -33032.00652 | AG7: -190062.2591 | AH7: -27442.01448 | AI7: -58618.68968 | AJ7: -55816.83047 | AK7: -48128.84841 | AL7: -262674
A8: Lucro bruto | B8: 438158.0954 | C8: 249378 | D8: 699322 | E8: 226193 | F8: 239769 | G8: 182684 | H8: 48252.84178 | I8: 134758.0799 | J8: 46380.71582 | K8: 45246.988 | L8: 23847.71938 | M8: 19282.74438 | N8: 63996 | O8: 14008 | P8: 32658 | Q8: 16570.61587 | R8: 759.15381 | S8: -14129.36276 | T8: -14695.28591 | U8: -7736.51935 | V8: 9263.31937 | W8: -960.87687 | X8: -67343.67409 | Y8: -5366.30353 | Z8: -35189.84828 | AA8: -5185 | AB8: 47560.21095 | AC8: -19595.54684 | AD8: 20891.06013 | AE8: 29185.2626 | AF8: 17079.43506 | AG8: 100989.0335 | AH8: 19501.16328 | AI8: 33649.42323 | AJ8: 19547.57978 | AK8: 30086.43418 | AL8: 174857.7153
A9: Despesas Gerais e Administrativas | B9: -9926.63833 | C9: -6687 | D9: -28935 | E9: -6100 | F9: -13130 | G9: -4940 | H9: -4305.04233 | I9: -14903.52323 | J9: -5754.51563 | K9: -1120.47747 | L9: -2748.39846 | M9: -5280.13167 | N9: 6282 | O9: 1840 | P9: -1425 | Q9: -1952.09316 | R9: -1267.082 | S9: -30291.86129 | T9: -22292.73425 | U9: -2184.97732 | V9: -2345.21737 | W9: -3468.93235 | X9: -8155.04191 | Y9: -1977.81421 | Z9: -1864.83325 | AA9: -2566 | AB9: -7350.93815 | AC9: -1591.85521 | AD9: -1503.62771 | AE9: -1738.93053 | AF9: -2516.5247 | AG9: -9483.18588 | AH9: -3059.09713 | AI9: -4214.504764 | AJ9: -3658.401576 | AK9: -3164.661326 | AL9: -9519.937149
A10: Despesas com Vendas | B10: -8042.07153 | C10: -5033 | D10: -14131 | E10: -3273 | F10: 3961 | G10: -3844 | H10: -3052.02306 | I10: -15801.88016 | J10: -6609.39282 | K10: -3188.58855 | L10: -3176.58444 | M10: -2827.31435 | N10: 9394 | O10: 2673 | P10: -4397 | Q10: -1268.58711 | R10: -1054.75703 | S10: -6236.85373 | T10: -1786.41458 | U10: -2188.38496 | V10: -1932.47109 | W10: -329.5831 | X10: -11277.78553 | Y10: -2840.3586 | Z10: -2711.05669 | AA10: -1965 | AB10: -15596.78004 | AC10: -3159.91178 | AD10: -4717.95046 | AE10: -4536.29689 | AF10: -3182.62091 | AG10: -14212.32637 | AH10: -3551.95037 | AI10: -4394.32839 | AJ10: -3652.16771 | AK10: -2613.8799 | AL10: -16511.73715
A11: Outros Resultados Operacionais | B11: -426.01219 | C11: -428 | D11: 10014 | E11: -1596 | F11: -3245 | G11: 425 | H11: -5763.08895 | I11: -0.37225 | J11: -1447.2758 | K11: 2509.89866 | L11: 282.0413 | M11: -1345.03641 | N11: 11671 | O11: 2667 | P11: 63 | Q11: 967.81764 | R11: 6364.13263 | S11: -4888.35415 | T11: -12360.15302 | U11: 8372.96045 | V11: -2869.62558 | W11: 1968.464 | X11: 2317.40991 | Y11: -4327.00813 | Z11: -311.69658 | AA11: -2742 | AB11: -10018.21362 | AC11: -24136.47726 | AD11: 1970.18522 | AE11: 10368.1984 | AF11: 1779.88002 | AG11: -48751.51772 | AH11: -30319.92824 | AI11: -6497.659894 | AJ11: -4754.27521 | AK11: -4931.225567 | AL11: -45022
A12: Valor Justo de Propriedades para Investimentos | B12: - | C12: - | D12: - | E12: - | F12: - | G12: - | H12: - | I12: 0 | J12: 0 | K12: 0 | L12: - | M12: - | N12: - | O12: - | P12: 0 | Q12: 0 | R12: 0 | S12: 0 | T12: 0 | U12: 0 | V12: 0 | W12: 0 | X12: 0 | Y12: - | Z12: - | AA12: - | AB12: 0 | AC12: 0 | AD12: 0 | AE12: 0 | AF12: 0 | AH12: 0 | AI12: 0 | AJ12: 0 | AK12: 0 | AL12: 0
A13: Resultado Operacional | B13: 419763.3734 | C13: 237229 | D13: 646241 | E13: 215223 | F13: 219432 | G13: 174325 | H13: 35132.68744 | I13: 104052.3043 | J13: 32569.53157 | K13: 43447.82064 | L13: 18204.77778 | M13: 9830.26195 | N13: 59991 | O13: 12162 | P13: 26899 | Q13: 14317.75324 | R13: 4801.44741 | S13: -48858.59344 | T13: -44446.74927 | U13: -3736.92118 | V13: 2116.00533 | W13: -2790.92832 | X13: -84459.09162 | Y13: -14511.48447 | Z13: 40077.4348 | AA13: -12358 | AB13: 14594.27914 | AC13: -48483.79109 | AD13: 16639.66718 | AE13: 33278.23358 | AF13: 13160.16947 | AG13: 28542.00357 | AH13: -17429.81246 | AI13: 18542.93019 | AJ13: 7482.735285 | AK13: 19376.66739 | AL13: 103804.041
A14: Eventos não recorrentes (ajustes) | B14: 2204.42913 | C14: 323 | D14: 14089 | E14: 274 | F14: 7811 | G14: - | H14: 6004 | I14: 7631 | J14: 6084 | K14: - | L14: 1547 | M14: - | N14: - | O14: - | P14: - | Q14: - | R14: - | S14: - | T14: - | U14: - | V14: - | W14: - | X14: - | Y14: - | Z14: - | AA14: - | AB14: - | AC14: - | AD14: - | AE14: - | AF14: - | AG14: - | AH14: - | AI14: - | AJ14: - | AK14: - | AL14: -
A15: EBITDA Ajustado | B15: 422438.0479 | C15: 237966 | D15: 661341 | E15: 215774 | F15: 227500 | G15: 174575 | H15: 41363.29985 | I15: 111917.4994 | J15: 38747.92771 | K15: 43520.97282 | L15: 19777.84352 | M15: 9867.72589 | N15: 61506.41503 | O15: 11470.61124 | P15: 26826.88168 | Q15: 16589.34118 | R15: 4926.94981 | S15: =SUM(T15:W15) -> -48858.59344 | T15: -45865.12992 | U15: -11499.54722 | V15: 5751.89962 | W15: 2754.18408 | X15: - | AB15: - | AC15: - | AD15: - | AE15: - | AF15: - | AG15: - | AH15: - | AI15: - | AJ15: - | AK15: - | AL15: -
A16: Margem EBITDA Ajustado | B16: 0.7547407087 | C16: 0.792 | D16: 0.754 | E16: 0.792 | F16: 0.785 | G16: 0.753 | H16: 51,1% | I16: =I15/I6 -> 0.4380027562 | J16: =J15/J6 -> 0.5139287459 | K16: 0.4803592005 | L16: 0.4141725201 | M16: 0.2362468513 | N16: 0.5304929623 | O16: 0.35516027 | P16: 0.5901725114 | Q16: 0.5243966988 | R16: 0.751734185 | S16: -2.870901524 | T16: 4.311044755 | U16: -22.96260273 | V16: 0.2736994792 | W16: 0.4484649665 | X16: - | AB16: - | AC16: - | AD16: - | AE16: - | AF16: - | AG16: - | AH16: - | AI16: - | AJ16: - | AK16: - | AL16: -
A18: ¹ Os valores acima apresentados incluem os efeitos da venda dos ativos que a Companhia detinha no exterior, transação concluída em 13 de Maio de 2016.
A20: OBS: As informações contidas nesta planilha são gerenciais e podem apresentar divergências com as demonstrações financeiras oficiais divulgadas na CVM (ITR/DFP)

Sheet DRE Shoppings, Varejo+Digital
A3: JHSF MALLS (Shoppings e Operações) + Varejo e Digital (R$'Mil) | B3: 2T21 | C3: 1T21 | D3: 2020 | E3: 4T20 | F3: 3T20 | G3: 2T20 | H3: 1T20 | I3: 2019¹ | J3: 2019 | K3: 4T19 | L3: 3T19 | M3: 2T19 | N3: 1T19 | O3: 2018¹ | P3: 2018 | Q3: 4T18 | R3: 3T18 | S3: 2T18 | T3: 1T18 | U3: 2017 | V3: 4T17 | W3: 3T17 | X3: 2T17 | Y3: 1T17 | Z3: 2016 | AA3: 4T16 | AB3: 3T16 | AC3: 2T16 | AD3: 1T16 | AE3: 2015 | AF3: 4T15 | AG3: 3T15 | AH3: 2T15 | AI3: 1T15 | AJ3: 2014 | AK3: 4T14 | AL3: 3T14 | AM3: 2T14 | AN3: 1T14 | AO3: 2013
A4: Receita Bruta de Vendas e/ou Serviços | B4: 62657.94823 | C4: 46001 | D4: 183133 | E4: 77276 | F4: 41602 | G4: 14782 | H4: 52159.54262 | I4: 222676 | J4: =SUM(K4:N4) -> 224994.8002 | K4: 68042.27333 | L4: 55792.49646 | M4: 54845.1974 | N4: 46314.83301 | O4: 175874.7704 | P4: 229744 | Q4: 68039.81975 | R4: 56791 | S4: 54255.71813 | T4: 50392.20586 | U4: 193224.3719 | V4: 53905.32628 | W4: 44808.75719 | X4: 47862.71388 | Y4: 46647.57456 | Z4: 286604 | AA4: 77842.3575 | AB4: 68554.71103 | AC4: 70825.62677 | AD4: 71964 | AE4: 294089.6363 | AF4: 78526.26423 | AG4: 71387.31969 | AH4: 77920.7888 | AI4: 66255.26364 | AJ4: 253162.9888 | AK4: 70865.13839 | AL4: 61969.27115 | AM4: 58662.66239 | AN4: 61665.91683 | AO4: 208170.0308
A5: Impostos sobre Receita | B5: -11928.17804 | C5: -7305 | D5: -29299 | E5: -11960 | F5: -6653 | G5: -2710 | H5: -8241.644222 | I5: -32797 | J5: =SUM(K5:N5) -> -33017.54553 | K5: -10943.7963 | L5: -8127.587072 | M5: -7651.193311 | N5: -6294.968846 | O5: -23513.53377 | P5: 30999 | Q5: -9786.031745 | R5: -7692 | S5: -7061.730507 | T5: -6458.91871 | U5: -26260.44671 | V5: -7486.754311 | W5: -5673.573757 | X5: -6586.115671 | Y5: -6514.002966 | Z5: -35180 | AA5: -9717.998495 | AB5: -8169.876776 | AC5: -7586.107005 | AD5: -7838 | AE5: -37324.18786 | AF5: -9915.352841 | AG5: -9029.41985 | AH5: -10265.12998 | AI5: -8114.28519 | AJ5: -31371.12354 | AK5: -8550.05718 | AL5: -7915.46951 | AM5: -7106.85696 | AN5: -7798.73989 | AO5: -28811.89946
A6: Receita Líquida de Vendas e/ou Serviços | B6: 50729.77019 | C6: 38695 | D6: 153833 | E6: 65316 | F6: 34949 | G6: 12072 | H6: 43917.8984 | I6: 189879 | J6: 191977.2547 | K6: 57098.47702 | L6: 47664.90939 | M6: 47194.00409 | N6: 40019.86417 | O6: 152361.2367 | P6: 198746 | Q6: 58519 | R6: 49099 | S6: 47193.98762 | T6: 43933.28715 | U6: 166963.9252 | V6: 46418.57197 | W6: 39135.18344 | X6: 41276.59821 | Y6: 40133.57159 | Z6: 251424 | AA6: 68124.35901 | AB6: 60384.83425 | AC6: 63239.51977 | AD6: 64126 | AE6: 256765.4485 | AF6: 68610.91139 | AG6: 62357.89984 | AH6: 67655.65882 | AI6: 58140.97845 | AJ6: 221791.8652 | AK6: 62315.08121 | AL6: 54053.80164 | AM6: 51555.80543 | AN6: 53867.17694 | AO6: 179358.1313
A7: Custo de Bens e/ou Serviços Vendidos | B7: -19400.72766 | C7: -15611 | D7: -45408 | E7: -18774 | F7: -8751 | G7: -4350 | H7: -13533.23882 | I7: -64265 | J7: -64669.16623 | K7: -19866.39195 | L7: -16304.85685 | M7: -14376.54382 | N7: -14121.37362 | O7: -42317.49379 | P7: 52125 | Q7: -13361 | R7: -14745 | S7: -13002.10966 | T7: -11013.92086 | U7: -32664.66359 | V7: -11105.80643 | W7: -7090.052437 | X7: -5449.391758 | Y7: -9019.412966 | Z7: -62569 | AA7: -16757.50673 | AB7: -16008.53863 | AC7: -16552.10933 | AD7: -16244 | AE7: -70960.87837 | AF7: -17199.0092 | AG7: -17606.72925 | AH7: -19386.24476 | AI7: -16768.89516 | AJ7: -54835.76308 | AK7: -14184.22546 | AL7: -15225.47259 | AM7: -12485.94342 | AN7: -12940.12162 | AO7: -52208.70739
A8: Lucro bruto | B8: 31329.04253 | C8: 23084 | D8: 108424 | E8: 46541 | F8: 26197 | G8: 7722 | H8: 30384.65958 | I8: 125613 | J8: 127308.0884 | K8: 37232.08507 | L8: 31360.05255 | M8: 32817.46027 | N8: 25898.49055 | O8: 110043.7429 | P8: 146621 | Q8: 45158 | R8: 34354 | S8: 34191.87796 | T8: 32919.36629 | U8: 134299.2616 | V8: 35312.76554 | W8: 32045.131 | X8: 35827.20645 | Y8: 31114.15862 | Z8: 188855 | AA8: 51366.85228 | AB8: 44376.29563 | AC8: 46687.41044 | AD8: 47882 | AE8: 185804.5701 | AF8: 51411.90219 | AG8: 44751.17058 | AH8: 48269.41406 | AI8: 41372.08329 | AJ8: 166956.1021 | AK8: 48130.85576 | AL8: 38828.32906 | AM8: 39069.86201 | AN8: 40927.05532 | AO8: 127149.424
A9: Despesas Gerais e Administrativas | B9: -17510.92623 | C9: -15883 | D9: -45345 | E9: -18770 | F9: -13803 | G9: -2676 | H9: -10380.76452 | I9: -30758 | J9: -30711.31807 | K9: -10601.93543 | L9: -5786.649728 | M9: -7461.74384 | N9: -6860.989076 | O9: -22395.26547 | P9: -34274 | Q9: -10230.54276 | R9: -9381 | S9: -6458.919185 | T9: -8151.149601 | U9: -28740.84631 | V9: -8364.863713 | W9: -6011.790752 | X9: -6221.392774 | Y9: -8142.799067 | Z9: -26246 | AA9: -5820.18337 | AB9: -8357.367168 | AC9: -5506.626485 | AD9: -6268 | AE9: -19536.84401 | AF9: -4000.929434 | AG9: -5033.981429 | AH9: -5147.670333 | AI9: -5354.262811 | AJ9: -13939.61429 | AK9: -3396.599447 | AL9: -4308.958752 | AM9: -2872.413159 | AN9: -3361.642931 | AO9: -12823.68632
A10: Despesas com Vendas | B10: -2736.04734 | C10: -1732 | D10: -9945 | E10: -4719 | F10: -3470 | G10: -518 | H10: -1237.459664 | I10: -12296 | J10: -12296.38743 | K10: -6767.540006 | L10: -2900.187698 | M10: -1652.17258 | N10: -976.4871508 | O10: -2397.070514 | P10: -3525 | Q10: -1574.418654 | R10: -652 | S10: -731.0722496 | T10: -566.9075856 | U10: -4301.251532 | V10: -817.1624922 | W10: -877.5357076 | X10: -1213.40637 | Y10: -1393.146962 | Z10: -6776 | AA10: -1702.119576 | AB10: -1305.29092 | AC10: -1296.874 | AD10: -1317 | AE10: -5372.09115 | AF10: -1442.95269 | AG10: -1104.462426 | AH10: -1552.444 | AI10: -1272.232034 | AJ10: -7571.733404 | AK10: -4409.480862 | AL10: -1085.701862 | AM10: -1006.17955 | AN10: -1070.37113 | AO10: -7352.064038
A11: Outros Resultados Operacionais | B11: -675.7998081 | C11: -1580 | D11: 1433 | E11: 299 | F11: 584 | G11: 1556 | H11: 327.4755252 | I11: -1164 | J11: -1164.448355 | K11: 1186.260778 | L11: -881.4886751 | M11: -25.5834373 | N11: -1443.637021 | O11: -11150.38788 | P11: -12294 | Q11: -3078.989208 | R11: -4530 | S11: -2696.12062 | T11: -2253.982041 | U11: -3025.270187 | V11: 918.8280165 | W11: -667.3063947 | X11: -1727.737157 | Y11: -1549.054651 | Z11: -31870 | AA11: 283.605516 | AB11: 1867.700815 | AC11: -9960.593765 | AD11: -2876 | AE11: -9579.23885 | AF11: -6465.843981 | AG11: -450.3022802 | AH11: -1504.430617 | AI11: -1158.661971 | AJ11: -9183.332016 | AK11: -3942.360273 | AL11: -708.6338886 | AM11: -2905.798528 | AN11: -1626.539327 | AO11: -1775.509832
A12: Valor Justo de Propriedades para Investimentos | B12: -540.50973 | C12: -258 | D12: 195595 | E12: -14744 | F12: 4847 | G12: 177332 | H12: 28160.42844 | I12: 434002 | J12: 437327.6828 | K12: 253950.1924 | L12: 70844.84922 | M12: 61781.37006 | N12: 50751.27119 | O12: 206272.9646 | P12: 206205 | Q12: 174476 | R12: -37384 | S12: 18132.42297 | T12: -2452.05436 | U12: 155970.7312 | V12: 56309.56457 | W12: 10402.45667 | X12: 54420.59602 | Y12: 34838.11398 | Z12: 19800 | AA12: 19632.858 | AB12: -3717.058928 | AC12: -266.85148 | AD12: 15597 | AE12: 313861.0988 | AF12: 246934.7722 | AG12: 25284.80936 | AH12: 1593 | AI12: 40048.51721 | AJ12: 123514.0653 | AK12: 78106.449 | AL12: 24811.013 | AM12: 20596.60327 | AN12: 0 | AO12: 388490.551
A13: Resultado Operacional | B13: 9865.759428 | C13: 4145 | D13: 250162 | E13: 8607 | F13: 13185 | G13: 183418 | H13: 47254.33936 | I13: 515396 | J13: 520463.6174 | K13: 274999.0628 | L13: 92636.57566 | M13: 85459.33047 | N13: 67368.64849 | O13: 280373.9837 | P13: 302733 | Q13: 204750.0494 | R13: -17593 | S13: 42438.18888 | T13: 19495.2727 | U13: 254202.6248 | V13: 83359.13193 | W13: 34890.95482 | X13: 81085.26617 | Y13: 54867.27192 | Z13: 123963 | AA13: 63761.01285 | AB13: 32864.27942 | AC13: 29656.46471 | AD13: 53017 | AE13: 465177.4949 | AF13: 286436.9483 | AG13: 63447.23381 | AH13: 41657.86911 | AI13: 73635.44368 | AJ13: 259775.4877 | AK13: 114488.8642 | AL13: 57536.04755 | AM13: 52882.07404 | AN13: 34868.50193 | AO13: 493688.7148
A14: Eventos não recorrentes (ajustes) | B14: 5315.901488 | C14: 1583 | D14: 5730 | E14: 989 | F14: 1945 | G14: - | H14: 2797 | I14: 5216.18332 | J14: 10422 | K14: 5216 | L14: 2636 | M14: 1295 | N14: 1272 | O14: - | P14: - | Q14: - | R14: - | S14: - | T14: - | U14: - | V14: - | W14: - | X14: - | Y14: - | Z14: - | AA14: - | AB14: - | AC14: - | AD14: - | AE14: - | AF14: - | AG14: - | AH14: - | AI14: - | AJ14: - | AK14: - | AL14: - | AM14: - | AN14: - | AO14: -
A15: EBITDA Ajustado | B15: 18013.31929 | C15: 7647 | D15: 61999 | E15: 25068 | F15: 10819 | G15: 5929 | H15: 22485.71316 | I15: 94240 | J15: 106850.4793 | K15: 31403.95822 | L15: 27698.53907 | M15: 28292.14167 | N15: 19455.8403 | O15: 86153.91693 | P15: 129294.5725 | Q15: 38484.59683 | R15: 29161.77133 | S15: 31739.84175 | T15: 29728.98649 | U15: =SUM(V15:Y15) -> 134054.3936 | V15: 56035.9126 | W15: 27680.06245 | X15: 27161.08479 | Y15: 23177.33373 | Z15: - | AE15: - | AF15: - | AG15: - | AH15: - | AI15: - | AJ15: - | AK15: - | AL15: - | AM15: - | AN15: - | AO15: -
A16: Margem EBITDA Ajustado | B16: 0.3550837945 | C16: 0.198 | D16: 0.403 | E16: 0.384 | F16: 0.31 | G16: 0.491 | H16: 51,2% | I16: 0.496 | J16: =J15/J6 -> 0.5565788481 | K16: 0.5499964248 | L16: 0.5811096554 | M16: 0.5994859351 | N16: 0.486154581 | O16: 0.5654582413 | P16: 0.6505518222 | Q16: 0.6576427627 | R16: 0.5939381928 | S16: 0.6725399431 | T16: 0.676684774 | U16: 0.8028943582 | V16: 1.207187344 | W16: =W15/W6 -> 0.7072935404 | X16: =X15/X6 -> 0.6580262416 | Y16: =Y15/Y6 -> 0.5775048871 | Z16: - | AE16: - | AF16: - | AG16: - | AH16: - | AI16: - | AJ16: - | AK16: - | AL16: - | AM16: - | AN16: - | AO16: -
A18: ¹ Ajustado para fins de comparação com o ano de 2019, considerando as vendas de participações minoritárias dos Shoppings do Portfólio da Companhia. | J18: =J14-3300 -> 7122
A20: OBS: As informações contidas nesta planilha são gerenciais e podem apresentar divergências com as demonstrações financeiras oficiais divulgadas na CVM (ITR/DFP)
S26: =S17*1000 -> 0

Sheet JHSF Shoppings - DRE Aberto
A4: JHSF Malls (Shoppings e Operações) (R$'Mil) | B4: 2T21 | C4: 1T21 | D4: 2020 | E4: 4T20 | F4: 3T20 | G4: 2T20 | H4: 1T20 | I4: 2019² | J4: 2019 | K4: 4T19 | L4: 3T19 | M4: 2T19 | N4: 1T19 | O4: 2018² | P4: 2018 | Q4: 3T18 | R4: 2T18 | S4: 1T18 | T4: 2017 | U4: 2016 | V4: 4T16 | W4: 3T16 | X4: 2T16 | Y4: 1T16 | Z4: 2015 | AA4: 4T15 | AB4: 3T15 | AC4: 2T15 | AD4: 1T15 | AE4: 4T14 | AF4: 3T14 | AG4: 2T14 | AH4: 1T14
A5: Receita Bruta de Vendas e/ou Serviços | B5: 35849.39375 | C5: 29579 | D5: 129321 | E5: 49971 | F5: 30252 | G5: 8575 | H5: 40521.66862 | I5: 186370 | J5: 188688.6894 | K5: 51640.17503 | L5: 46052.59622 | M5: 47655.5663 | N5: 43340.35186 | O5: 198835.9165 | P5: 206767 | Q5: 51527 | R5: 50039 | S5: 47400.76042 | T5: 185911 | U5: 229933 | V5: 69185.69528 | W5: 61721.81115 | X5: 61742.63711 | Y5: 62719.16877 | Z5: 229277 | AA5: 66686.2065 | AB5: 58468.90408 | AC5: 61011.79312 | AD5: 58190.47143 | AE5: 55701.74912 | AF5: 46127.46157 | AG5: 46695.94966 | AH5: 45203.32835
A6: Impostos sobre Receita | B6: -4675.252438 | C6: -2788 | D6: -12869 | E6: -3730 | F6: -2866 | G6: -1182 | H6: -5091.679162 | I6: -22706 | J6: -22927.09571 | K6: -6283.087394 | L6: -5453.980282 | M6: -5701.885361 | N6: -5488.142676 | O6: -30023.99737 | P6: -24515 | Q6: -6228 | R6: -5889 | S6: -5624.20484 | T6: -22810 | U6: -26714 | V6: -8197.71178 | W6: -6719.996136 | X6: -6937.466372 | Y6: -5840.373189 | Z6: -26845 | AA6: -7438.660729 | AB6: -6427.942167 | AC6: -6623.697936 | AD6: -6446.507439 | AE6: -5703.12451 | AF6: -4774.02022 | AG6: -4740.88961 | AH6: -4438.4725
A7: Receita Líquida de Vendas e/ou Serviços | B7: 31174.14131 | C7: 26791 | D7: 116451 | E7: 46241 | F7: 27386 | G7: 7393 | H7: 35429.98946 | I7: 163663 | J7: 165761.5937 | K7: 45357.08763 | L7: =SUM(L5:L6) -> 40598.61594 | M7: =SUM(M5:M6) -> 41953.68094 | N7: 37852.20919 | O7: 168811.9192 | P7: 182252 | Q7: 45299 | R7: 44150 | S7: 41776.55558 | T7: 163101 | U7: 203219 | V7: 60987.9835 | W7: 55001.81501 | X7: 54805.17074 | Y7: 56878.79558 | Z7: 202432 | AA7: 59247.54577 | AB7: 52040.96191 | AC7: 54388.09518 | AD7: 51743.96399 | AE7: 49998.62461 | AF7: 41353.44135 | AG7: 41955.06005 | AH7: 40764.85585
A8: Custo de Bens e/ou Serviços Vendidos | B8: -10947.73258 | C8: -10686 | D8: -30077 | E8: -10617 | F8: -6451 | G8: -3486 | H8: -9521.127635 | I8: -50976 | J8: -51380.53092 | K8: -13669.02142 | L8: -13176.97242 | M8: -12008.30844 | N8: -12526.22865 | O8: -50404.29218 | P8: -44006 | Q8: -11576 | R8: -10970 | S8: -9794.878443 | T8: -36775 | U8: -52445 | V8: -11624.86818 | W8: -11539.36723 | X8: -10881.84766 | Y8: -10453.61079 | Z8: -47488 | AA8: -10248.81036 | AB8: -10388.8933 | AC8: -10359.91613 | AD8: -10938.08756 | AE8: -5486.392725 | AF8: -4787.957368 | AG8: -4937.305668 | AH8: -4063.366146
A9: Lucro bruto | B9: 20226.40872 | C9: 16104 | D9: 86374 | E9: 35623 | F9: 20935 | G9: 3906 | H9: 25908.86183 | I9: 112686 | J9: 114381.0628 | K9: 31688.06621 | L9: =SUM(L7:L8) -> 27421.64353 | M9: =SUM(M7:M8) -> 29945.3725 | N9: 25325.98054 | O9: 118407.627 | P9: 138246 | Q9: 33723 | R9: 33180 | S9: 31981.67714 | T9: 126326 | U9: 150774 | V9: 49363.11531 | W9: 43462.44778 | X9: 43923.32309 | Y9: 46425.18479 | Z9: 154944 | AA9: 48998.73542 | AB9: 41652.06861 | AC9: 44028.17905 | AD9: 40805.87642 | AE9: 44512.23189 | AF9: 36565.48399 | AG9: 37017.75438 | AH9: 36701.4897
A10: Margem Bruta | B10: 0.6488200757 | C10: 0.601 | D10: 0.742 | E10: 0.77 | F10: 0.764 | G10: 0.528 | H10: 73,1% | I10: 0.689 | J10: 0.690033561 | K10: 0.6986353813 | L10: =L9/L7 -> 0.6754329647 | M10: =M9/M7 -> 0.7137722323 | N10: 0.6690753614 | O10: 0.6520679187 | P10: 0.759 | Q10: 0.6544724125 | R10: 0.7515288788 | S10: 0.7655412634 | T10: 0.6794971788 | U10: 0.7419286582 | V10: 0.809390842 | W10: 0.7902002464 | X10: 0.8014448727 | Y10: 0.816212515 | Z10: 0.8071217091 | AA10: 0.8270171326 | AB10: 0.800370844 | AC10: 0.8095186807 | AD10: 0.7886113332 | AE10: 0.890269127 | AF10: 0.8842186475 | AG10: 0.8823191848 | AH10: 0.9003218321
A11: Despesas Gerais e Administrativas | B11: -4731.230867 | C11: -3919 | D11: -20450 | E11: -8103 | F11: -7722 | G11: -713 | H11: -3886.170022 | I11: -12907 | J11: -12860.23374 | K11: -3622.91908 | L11: -2878.911768 | M11: -3156.82447 | N11: -3201.578426 | O11: -34909.40972 | P11: -21781 | Q11: -6444 | R11: -3780 | S11: -5223.483201 | T11: -34461 | U11: -25896 | V11: -1442.701063 | W11: -2790.079216 | X11: -385.5046053 | Y11: -1288.851173 | Z11: -29635 | AA11: -576.4451374 | AB11: -1271.714397 | AC11: -1563.110102 | AD11: -1698.910399 | AE11: -561.9911469 | AF11: -664.5754516 | AG11: -523.9844689 | AH11: -305.0963411
A12: Despesas com Vendas | B12: -125.7676696 | C12: -48 | D12: -3618 | E12: -2104 | F12: -1407 | G12: -5 | H12: -101.834314 | I12: -7713 | J12: -7713.228855 | K12: -5054.535196 | L12: -1777.426548 | M12: -653.44266 | N12: -227.8244508 | O12: -3557.850848 | P12: -2390 | Q12: -744 | R12: -493 | S12: -441.7339256 | T12: -3086 | U12: -4944 | V12: -1254.659516 | W12: -944.0354601 | X12: -1845.649764 | Y12: -896.3899874 | Z12: -3710 | AA12: -914.377625 | AB12: -713.660986 | AC12: -1121.68449 | AD12: -1036.789404 | AE12: -4181.469942 | AF12: -897.365032 | AG12: -684.24188 | AH12: -719.0597
A13: Outros Resultados Operacionais | B13: -4065.714268 | C13: -1493 | D13: -225 | E13: -781 | F13: -78 | G13: 1627 | H13: -992.8085648 | I13: -1811 | J13: -1811.749996 | K13: 265.186858 | L13: -384.2359651 | M13: -552.7949273 | N13: -1139.905961 | O13: -12604.79799 | P13: -10892 | Q13: -4047 | R13: -2206 | S13: -2077.155101 | T13: -2551 | U13: -7035 | V13: 476.333246 | W13: 2134.762615 | X13: -9188.093521 | Y13: -1768.788948 | Z13: -17249 | AA13: -7337.138764 | AB13: -683.4651918 | AC13: -760.9681878 | AD13: -367.9197053 | AE13: -1619.051553 | AF13: 11.6614214 | AG13: -2031.421376 | AH13: -1114.649223
A14: Valor Justo de Propriedades para Investimentos | B14: -540.50973 | C14: -258 | D14: 195595.6834 | E14: -14744 | F14: 4847 | G14: 177332 | H14: 28160.42844 | I14: 434002 | J14: 437327.6828 | K14: 253950.1924 | L14: 70844.84922 | M14: 61781.37006 | N14: 50751.27119 | O14: 206272.9646 | P14: 206205 | Q14: -37384 | R14: 18132 | S14: -2452.05436 | T14: 155970 | U14: 62078 | V14: 38173.42 | W14: 614.84531 | X14: -266.85148 | Y14: 15597.20523 | Z14: 410498 | AA14: 246934.7722 | AB14: 25284.80936 | AC14: 1593 | AD14: 40048.51721 | AE14: 78106.449 | AF14: 24811.013 | AG14: 20596.60327 | AH14: 0
A15: Resultado Operacional | B15: 10763.18619 | C15: 10901 | D15: 257675 | E15: 9890 | F15: 16573 | G15: 182147 | H15: 49088.47736 | I15: 524256 | J15: 529323.533 | K15: 277225.9912 | L15: 93225.91846 | M15: 87363.6805 | N15: 71507.94289 | O15: 273608.5331 | P15: 309388 | Q15: -14619 | R15: 44833 | S15: 21787.25055 | T15: 242198 | U15: 174977 | V15: 85315.50798 | W15: 42477.94103 | X15: 32237.22371 | Y15: 58068.35991 | Z15: 514848 | AA15: 287105.5461 | AB15: 64268.03739 | AC15: 42175.41628 | AD15: 77750.77413 | AE15: 116256.1682 | AF15: 59826.21792 | AG15: 54374.70992 | AH15: 34562.68444
A16: EBITDA | B16: 10810.96185 | C16: 10623 | D16: 257599 | E16: 9952.56147 | F16: 16560 | G16: 181998 | H16: 49112.43709 | I16: 525519 | J16: 541934.6567 | K16: 282158.5006 | L16: 96336.96827 | M16: 90523.12295 | N16: 74516.06483 | O16: 281805.7988 | P16: 317347 | Q16: 41400 | R16: 46098 | S16: 25427.92866 | T16: 244462 | U16: 179663 | V16: 85230.29259 | W16: 43569.89723 | X16: 32750.56723 | Y16: 58069.0224 | Z16: 519772 | AA16: 287578.2683 | AB16: 64625.42808 | AC16: 42559.54782 | AD16: 77760.77413 | AE16: 115243.0904 | AF16: 58822.83293 | AG16: 53326.49956 | AH16: 33655.39233
A17: (-) Valor Justo de PPIs | D17: -195596 | E17: 14744 | F17: -4847 | G17: -177332 | H17: -28160.42844 | J17: -437327.6828 | K17: -253950.1924 | L17: -70844.84922 | M17: -61781.37006 | N17: -50751.27119 | O17: -206272.9646 | P17: -206205 | Q17: -16000 | R17: -18132 | S17: -2452.05436 | T17: -155970 | U17: -62078 | V17: 38173.42 | W17: 614.84531 | X17: -266.85148 | Y17: 15597.20523 | Z17: -410498 | AA17: -246934.7722 | AB17: -25284.80936 | AC17: -1593 | AD17: -40048.51721 | AE17: -78106.449 | AF17: -24811.013 | AG17: -20596.60327 | AH17: 0
A18: (-) Provisões | D18: - | E18: - | F18: - | G18: - | H18: - | J18: 4748 | K18: 2618 | L18: 380 | M18: - | N18: 744 | O18: 8358.249721 | P18: 16246 | Q18: 4000 | R18: 2273 | S18: 2059.249721 | T18: 0 | U18: 0 | V18: 0 | W18: 0 | X18: 0 | Y18: 0 | Z18: 0
A19: (-) Serviços Compartilhados | D19: - | E19: - | F19: - | G19: - | H19: - | J19: - | K19: - | M19: 1005.118578 | N19: - | O19: - | P19: - | Q19: - | R19: 0 | S19: 0 | T19: 27350 | U19: 13060 | V19: 0 | W19: -2347.312496 | X19: 9571.674546 | Y19: 2746.903622 | Z19: 14007 | AA19: 10888.81971 | AB19: 341.16322 | AC19: 1172.693387 | AD19: 317.7112072 | AE19: 7366.449 | AF19: 0 | AG19: -100 | AH19: 0
A20: (+/-) Efeitos de proporcionalidade¹ | D20: - | E20: - | F20: - | G20: - | H20: - | J20: - | K20: - | L20: - | M20: - | N20: - | O20: - | P20: - | Q20: - | R20: 0 | S20: 0 | T20: 0 | U20: -25782 | Z20: -33223
A21: Eventos não recorrentes | B21: 5315.901488 | C21: 1582.624894 | D21: 4316.942014 | E21: 307.9505787 | F21: 1516.160715 | G21: - | H21: 2500 | I21: 3666.18332 | J21: 7122 | K21: 1048.18332 | L21: 2256.21332 | M21: 695 | N21: - | O21: -2195.256 | P21: 8331 | Q21: 2900 | R21: 3834 | S21: 4300 | T21: 0 | U21: 0 | V21: 0 | W21: 0 | X21: 0 | Y21: 0 | Z21: 0 | AA21: 0 | AB21: 0 | AC21: 0 | AD21: 0 | AE21: 0 | AF21: 0 | AG21: 0 | AH21: 0
A22: EBITDA Ajustado | B22: 16667.37306 | C22: 11947 | D22: 66320 | E22: 25004 | F22: 13229 | G22: 4666 | H22: 23444.83937 | I22: 100662 | J22: 111729.3705 | K22: 30273.37862 | L22: 28128.33237 | M22: 29487.6595 | N22: 23840 | O22: 86153.91693 | P22: 135719 | Q22: 32300 | R22: 34073 | S22: 31787.17838 | T22: 115842 | U22: 104863 | V22: 123403.7126 | W22: 41837.43004 | X22: 42055.3903 | Y22: 76413.13125 | Z22: 90058 | AA22: 51532.31576 | AB22: 39681.78194 | AC22: 42139.24121 | AD22: 38029.96812 | AE22: 44503.09041 | AF22: 34011.81993 | AG22: 32629.89629 | AH22: 33655.39233
A23: Margem EBITDA Ajustado | B23: 0.5346537985 | C23: 0.446 | D23: 0.57 | E23: 0.541 | F23: 0.483 | G23: 0.631 | H23: 0.662 | I23: 0.615 | J23: 0.6740365365 | K23: =K22/K7 -> 0.6674453807 | L23: 0.6928396873 | M23: 0.7028622719 | N23: 0.6298179291 | O23: 0.5103544665 | P23: 0.744677699 | Q23: 0.713040023 | R23: 0.7717553794 | S23: 0.7608855717 | T23: 0.7102470248 | U23: 0.5160098219 | V23: 2.023410277 | W23: 0.7606554444 | X23: 0.7673617239 | Y23: 1.343437928 | Z23: 0.4448802561 | AA23: 0.8697797535 | AB23: 0.7625105395 | AC23: 0.7747879581 | AD23: 0.7349643358 | AE23: =AE22/AE7 -> 0.8900862924 | AF23: =AF22/AF7 -> 0.8224664942 | AG23: =AG22/AG7 -> 0.7777344677 | AH23: =AH22/AH7 -> 0.8255982176
A25: ¹ participação de 33% do SCJ vendida em 2016 | L25: =L53*M48 -> 0
A26: ² ajustado para fins de comparação com o ano de 2019, considerando as vendas de participações minoritárias dos Shoppings do Portfólio da Companhia.

Sheet DRE H&R
A4: HOTÉIS + RESTAURANTES (R$'Mil) | B4: 2T21 | C4: 1T21 | D4: 2020 | E4: 4T20 | F4: 3T20 | G4: 2T20 | H4: 1T20 | I4: 2019 | J4: 4T19 | K4: 3T19 | L4: 2T19 | M4: 1T19 | N4: 2018 | O4: 4T18 | P4: 3T18 | Q4: 2T18 | R4: 1T18 | S4: 2017 | T4: 4T17 | U4: 3T17 | V4: 2T17 | W4: 1T17 | X4: 2016 | Y4: 3T16 | Z4: 2T16 | AA4: 1T16 | AB4: 2015 ¹ | AC4: 4T15 ¹ | AD4: 3T15 ¹ | AE4: 2T15 ¹ | AF4: 1T15 ¹ | AG4: 2014 | AH4: 4T14 | AI4: 3T14 | AJ4: 2T14 | AK4: 1T14 | AL4: 2013
A5: Receita Bruta de Vendas e/ou Serviços | B5: 50310.39739 | C5: 44137 | D5: 135414 | E5: 55598 | F5: 27986 | G5: 6229 | H5: 45600.31281 | I5: 212732.5468 | J5: 60309.87336 | K5: 52301.15543 | L5: 51427.19517 | M5: 48694.32283 | N5: 190251.5462 | O5: 52154 | P5: 46650 | Q5: 48268.81756 | R5: 43173.87144 | S5: 188727.5513 | T5: 50928.69192 | U5: 43872.37408 | V5: 46744.55025 | W5: 47181.93506 | X5: 193264.6797 | Y5: 44707.68242 | Z5: 48775.6122 | AA5: 49080 | AB5: 195225.1093 | AC5: 54894.46656 | AD5: 45583.77751 | AE5: 50186.16162 | AF5: 44560.70362 | AG5: 79863.72132 | AH5: 39306.09771 | AI5: 14840.77089 | AJ5: 16975.91553 | AK5: 16679.58102 | AL5: 57785.3662
A6: Impostos sobre Receita | B6: -5723.06308 | C6: -5022 | D6: -16323 | E6: -6848 | F6: -3198 | G6: -847 | H6: -5429.92558 | I6: -23960.14037 | J6: -6610.85325 | K6: -6071.01372 | L6: -5836.59399 | M6: -5441.67941 | N6: -18908.06538 | O6: 5779 | P6: -5013 | Q6: -4436.06599 | R6: -3679.48766 | S6: -17681.73365 | T6: -3562.41423 | U6: -3949.89531 | V6: -4688.43682 | W6: -5480.98729 | X6: -16495.91207 | Y6: -3919.52348 | Z6: -4237.87293 | AA6: -3621 | AB6: -11426.26341 | AC6: -3357.37033 | AD6: -2575.83515 | AE6: -2879.82249 | AF6: -2613.23544 | AG6: -3291.591417 | AH6: -2377.6757 | AI6: -1010.4839 | AJ6: -1020.78857 | AK6: -772.75914 | AL6: -3573.689404
A7: Receita Líquida de Vendas e/ou Serviços | B7: 44587.33431 | C7: 39115 | D7: 119091 | E7: 48750 | F7: 24787 | G7: 5383 | H7: 40170.38723 | I7: 188772.4064 | J7: 53699.02011 | K7: 46230.14171 | L7: 45590.60118 | M7: 43252.64342 | N7: 171343.4808 | O7: 46379 | P7: 41637 | Q7: 43832.75157 | R7: 39494.38378 | S7: 171045.8177 | T7: 47366.27769 | U7: 39922.47877 | V7: 42056.11343 | W7: 41700.94777 | X7: 176768.7676 | Y7: 40788.15894 | Z7: 44537.73927 | AA7: 45459 | AB7: 183798.8459 | AC7: 51537.09623 | AD7: 43007.94236 | AE7: 47306.33913 | AF7: 41947.46818 | AG7: 76572.1299 | AH7: 36928.42201 | AI7: 13830.28699 | AJ7: 15955.12696 | AK7: 15906.82188 | AL7: 54211.67679
A8: Custo de Bens e/ou Serviços Vendidos | B8: -33319.14055 | C8: -32585 | D8: -121254 | E8: -41461 | F8: -27457 | G8: -14585 | H8: -37751.22732 | I8: -140052.7446 | J8: -38084.069 | K8: -33561.80425 | L8: -34082.06712 | M8: -34324.80422 | N8: -138119.1758 | O8: -34873 | P8: -34674 | Q8: -37773.05959 | R8: -30799.02824 | S8: -144895.6926 | T8: -38221.66619 | U8: -34878.67734 | V8: -36426.61139 | W8: -35368.73766 | X8: -144979.5476 | Y8: -35034.64486 | Z8: -35865.30143 | AA8: -37012 | AB8: -144666.6126 | AC8: -39997.66424 | AD8: -34891.79188 | AE8: -35618.48802 | AF8: -34158.66843 | AG8: -54278.20704 | AH8: -29031.07401 | AI8: -11995.30696 | AJ8: -11580.0991 | AK8: -12979.40316 | AL8: -42379.73846
A9: Lucro bruto | B9: 11268.19376 | C9: 6530 | D9: -2163 | E9: 7288 | F9: -2669 | G9: -9202 | H9: 2419.15991 | I9: 48719.66183 | J9: 15614.95111 | K9: 12668.33746 | L9: 11508.53406 | M9: 8927.8392 | N9: 33224.30499 | O9: 11507 | P9: 6963 | Q9: 6059.69198 | R9: 8695.35554 | S9: 26150.12508 | T9: 9144.6115 | U9: 5043.80143 | V9: 5629.50204 | W9: 6332.21011 | X9: 31789.22003 | Y9: 5753.51408 | Z9: 8672.43784 | AA9: 8447 | AB9: 39132.23333 | AC9: 11539.43199 | AD9: 8116.15048 | AE9: 11687.85111 | AF9: 7788.79975 | AG9: 22293.92287 | AH9: 7897.348 | AI9: 1834.980033 | AJ9: 4375.027857 | AK9: 2927.418719 | AL9: 11831.93833
A10: Despesas Gerais e Administrativas | B10: -10135.8546 | C10: -8770 | D10: -23478 | E10: -6291 | F10: -5801 | G10: -4159 | H10: -7227.01837 | I10: -32909.98722 | J10: -8298.93809 | K10: -8471.15735 | L10: -8539.78645 | M10: -7600.10533 | N10: -23227.68717 | O10: -4459 | P10: -4920 | Q10: -5711.63166 | R10: -6255.02581 | S10: -17289.30356 | T10: -5157.52889 | U10: -4105.81261 | V10: -3927.28143 | W10: -4098.68063 | X10: -17296.494 | Y10: -4124.07235 | Z10: -4705.682948 | AA10: -4170 | AB10: -19413.73012 | AC10: -5283.201508 | AD10: -4786.620359 | AE10: -4126.80634 | AF10: -5217.10191 | AG10: -9483.18588 | AH10: -4689.66425 | AI10: -1765.40461 | AJ10: -1293.44699 | AK10: -1734.67003 | AL10: -7315.93906
A11: Despesas com Vendas | B11: 2.14084 | C11: 1 | D11: -24 | E11: -21 | F11: -1 | G11: -1.02684 | H11: -1.02684 | I11: 0 | J11: 0 | K11: 0 | L11: 0 | M11: - | N11: 0 | O11: 0 | P11: 0 | Q11: 0 | R11: 0 | S11: 0 | T11: 0 | U11: 0 | V11: 0 | W11: 0 | X11: -50.95734 | Y11: -27.7238 | Z11: 27.03972 | AA11: -49 | AB11: -2543.83935 | AC11: 0 | AD11: -990.99092 | AE11: -931.44159 | AF11: -621.40684 | AG11: -2526.5113 | AH11: -686.75217 | AI11: -618.6891838 | AJ11: -727.9172524 | AK11: -710.071105 | AL11: -2534.812298
A12: Outros Resultados Operacionais | B12: -730.33453 | C12: -1831 | D12: -672 | E12: -207 | F12: -363 | G12: -177 | H12: 75.60779 | I12: -1300.525359 | J12: -1446.782909 | K12: -33.04656 | L12: -71.62117 | M12: 250.92528 | N12: 359.57511 | O12: -634 | P12: -666 | Q12: 270.70734 | R12: -273.16475 | S12: -997.72556 | T12: 1028.64613 | U12: -592.5124 | V12: -704.83304 | W12: -729.02625 | X12: 1441.97962 | Y12: 3129.74103 | Z12: -726.7495833 | AA12: -9 | AB12: -1112.731003 | AC12: -197.2646245 | AD12: -464.4902538 | AE12: -885.1703196 | AF12: 434.1941952 | AG12: 3735.869022 | AH12: 574.9378722 | AI12: 894.1759213 | AJ12: 1343.93389 | AK12: 924.3324049 | AL12: 2170.451692
A13: Resultado Operacional | B13: 404.145469 | C13: -4071 | D13: -26339 | E13: 769 | F13: -8836 | G13: -13539 | H13: -4733.27751 | I13: 14509.14925 | J13: 5869.230111 | K13: 4164.13355 | L13: 2897.12644 | M13: 1578.65915 | N13: 10356.19293 | O13: 6414 | P13: 1376 | Q13: 618.76766 | R13: 2167.16498 | S13: 8081.55476 | T13: 5234.18754 | U13: 345.47642 | V13: 997.38757 | W13: 1504.50323 | X13: 15883.74831 | Y13: -4731.45896 | Z13: 3267.045029 | AA13: 4220 | AB13: 16061.93286 | AC13: 6058.965858 | AD13: 1874.048947 | AE13: 5744.43286 | AF13: 2384.485195 | AG13: 14020.09471 | AH13: 3095.869452 | AI13: 345.0621609 | AJ13: 3697.597505 | AK13: 1407.009989 | AL13: 4151.63866
A14: Eventos não recorrentes (ajustes) | B14: 4168.45582 | C14: - | D14: 3978 | E14: 2894 | F14: 272 | G14: - | H14: 812 | I14: 1800 | J14: 1800 | K14: - | L14: - | M14: - | N14: - | O14: - | P14: - | Q14: - | R14: - | S14: - | T14: - | U14: - | V14: - | W14: - | X14: - | Y14: - | Z14: - | AA14: - | AB14: - | AC14: - | AD14: - | AE14: - | AF14: - | AG14: - | AH14: - | AI14: - | AJ14: - | AK14: - | AL14: -
A15: EBITDA Ajustado | B15: 9191.371269 | C15: 224 | D15: -14903 | E15: 5194 | F15: -7078 | G15: -12003 | H15: -1016.89186 | I15: 29175.78415 | J15: 11103.26806 | K15: 7993.51171 | L15: 5995.57797 | M15: 4083.42641 | N15: 19390.24431 | O15: 7848.67531 | P15: 3453.62757 | Q15: 2076.3609 | R15: 4531.58053 | S15: =SUM(T15:W15) -> 13481.14445 | T15: 7444.85172 | U15: 1273.66002 | V15: 2008.44863 | W15: 2754.18408 | X15: - | AB15: - | AG15: - | AL15: -
A16: Margem EBITDA Ajustado | B16: 0.206143099 | C16: 0.006 | D16: -0.125 | E16: 0.107 | F16: -0.286 | G16: -2.23 | H16: -2,5% | I16: =I15/I7 -> 0.1545553437 | J16: 0.2067685414 | K16: 0.1729069264 | L16: 0.131509079 | M16: 0.09440871325 | N16: 0.1131659297 | O16: 0.1692290759 | P16: 0.08294611932 | Q16: 0.04737007889 | R16: 0.1147398718 | S16: 0.07881598413 | T16: 0.1571762039 | U16: 0.03190333013 | V16: 0.0477564013 | W16: 0.06604607874 | X16: - | AB16: - | AG16: - | AL16: -
A18: ¹ Os valores acima apresentados incluem os efeitos da venda dos ativos que a Companhia detinha no exterior, transação concluída em 13 de Maio de 2016.
A20: OBS: As informações contidas nesta planilha são gerenciais e podem apresentar divergências com as demonstrações financeiras oficiais divulgadas na CVM (ITR/DFP)

Sheet DRE Aeroporto
A3: Aeroporto | B3: 2T21 | C3: 1T21 | D3: 2020 | E3: 4T20 | F3: 3T20 | G3: 2T20 | H3: 1T20
A4: Receita Bruta | B4: 8018.60972 | C4: 7955 | D4: 22277 | E4: 8802 | F4: 7111 | G4: 4375 | H4: 1988
A5: Impostos sobre a Receita | B5: -690.49598 | C5: -976 | D5: -2203 | E5: -853 | F5: -821 | G5: -434 | H5: -95
A6: Receita Líquida | B6: 7328.11374 | C6: 6978 | D6: 20073 | E6: 7949 | F6: 6290 | G6: 3941 | H6: 1892
A7: CPSV | B7: -5801.61696 | C7: -3841 | D7: -15227 | E7: -5006 | F7: -3906 | G7: -2561 | H7: -3753
A8: Resultado Bruto | B8: 1526.49678 | C8: 3136 | D8: 4846 | E8: 2942 | F8: 2384 | G8: 1380 | H8: -1861
A9: Margem (% da Receita Líquida) | B9: 0.2083069169 | C9: 0.449 | D9: 0.241 | E9: 0.3702 | F9: 0.379 | G9: 0.35 | H9: -0.9834478796
A10: Despesas Operacionais | B10: -6950.1769 | C10: -7000 | D10: -8648 | E10: -2059 | F10: -1482 | G10: -573 | H10: -4682
A11: Despesas com Vendas | B11: 0 | C11: -25 | D11: -1126 | E11: -39 | F11: -28 | G11: - | H11: -1058
A12: Despesas Administrativas | B12: -1474.08699 | C12: -1758 | D12: -4299 | E12: -1114 | F12: -864 | G12: -604 | H12: -1866
A13: Outros Resultados Operacionais | B13: -5476.08991 | C13: -5216 | D13: -3222 | E13: -906 | F13: -589 | G13: 31 | H13: -1758
A14: Resultado Operacional | B14: -5423.68012 | C14: -3863 | D14: -3802 | E14: 883 | F14: 901 | G14: 807 | H14: -6543
A15: Depreciação e Amortização | B15: 5738.64558 | C15: 5613 | D15: 2250 | E15: 576 | F15: 640 | G15: 467 | H15: 566
A16: EBITDA | B16: 314.96546 | C16: 1749 | D16: -1552 | E16: 1459 | F16: 1542 | G16: 1274 | H16: -5977
A17: Eventos não recorrentes (ajustes) | B17: 473.76325 | C17: 179 | D17: 4665 | E17: 1661 | F17: 187 | G17: - | H17: 2816
A18: EBITDA Ajustado | B18: 788.72871 | C18: 1928 | D18: 3112 | E18: 3120 | F18: 1729 | G18: 1274 | H18: -3160
A19: Margem (% da Receita Líquida) | B19: 0.1076305224 | C19: 0.276 | D19: 0.155 | E19: 0.393 | F19: 0.275 | G19: 0.323 | H19: -1.6700086
A22: OBS: As informações contidas nesta planilha são gerenciais e podem apresentar divergências com as demonstrações financeiras oficiais divulgadas na CVM (ITR/DFP)

Sheet DRE Holding+Internac.
A3: HOLDING + INTERNACIONAL (R$'Mil) | B3: 2T21 | C3: 1T21 | D3: 2020 | E3: 4T20 | F3: 3T20 | G3: 2T20 | H3: 1T20 | I3: 2019 | J3: 4T19 | K3: 3T19 | L3: 2T19 | M3: 1T19 | N3: 2018 | O3: 4T18 | P3: 3T18 | Q3: 2T18 | R3: 1T18 | S3: 2017 | T3: 4T17 | U3: 3T17 | V3: 2T17 | W3: 1T17 | X3: 2016 ¹ | Y3: 3T16 | Z3: 2T16 | AA3: 1T16 | AB3: 2015 ¹ | AC3: 4T15 ¹ | AD3: 3T15 ¹ | AE3: 2T15 ¹ | AF3: 1T15 ¹ | AG3: 2014 | AH3: 4T14 | AI3: 3T14 | AJ3: 2T14 | AK3: 1T14 | AL3: 2013
A4: Receita Bruta de Vendas e/ou Serviços | B4: - | C4: - | D4: - | E4: - | F4: - | G4: - | H4: - | I4: - | J4: - | K4: - | L4: - | M4: - | N4: 0 | O4: 0 | P4: 0 | Q4: 0 | R4: 0 | S4: 955.59139 | T4: 955.59139 | U4: 0 | V4: 0 | W4: 0 | X4: 0 | Y4: 0 | Z4: 0 | AA4: 0 | AB4: 0 | AC4: 0 | AD4: 0 | AE4: 0 | AF4: 0 | AG4: 79863.72132 | AH4: 0 | AI4: 0 | AJ4: 0 | AK4: 0 | AL4: 0
A5: Impostos sobre Receita | B5: - | C5: - | D5: - | E5: - | F5: - | G5: - | H5: - | I5: - | J5: - | K5: - | L5: - | M5: - | N5: 0 | O5: 0 | P5: 0 | Q5: 0 | R5: 0 | S5: -99.59426 | T5: -99.59426 | U5: 0 | V5: 0 | W5: 0 | X5: 0 | Y5: 0 | Z5: 0 | AA5: 0 | AB5: 0 | AC5: 0 | AD5: 0 | AE5: 0 | AF5: 0 | AG5: -3291.591417 | AH5: 0 | AI5: 0 | AJ5: 0 | AK5: 0 | AL5: 0
A6: Receita Líquida de Vendas e/ou Serviços | B6: - | C6: - | D6: - | E6: - | F6: - | G6: - | H6: - | I6: - | J6: - | K6: - | L6: - | M6: - | N6: 0 | O6: 0 | P6: 0 | Q6: 0 | R6: 0 | S6: 855.99713 | T6: 855.99713 | U6: 0 | V6: 0 | W6: 0 | X6: 0 | Y6: 0 | Z6: 0 | AA6: 0 | AB6: 0 | AC6: 0 | AD6: 0 | AE6: 0 | AF6: 0 | AG6: 76572.1299 | AH6: 0 | AI6: 0 | AJ6: 0 | AK6: 0 | AL6: 0
A7: Custo de Bens e/ou Serviços Vendidos | B7: - | C7: - | D7: - | E7: - | F7: - | G7: - | H7: 0,0 | I7: - | J7: - | K7: - | L7: - | M7: - | N7: 0 | O7: 0 | P7: 0 | Q7: 0 | R7: 0 | S7: 64.043648 | T7: 64.043648 | U7: 0 | V7: 0 | W7: 0 | X7: 0 | Y7: 0 | Z7: 0 | AA7: 0 | AB7: 0 | AC7: 0 | AD7: 0 | AE7: 0 | AF7: 0 | AG7: -54278.20704 | AH7: 0 | AI7: 0 | AJ7: 0 | AK7: 0 | AL7: 0
A8: Lucro bruto | B8: - | C8: - | D8: - | E8: - | F8: - | G8: - | H8: 0,0 | I8: - | J8: - | K8: - | L8: - | M8: - | N8: 0 | O8: 0 | P8: 0 | Q8: 0 | R8: 0 | S8: 920.040778 | T8: 920.040778 | U8: 0 | V8: 0 | W8: 0 | X8: 0 | Y8: 0 | Z8: 0 | AA8: 0 | AB8: 0 | AC8: 0 | AD8: 0 | AE8: 0 | AF8: 0 | AG8: 22293.92287 | AH8: 0 | AI8: 0 | AJ8: 0 | AK8: 0 | AL8: 0
A9: Despesas Gerais e Administrativas | B9: -7857.38878 | C9: -13562 | D9: -40332 | E9: -15262 | F9: 11420 | G9: -6179 | H9: -7474.58542 | I9: -34025.97859 | J9: -5464.153905 | K9: -2878.51564 | L9: -14469.51786 | M9: -11213.79118 | N9: -50833.25442 | O9: -31642.65362 | P9: -665.742 | Q9: -6344.49176 | R9: -6170.83795 | S9: -26436.98884 | T9: -1881.499123 | U9: -4964.33081 | V9: -7277.46841 | W9: -12313.6905 | X9: -42480.26043 | Y9: -11131.50127 | Z9: -10141.7732 | AA9: -10795 | AB9: -35852.79042 | AC9: -10914.30946 | AD9: -7931.17989 | AE9: -7074.74528 | AF9: -9932.55579 | AG9: -9483.18588 | AH9: -10400.20504 | AI9: -8559.022197 | AJ9: -9625.330134 | AK9: -9041.11933 | AL9: -42134.8956
A10: Despesas com Vendas | B10: -1083.67482 | C10: -1183 | D10: -635 | E10: -331 | F10: -347 | G10: - | H10: 43.33107 | I10: - | J10: - | K10: - | L10: - | M10: 0 | N10: -326.75134 | O10: -276.68349 | P10: -0.825 | Q10: -25.8218 | R10: -16 | S10: -155.8947382 | T10: -31.6515882 | U10: -17.184 | V10: -22.136 | W10: -84.92315 | X10: -1209.30202 | Y10: -191.54453 | Z10: -220.13696 | AA10: -29 | AB10: -1797.59359 | AC10: -329.82319 | AD10: -319.69421 | AE10: -581.77465 | AF10: -566.30154 | AG10: -2526.5113 | AH10: -550.87708 | AI10: -532.00142 | AJ10: -650.32482 | AK10: -534.69125 | AL10: -1930.21903
A11: Outras | B11: -7657.2322 | C11: -505 | D11: -9121 | E11: -11195 | F11: -796 | G11: 4269 | H11: -1398.88487 | I11: 8440.871094 | J11: -2165.923766 | K11: 11878.36951 | L11: 1148.55523 | M11: -2420.12988 | N11: 7708.76285 | O11: 9941.45475 | P11: -58.581 | Q11: -111.19079 | R11: 141.56444 | S11: 9181.349897 | T11: 28076.82675 | U11: -12489.89948 | V11: -5781.65723 | W11: -623.92014 | X11: -219791.1262 | Y11: -2809.03124 | Z11: 124076.982 | AA11: 2687 | AB11: 189.8854839 | AC11: 1259.37964 | AD11: 76.27275 | AE11: 1239.237894 | AF11: -2385.0048 | AG11: 3735.869022 | AH11: -4645.94032 | AI11: -4077.175963 | AJ11: -7044.671287 | AK11: -4619.969179 | AL11: -13215
A12: Valor Justo de Propriedades para Investimentos | B12: - | C12: - | D12: - | E12: - | F12: - | G12: - | H12: - | I12: - | J12: - | K12: - | L12: - | M12: 0 | N12: 0 | O12: - | P12: 0 | Q12: 0 | R12: 0 | S12: 0 | T12: 0 | U12: 0 | V12: 0 | W12: 0 | X12: 0 | Y12: 0 | Z12: 0 | AA12: 0 | AB12: 0 | AC12: 0 | AD12: 0 | AE12: 0 | AF12: 0 | AG12: 0 | AH12: 0 | AI12: 0 | AJ12: 0 | AK12: 0 | AL12: 0
A13: Resultado Operacional | B13: -16598.2958 | C13: -15251 | D13: -50090 | E13: -26789 | F13: 12564 | G13: -1910 | H13: -8830.13922 | I13: -25585.10749 | J13: -7630.077671 | K13: 8999.85387 | L13: -13320.96263 | M13: -13633.92106 | N13: -43451.24291 | O13: -21977.88236 | P13: -725.148 | Q13: -6481.50435 | R13: -6045.27351 | S13: -46684.86196 | T13: -3109.652244 | U13: -17471.41429 | V13: -13081.26164 | W13: -13022.53379 | X13: -263480.6886 | Y13: -14132.07704 | Z13: 113715.0719 | AA13: 4220 | AB13: -37460.49853 | AC13: -9984.75301 | AD13: -8174.60135 | AE13: -6417.282036 | AF13: -12883.86213 | AG13: 14020.09471 | AH13: -15597.02244 | AI13: -13168.19958 | AJ13: -17320.32624 | AK13: -14195.77976 | AL13: -57280.11463
A14: Eventos não recorrentes (ajustes) | B14: 9304.02788 | C14: 7510 | D14: 24645 | E14: 12870 | F14: 7331 | G14: 2911 | H14: 1534 | I14: 616 | J14: 5198 | K14: -18015 | L14: 8868 | M14: 4565 | N14: - | O14: - | P14: - | Q14: - | R14: - | S14: - | T14: - | U14: - | V14: - | W14: - | X14: - | Y14: - | Z14: - | AA14: - | AB14: - | AC14: - | AD14: - | AE14: - | AF14: - | AG14: - | AH14: - | AI14: - | AJ14: - | AK14: - | AL14: -
A15: EBITDA Ajustado | B15: -6069.63818 | C15: -6467 | D15: -16516 | E15: -21963 | F15: -3936 | G15: 2338 | H15: -5829.04254 | I15: =SUM(J15:M15) -> -20415.14971 | J15: -2426.724681 | K15: -7572.15035 | L15: -2895.511644 | M15: -7520.763038 | N15: - | O15: - | P15: - | Q15: - | R15: - | S15: - | T15: - | U15: - | V15: - | W15: - | X15: - | Y15: - | Z15: - | AA15: - | AB15: - | AC15: - | AD15: - | AE15: - | AF15: - | AG15: - | AH15: - | AI15: - | AJ15: - | AK15: - | AL15: -
A16: Margem EBITDA Ajustado | B16: - | C16: - | D16: - | E16: - | F16: 0 | G16: 0 | H16: - | I16: - | J16: - | K16: - | L16: - | M16: - | N16: - | O16: - | P16: - | Q16: - | R16: - | S16: - | T16: - | U16: - | V16: - | W16: - | X16: - | Y16: - | Z16: - | AA16: - | AB16: - | AC16: - | AD16: - | AE16: - | AF16: - | AG16: - | AH16: - | AI16: - | AJ16: - | AK16: - | AL16: -
A18: ¹ Os valores acima apresentados incluem os efeitos da venda dos ativos que a Companhia detinha no exterior, transação concluída em 13 de Maio de 2016.
A20: OBS: As informações contidas nesta planilha são gerenciais e podem apresentar divergências com as demonstrações financeiras oficiais divulgadas na CVM (ITR/DFP)

Sheet Balanço Patrimonial
A3: Balanço Patrimonial Consolidado (R$'Mil) | B3: 2T21 | C3: 1T21 | D3: 2020 | E3: 3T20 | F3: 2T20 | G3: 1T20 | H3: 2019 | I3: 3T19 | J3: 2T19 | K3: 1T19 | L3: 2018 | M3: 3T18 | N3: 2T18 | O3: 1T18 | P3: 2017 | Q3: 3T17 | R3: 2T17 | S3: 1T17 | T3: 2016 | U3: 2015 | V3: 2014 | W3: 2013
A4: ATIVO | B4: =B5+B13 -> 8032952 | C4: =C5+C13 -> 7619655 | D4: =D5+D13 -> 7282039 | E4: 6897326 | F4: 6360208 | G4: 5.866.202 | H4: 5837933.841 | I4: 4980141.649 | J4: 4860472.468 | K4: 4693430.987 | L4: 4815061 | M4: 4665492 | N4: 4578075 | O4: 4484415 | P4: 4466181 | Q4: 4464170 | R4: 4492062 | S4: 4447718 | T4: 4750550 | U4: 6565585.575 | V4: 5805377.042 | W4: 5301466.374
A5: Ativo Circulante | B5: =SUM(B6:B12) -> 2526832 | C5: =SUM(C6:C12) -> 2032610 | D5: =SUM(D6:D12) -> 1859590 | E5: 1449959 | F5: 1061558 | G5: 855598 | H5: 930319.369 | I5: 418005.6109 | J5: 395367.3903 | K5: 365715.7341 | L5: 657085 | M5: 330676 | N5: 343528 | O5: 351574 | P5: 321996 | Q5: 489594.9399 | R5: 427653 | S5: 824823 | T5: 1162738 | U5: 1881371.827 | V5: 1327193.688 | W5: 1726986.159
A6: Disponibilidades / Aplicações Financeiras | B6: =[83]Ativo!$K$12 -> 1196209 | C6: 1178901 | D6: 1041269 | E6: 863585 | F6: 559881 | G6: 415368 | H6: 537104.6155 | I6: 25501.46033 | J6: 60003.94055 | K6: 35822.13995 | L6: 235596 | M6: 28989 | N6: 32990 | O6: 32517 | P6: 32912 | Q6: 47955 | R6: 63300 | S6: 54293 | T6: 69653 | U6: 190964.6852 | V6: 369528.6776 | W6: 610896
A7: Contas a Receber | B7: =[83]Ativo!$K$13 -> 757223 | C7: 426263 | D7: 418490 | E7: 332868 | F7: 262416 | G7: 168507 | H7: 170935.8104 | I7: 173320.9256 | J7: 148715.0941 | K7: 137913.9557 | L7: 273119 | M7: 125608 | N7: 124805 | O7: 119429 | P7: 122111 | Q7: 146410 | R7: 176942 | S7: 159700 | T7: 512652 | U7: 315729.5633 | V7: 414637.835 | W7: 597934.641
A8: Imóveis a Comercializar | B8: =[83]Ativo!$K$14 -> 411102 | C8: 258890 | D8: 246678 | E8: 149435 | F8: 159982 | G8: 188659 | H8: 153758.7041 | I8: 101192.1015 | J8: 72207.97465 | K8: 78946.52334 | L8: 96992 | M8: 113593 | N8: 113940 | O8: 138410 | P8: 110214 | Q8: 225652.9399 | R8: 95295 | S8: 524487 | T8: 464346 | U8: 453494.2746 | V8: 426393.9799 | W8: 420024.518
A9: Impostos e Contribuições a Recuperar | B9: - | C9: - | D9: - | E9: - | F9: - | G9: - | H9: - | K9: - | L9: - | M9: 28340 | N9: 29016 | O9: 25597 | P9: 29149 | Q9: 27918 | R9: 29250 | S9: 30804 | T9: 29726 | U9: 30483.71545 | V9: 32498.04155 | W9: 34152
A10: Despesas com vendas a apropriar | B10: - | C10: - | D10: - | E10: - | F10: - | G10: - | H10: - | K10: - | L10: - | M10: 0 | N10: 0 | O10: 6432 | P10: 4445 | Q10: 10888 | R10: 15049 | S10: 19608 | T10: 6006 | U10: 6269.02183 | V10: 7234.9905 | W10: 0
A11: Ativos não ciculantes disponíveis para venda | B11: - | C11: - | D11: - | E11: - | F11: - | G11: 28581 | H11: - | K11: - | L11: - | M11: 0 | N11: 0 | O11: 0 | P11: 0 | Q11: 0 | R11: 0 | S11: 0 | T11: 0 | U11: 804299.8159 | V11: 0 | W11: 0
A12: Outros | B12: =[83]Ativo!$K$19 -> 162298 | C12: 168556 | D12: 153153 | E12: 104071 | F12: 79279 | G12: 54483 | H12: 68520.23913 | I12: 117992.1234 | J12: 114440.3811 | K12: 50360.33199 | L12: 51378 | M12: 34146 | N12: 42777 | O12: 29189 | P12: 23165 | Q12: 30771 | R12: 47817 | S12: 35931 | T12: 80355 | U12: 80130.75065 | V12: 76900.16316 | W12: 63979
A13: Ativo Não Circulante | B13: =SUM(B14:B21) -> 5506120 | C13: =SUM(C14:C21) -> 5587045 | D13: =SUM(D14:D21) -> 5422449 | E13: 5447367 | F13: 5298650 | G13: 5010604 | H13: 4907615.472 | I13: 4562136.038 | J13: 4465105.078 | K13: 4327715.253 | L13: 4157976 | M13: 4334816 | N13: 4234547 | O13: 4132841 | P13: 4144185 | Q13: 3974575.06 | R13: 4064409 | S13: 3622895 | T13: 3587812 | U13: 4684212.748 | V13: 4478183.354 | W13: 3574480.215
A14: Títulos e valores mobiliários | B14: - | C14: - | D14: - | E14: - | F14: - | G14: - | H14: 6595 | I14: - | J14: - | K14: - | L14: - | M14: - | N14: - | O14: - | P14: - | Q14: - | R14: - | S14: - | T14: - | U14: - | V14: - | W14: -
A15: Contas a Receber | B15: =[83]Ativo!$K$28 -> 305304 | C15: 307224 | D15: 210734 | E15: 175431 | F15: 197071 | G15: 143573 | H15: 117189.4387 | I15: 126611.7371 | J15: 122971.5542 | K15: 118689.0279 | L15: 115172 | M15: 122073 | N15: 110358 | O15: 82597 | P15: 103119 | Q15: 161695 | R15: 154453 | S15: 188681 | T15: 156553 | U15: 275240.2726 | V15: 225527.724 | W15: 228895
A16: Imóveis a Comercializar | B16: =[83]Ativo!$K$30 -> 532458 | C16: 671122 | D16: 675520 | E16: 604506 | F16: 466082 | G16: 466082 | H16: 466082.239 | I16: 466058.4939 | J16: 458305.3818 | K16: 466172.819 | L16: 465944 | M16: 497394 | N16: 497055 | O16: 495377 | P16: 501104 | Q16: 405922.0601 | R16: 535062 | S16: 105952 | T16: 162291 | U16: 191820.9051 | V16: 342772.475 | W16: 251735
A17: Outros | B17: =[83]Ativo!$K$32+[83]Ativo!$K$35 -> 61832 | C17: 58980 | D17: 37098 | E17: 41252 | F17: 115840 | G17: 110171 | H17: 95895.58843 | I17: 175139.6954 | J17: 191069.2379 | K17: 12009.21235 | L17: 10260 | M17: 165332 | N17: 138983 | O17: 113268 | P17: 122703 | Q17: 101675 | R17: 94869 | S17: 120443 | T17: 113436 | U17: 109718.0223 | V17: 92151.91588 | W17: 79830
A18: Investimentos | B18: =[83]Ativo!$K$36 -> 10810 | C18: 7353 | D18: 7108 | E18: 6086 | F18: 6086 | G18: 7326 | H18: 6263.60767 | I18: - | J18: 221.58909 | K18: 25.97059 | L18: 642 | M18: 884 | N18: 2589 | O18: 3239 | P18: 3536 | Q18: 3691 | R18: 3787 | S18: 4203 | T18: 4502 | U18: 7044.239031 | V18: 11974.74522 | W18: 4190.734382
A19: Imobilizado | B19: =[83]Ativo!$K$37-[83]Ativo!$K$39 -> 1130742 | C19: 1104753 | D19: 1077871 | E19: 1002984 | F19: 970057 | G19: 957688 | H19: 948227.0163 | I19: 858758.2899 | J19: 798165.547 | K19: 762220.4063 | L19: 740014 | M19: 689338 | N19: 669755 | O19: 657363 | P19: 640592 | Q19: 761208 | R19: 762178 | S19: 750117 | T19: 736078 | U19: 639464.7873 | V19: 800496.2371 | W19: 324420.1233
A20: Intangível | B20: =[83]Ativo!$K$39 -> 112264 | C20: 110484 | D20: 108639 | E20: 103367 | F20: 102775 | G20: 103072 | H20: 99246.34869 | I20: 163478.2932 | J20: 158012.4227 | K20: 161169.2419 | L20: 98802 | M20: 96826 | N20: 97314 | O20: 95785 | P20: 96343 | Q20: 98565 | R20: 87962 | S20: 88002 | T20: 87993 | U20: 102955.8796 | V20: 58562.40237 | W20: 19313.37823
A21: Propriedades para investimento | B21: =[83]Ativo!$K$38 -> 3352710 | C21: 3327129 | D21: 3305479 | E21: 3513741 | F21: 3440739 | G21: 3222692 | H21: 3168116.233 | I21: 2772089.528 | J21: 2736359.345 | K21: 2661903.012 | L21: 2588101 | M21: 2762969 | N21: 2718493 | O21: 2685212 | P21: 2676788 | Q21: 2441819 | R21: 2426098 | S21: 2365497 | T21: 2326959 | U21: 3357968.642 | V21: 2946697.854 | W21: 2666095.979
A22: PASSIVO | B22: =B23+B38 -> 3702387 | C22: =C23+C38 -> 3612793 | D22: =D23+D38 -> 3455364 | E22: 3043201 | F22: =SUM(F23,F38) -> 3081112 | G22: 2829890 | H22: 2781145.964 | I22: 2628705.991 | J22: 2580096.775 | K22: 2407206.507 | L22: 2547813 | M22: 2417822 | N22: 2447465.566 | O22: 2345211.605 | P22: 2318401 | Q22: 4464170.436 | R22: 4492062.082 | S22: 4447718.059 | T22: 4750549.786 | U22: 6565585.109 | V22: 5805376.822 | W22: 5301465.565
A23: Passivo Circulante | B23: =SUM(B24:B37) -> 804781 | C23: =SUM(C24:C37) -> 866764 | D23: =SUM(D24:D37) -> 1078153 | E23: 566093 | F23: 434370 | G23: 408689 | H23: 429940.1291 | I23: 403950.2289 | J23: 441027.4119 | K23: 665456.2081 | L23: 680169 | M23: 434094 | N23: 396507 | O23: 387696.3775 | P23: 351934 | Q23: 468941.0173 | R23: 454404.0173 | S23: 371689 | T23: 609449.0173 | U23: 1671084.805 | V23: 750499.7689 | W23: 517087.5571
A24: Empréstimos / Financiamentos e Debêntures | B24: =[83]Passivo!$K$13 -> 118403 | C24: 104499 | D24: 384142 | E24: 112305 | F24: 122391 | G24: 143705 | H24: 179637.8503 | I24: 227215.1988 | J24: 235172.0506 | K24: 180968.5476 | L24: 134771 | M24: 187207 | N24: 152100 | O24: 178991.3775 | P24: 131349 | Q24: 264258 | R24: 217719 | S24: 101484 | T24: 280315 | U24: 559887.9372 | V24: 482618.7689 | W24: 298333
A25: Fornecedores | B25: =[83]Passivo!$K$10 -> 119276 | C25: 85886 | D25: 99584 | E25: 89839 | F25: 63940 | G25: 60759 | H25: 65871.46684 | I25: 70933.2355 | J25: 40889.37564 | K25: 37942.22712 | L25: 37644 | M25: 49011 | N25: 48253 | O25: 45110 | P25: 42867 | Q25: 53469 | R25: 62035 | S25: 67944 | T25: 50626 | U25: 97041.72652 | V25: 63437 | W25: 60551
A26: Dividendos / JCP a Pagar | B26: =[83]Passivo!$K$22 -> 0 | C26: 144361 | D26: 144361 | E26: - | F26: - | G26: 54000 | H26: 35500.39106 | I26: 14829.15685 | J26: 14829.15685 | K26: 30291.50957 | L26: 76207 | M26: 14829 | N26: 14829 | O26: 14829 | P26: 14829 | Q26: 53056.01734 | R26: 53056.01734 | S26: 53056 | T26: 53056.01734 | U26: 0 | V26: 0 | W26: 11440
A27: Obrigações Trabalhistas e Tributárias | B27: - | C27: - | D27: - | E27: - | F27: - | G27: - | K27: - | L27: 0 | M27: 45125 | N27: 41694 | O27: 37474 | P27: 32820 | Q27: 34377 | R27: 32377 | S27: 28499 | T27: 27507 | U27: 24412.48031 | V27: 30751 | W27: 29451.02015
A28: Impostos e Contribuições Diferidos | B28: - | C28: - | D28: - | E28: - | F28: - | G28: - | K28: - | L28: 4600 | M28: 9975 | N28: 8451 | O28: 9662 | P28: 11784 | Q28: 13283 | R28: 14416 | S28: 16412 | T28: 18533 | U28: 31853.80982 | V28: 30253 | W28: 34296.53693
A29: Obrigações com Parceiros em Empreendimentos | B29: =[83]Passivo!$K$15 -> 162656 | C29: 130853 | D29: 132710 | E29: 131586 | F29: 24385 | G29: 24494 | H29: 25682.35034 | I29: 11612.48306 | J29: 17652.69588 | K29: 269242.5611 | L29: 274148 | M29: 0 | N29: 0 | O29: - | P29: 0 | Q29: 0 | R29: 0 | S29: 0 | T29: 0 | U29: 0 | V29: 0 | W29: 0
A30: Credores por Imóveis Compromissados | B30: - | C30: - | D30: - | E30: - | F30: - | G30: - | K30: - | L30: 0 | M30: 0 | N30: 0 | O30: 0 | P30: 0 | Q30: 0 | R30: 0 | S30: 0 | T30: 0 | U30: 0 | V30: 0 | W30: 16315
A31: Adiantamento de Clientes | B31: =[83]Passivo!$K$21 -> 198729 | C31: 220729 | D31: - | E31: - | F31: - | G31: 39063 | H31: 32153.22758 | I31: 15308.11546 | J31: 61426.09575 | K31: 93861.54378 | L31: 89452 | M31: 0 | N31: 0 | O31: 0 | P31: 0 | Q31: 0 | R31: 0 | S31: 0 | T31: 0 | U31: 0 | V31: 110447 | W31: 56544
A32: Débitos diversos | B32: =[83]Passivo!$K$19 -> 203896 | C32: 178735 | D32: 314332 | E32: 230663 | F32: 220782 | G32: 84147 | H32: 89972.00533 | I32: 56878.56215 | J32: 57861.68151 | K32: 48401.85721 | L32: 63346 | M32: 127947 | N32: 131180 | O32: 101630 | P32: 118285 | Q32: 50498 | R32: 74801 | S32: 104294 | T32: 179412 | U32: 253191.9381 | V32: 32993 | W32: 10157
A33: Débitos com partes relacionadas | B33: =[83]Passivo!$K$23 -> 1821 | C33: 1701 | D33: 3024 | E33: 1700 | F33: 2872 | G33: 2522 | H33: 1123.83756 | I33: - | J33: 934.6264 | K33: 0 | L33: 0 | M33: 0 | N33: 0 | O33: 0 | P33: 0 | Q33: 0 | R33: 0 | S33: 0 | T33: 0 | U33: 0 | V33: 0 | W33: 0
A34: Cessão de usufruto | B34: - | C34: - | D34: - | E34: - | F34: - | G34: - | H34: 0 | I34: 0 | J34: 8607 | K34: 0 | L34: 0 | M34: 0 | N34: 0 | O34: 0 | P34: 0 | Q34: 0 | R34: 0 | S34: 0 | T34: 0 | U34: 0 | V34: 0 | W34: 0
A35: Receita diferida – Cessão de direito de uso | B35: - | C35: - | D35: - | E35: - | F35: - | G35: - | H35: 0 | I35: 0 | J35: 3654.729302 | K35: 0 | L35: 0 | M35: 0 | N35: 0 | O35: 0 | P35: 0 | Q35: 0 | R35: 0 | S35: 0 | T35: 0 | U35: 0 | V35: 0 | W35: 0
A36: Arrendamentos | B36: - | C36: - | D36: - | E36: - | F36: - | G36: - | H36: 0 | I36: 7174.47702 | J36: 0 | K36: 0 | L36: 0 | M36: 0 | N36: 0 | O36: 0 | P36: 0 | Q36: 0 | R36: 0 | S36: 0 | T36: 0 | U36: 0 | V36: 0 | W36: 0
A37: Passivo destinado à venda | B37: - | C37: - | D37: - | E37: - | F37: - | K37: - | L37: 0 | M37: 0 | N37: 0 | O37: 0 | P37: 0 | Q37: 0 | R37: 0 | S37: 0 | T37: 0 | U37: 704696.9128 | V37: 0 | W37: 0
A38: Passivo Não Circulante | B38: =SUM(B39:B45) -> 2897606 | C38: =SUM(C39:C45) -> 2746029 | D38: =SUM(D39:D45) -> 2377211 | E38: 2477108 | F38: 2646742 | G38: 2421201 | H38: 2351205.835 | I38: 2224755.762 | J38: 2139069.363 | K38: 1741750.299 | L38: 1867644 | M38: 1983728 | N38: 2050958.566 | O38: 1957515.228 | P38: 1966467 | Q38: 1834925 | R38: 1843880 | S38: 1871608 | T38: 1923917 | U38: 2229573.04 | V38: 2765221.758 | W38: 2567590
A39: Empréstimos / Financiamentos e Debêntures | B39: =[83]Passivo!$K$29 -> 1697146 | C39: 1543439 | D39: 1183044 | E39: 1193789 | F39: 1171159 | G39: 1015833 | H39: 1026708.388 | I39: 852214.2082 | J39: 843129.4143 | K39: 850390.3303 | L39: 1057934 | M39: 1245487 | N39: 1238562.566 | O39: 1173278.228 | P39: 1206968 | Q39: 1051863 | R39: 1069263 | S39: 1113493 | T39: 1207990 | U39: 1356923.605 | V39: 1983343.202 | W39: 1868818
A40: Provisões | B40: =[83]Passivo!$K$35 -> 11199 | C40: 10618 | D40: 11206 | E40: 3939 | F40: 4116 | G40: 4211 | H40: 4051.92134 | I40: 19980.89659 | J40: 20275.17128 | K40: 19687.4231 | L40: 19839 | M40: 19901 | N40: 20269 | O40: 20961 | P40: 21504 | Q40: 21569 | R40: 22131 | S40: 22427 | T40: 23233 | U40: 26387.44396 | V40: 41776 | W40: 4678
A41: Obrigações com Parceiros em Empreendimentos | B41: =[83]Passivo!$K$31 -> 146702 | C41: 143762 | D41: 140921 | E41: 371213 | F41: 475271 | G41: 472940 | H41: 474241.9136 | I41: 494824.5825 | J41: 376086.7134 | K41: 106050.7253 | L41: 105915 | M41: 0 | N41: 0 | O41: - | P41: 0 | Q41: 0 | R41: 0 | S41: 0 | T41: 0 | U41: 0 | V41: 0 | W41: 0
A42: Tributos Diferidos | B42: =[83]Passivo!$K$32 -> 738832 | C42: 736002 | D42: 733091 | E42: 728241 | F42: 723936 | G42: 660174 | H42: 648356.0077 | I42: 575144.8475 | J42: 546872.573 | K42: 523336.838 | L42: 512224 | M42: 423754 | N42: 516151 | O42: 502437 | P42: 501641 | Q42: 486166 | R42: 479895 | S42: 492706 | T42: 477808 | U42: 697163.9467 | V42: 562540.7281 | W42: 520690
A43: Obrigações sociais, trabalhistas e tributárias | B43: - | C43: - | D43: - | E43: - | F43: - | G43: - | L43: 0 | M43: 12548 | N43: 13422 | O43: 13497 | P43: 11675 | Q43: 12939 | R43: 12682 | S43: 12632 | T43: 14184 | U43: 13127.11355
A44: Credores por Imóveis Compromissados | B44: - | C44: - | D44: - | E44: - | F44: - | G44: - | L44: 0 | M44: 0 | N44: 0 | O44: 0 | P44: 0 | Q44: 0 | R44: 0 | S44: 0 | T44: 0 | U44: 0 | V44: 103703.3309 | W44: 107056
A45: Outros | B45: 303727 | C45: 312208 | D45: 308949 | E45: 179926 | F45: 272260 | G45: 268043 | H45: 197847.6043 | I45: 302571.1242 | J45: 352705.4912 | K45: 90435.70704 | L45: 171733 | M45: 282038 | N45: 262554 | O45: 247342 | P45: 224679 | Q45: 262388 | R45: 259909 | S45: 230350 | T45: 200702 | U45: 135970.9301 | V45: 73858.49744 | W45: 66348
A46: Patrimônio Líquido | B46: =SUM(B47:B56) -> 4330565 | C46: =SUM(C47:C56) -> 4006861 | D46: =SUM(D47:D56) -> 3826675 | E46: 3854125 | F46: 3279096 | G46: 2996314 | H46: 3014129 | I46: 2313406.747 | J46: 2242214.781 | K46: 2235412.089 | L46: 2267247 | M46: 2247669 | N46: 2130609.274 | O46: 2139204.213 | P46: 2147779.862 | Q46: 2160304.419 | R46: 2193778.065 | S46: 2204423.059 | T46: 2217181.769 | U46: 2664929.264 | V46: 2289655.295 | W46: 2216788.008
A47: Capital Social Realizado | B47: =[83]Passivo!$K$45 -> 1865950 | C47: 1865950 | D47: 1860183 | E47: 1850049 | F47: 1443151 | G47: 1443151 | H47: 1436138 | I47: 923138 | J47: 923138 | K47: 918003 | L47: 916463 | M47: 916463 | N47: 916463 | O47: 916463 | P47: 915254 | Q47: 915254 | R47: 915254 | S47: 915254 | T47: 914183 | U47: 914182.9207 | V47: 722048.5153 | W47: 721381.9085
A48: Opções outorgadas reconhecidas | B48: =[83]Passivo!$K$47 -> 41534 | C48: 41015 | D48: 40485 | E48: 39654 | F48: 38899 | G48: 37859 | H48: 36728 | I48: 35451.11359 | J48: 35152.11359 | K48: 34856.11359 | L48: 34499 | M48: 33251 | N48: 32911 | O48: 32555.94836 | P48: 0 | T48: 0 | U48: 0 | V48: 0 | W48: 0
A49: Reservas de Capital | B49: - | C49: - | D49: - | E49: 1926057 | F49: 1773200 | G49: 1538343 | H49: 1570381 | I49: 1369808 | J49: 1298871.034 | K49: 1297269.343 | L49: 1291755 | M49: 0 | N49: 0 | O49: 0 | P49: 32074 | Q49: 31358 | R49: 31993 | S49: 30294 | T49: 28244 | U49: 20964.76233 | V49: 16176.09677 | W49: 11815.1
A50: Ações em Tesouraria | B50: =[83]Passivo!$K$49 -> -20012 | C50: -20012 | D50: -20012 | E50: -2501 | F50: - | G50: - | H50: - | I50: - | J50: - | K50: 0 | L50: -383 | M50: -414 | N50: -414 | O50: -414 | P50: -414 | Q50: -414 | R50: -414 | S50: -414 | T50: -414 | U50: -414.00082 | V50: -414.37119 | W50: -414.00082
A51: Reserva de Lucros a Realizar | B51: =[83]Passivo!$K$48 -> 2440788 | C51: 2114074 | D51: 1880035 | E51: - | F51: - | G51: - | H51: -29118 | L51: - | M51: 0 | N51: 0 | O51: 0 | P51: 0 | Q51: 718604 | R51: 718604 | S51: 718604 | T51: 718604 | U51: 1190020.979 | V51: 980027.2831 | W51: 898507
A52: Reserva de Retenção de Lucros | B52: - | C52: - | D52: - | E52: - | F52: - | G52: - | L52: - | M52: 1286135 | N52: 1188254.862 | O52: 1177310.862 | P52: 1188254.862 | Q52: 552070 | R52: 552071 | S52: 552071 | T52: 552070 | U52: 387294.2631 | V52: 492389.06 | W52: 546450
A53: Lucros/Prejuízos Acumulados | B53: =[83]Passivo!$K$46 -> -55397 | C53: -55397 | D53: - | E53: - | F53: - | G53: - | L53: - | M53: 0 | N53: -18999 | O53: 0 | P53: 0 | Q53: -44898 | R53: -13804 | S53: -17700 | T53: 0 | U53: 0 | V53: 0 | W53: 0
A54: Ajuste de Avaliação Patrimonial | B54: =[83]Passivo!$K$50 -> -10553 | C54: -12408 | D54: -11945 | E54: 4436 | F54: -11286 | G54: -23039 | H54: -29118 | I54: -14990.36693 | J54: -14946.36693 | K54: -14716.36693 | L54: -14495 | M54: -13923 | N54: -13981.58802 | O54: -13866.59682 | P54: -13687 | Q54: -22796.58121 | R54: -19877.93538 | S54: -7649.94126 | T54: -7644.23126 | U54: -5297 | V54: 59027 | W54: 31869
A55: Valores reconhecidos em outros resultados abrangentes acumulados no PL relacionados a ativos não circulantes disponíveis a venda | B55: - | C55: - | D55: - | E55: - | F55: - | G55: - | L55: - | M55: 0 | N55: 0 | O55: 0 | P55: 0 | Q55: 0 | R55: 0 | S55: 0 | T55: 0 | U55: 138297.7745 | V55: 72940.41014 | W55: -
A56: Participação de Minoritários | B56: =[83]Passivo!$K$53 -> 68255 | C56: 73639 | D56: 77929 | E56: 36430 | F56: 35132 | G56: 39997 | H56: 42659 | I56: 38028 | J56: 38161 | K56: 50813 | L56: 39409 | M56: 26157 | N56: 26375 | O56: 27155 | P56: 26298 | Q56: 11127 | R56: 9952 | S56: 13964 | T56: 12139 | U56: 19878.56519 | V56: 20401.71118 | W56: 7179
A58: Dívida Líquida/Caixa Líquido* | B58: =[84]Planilha1!$C$19*1000 -> 563524.6471 | C58: 384787 | D58: 224400 | E58: 186127 | F58: 153845 | G58: 311752 | H58: 254183.7271 | I58: 0 | J58: -668279.5015 | K58: -676260.9712 | L58: 568818.2799 | M58: 1432694 | N58: 1390662 | O58: 1117726.605 | P58: 1305405 | Q58: 1268166 | R58: 1223682 | S58: 1160684 | T58: 1418652 | U58: 1725846.857 | V58: 2096433.293 | W58: 1556255
A59: Contas a Receber | B59: =SUM(B7,B15) -> 1062527 | C59: =SUM(C7,C15) -> 733487 | D59: =SUM(D7,D15) -> 629224 | E59: =SUM(E15,E7) -> 508299 | F59: =SUM(F15,F7) -> 459487 | G59: 312080 | H59: 288125.2491 | I59: 299932.6627 | J59: 271686.6483 | K59: 256602.9836 | L59: 388291.2059 | M59: 247681 | N59: 235163 | O59: 202026 | P59: 225230 | Q59: 308105 | R59: 331395 | S59: 348381 | T59: 669205 | U59: 590969.8358 | V59: 640165.559 | W59: 826829.641
A60: Dívida Líquida Ajustada | M60: 1185013 | N60: 1155499 | O60: 915700.6054 | P60: 1080175 | Q60: 960061 | R60: 892287 | S60: 812303 | T60: 749447 | U60: 1134877.022 | V60: 1456267.734 | W60: 729425.359
A62: # total de ações JHSF3 | B62: 689024353 | C62: 689024353 | D62: 689024353 | E62: 685530641 | F62: 682241829 | G62: 641241829 | H62: 638059981 | I62: 530059981 | J62: 530059981 | K62: 527233245 | L62: 526383839 | M62: 526383839 | N62: 526383839 | O62: 526383839 | P62: 525661247 | Q62: 525661247 | R62: 525661247 | S62: 525661247 | T62: 525000000 | U62: 525000000 | V62: 432269894 | W62: 432043157
A63: Valor Patrimonial da ação (Reais) | M63: 4.270019012 | N63: 4.047634285 | O63: 4.063962559 | P63: 4.085863042 | Q63: 4.109689332 | R63: 4.173368452 | S63: 4.193619125 | T63: 4.223203369 | U63: 5.076055742 | V63: 5.296818786 | W63: 5.130941138
A65: *Exclui divida mandatoriamente conversível em % de empreendimento de 120,3MM.
A66: OBS: As informações contidas nesta planilha são gerenciais e podem apresentar divergências com as demonstrações financeiras oficiais divulgadas na CVM (ITR/DFP).

Sheet Fluxo de Caixa
A4: Fluxo de Caixa Acumulado (R$'Mil) | B4: 6M21 | C4: 1T21 | D4: 2020 | E4: 9M20 | F4: 6M20 | G4: 1T20 | H4: 2019 | I4: 9M19 | J4: 6M19 | K4: 1T19 | L4: 2018 | M4: 9M18 | N4: 6M18 | O4: 1T18 | P4: 2017 | Q4: 9M17 | R4: 6M17 | S4: 1T17 | T4: 2016 | U4: 2015 | V4: 2014 | W4: 2013
A5: Fluxo de caixa líquido das atividades operacionais | B5: =SUM(B6:B46) -> 222716 | C5: =SUM(C6:C46) -> 130726 | D5: =SUM(D6:D46) -> 276653 | E5: =SUM(E6:E46) -> 171345 | F5: =SUM(F6:F46) -> 103949 | G5: =SUM(G6:G46) -> 13489 | H5: =SUM(H6:H46) -> 97797.36712 | I5: -10253.48176 | J5: -7942.370606 | K5: -40971.74491 | L5: -108551 | M5: -11854 | N5: 18120 | O5: 8325.94836 | P5: -107778.9908 | Q5: 288807 | R5: 286470 | S5: 263464.8577 | T5: -353945.0008 | U5: 283149 | V5: =SUM(V6:V46)+1 -> 235662.3334 | W5: =SUM(W6:W46)-1 -> -17794.5245
A7: Lucro antes do IR e CSLL | B7: =[83]DFC!$K$11 -> 548931 | C7: 206965 | D7: 751064 | E7: 548333 | F7: 358554 | G7: 32685 | H7: 472588.8031 | I7: 186350.2888 | J7: 63246.93983 | K7: 30589.87228 | L7: 211103 | M7: 40868 | N7: 12788 | O7: -7072 | P7: 40352 | Q7: 588 | R7: 22589 | S7: -4094.584355 | T7: -439593 | U7: 246376 | V7: 101896 | W7: 479752.4112
A9: Despesas (receitas) que não afetam o fluxo de caixa:
A10: Depreciação e amortização de bens do ativo imobilizado e intangível | B10: =[83]DFC!$K$14 -> 30557 | C10: 16191 | D10: 25523 | E10: 17253 | F10: 12066 | G10: 6883 | H10: 24759 | I10: 15987 | J10: 10237 | K10: 5290.05444 | L10: 13545 | M10: 9702 | N10: 6371 | O10: 3965 | P10: 13872.77242 | Q10: 11622 | R10: 7083 | S10: 3122.90525 | T10: 14593.97264 | U10: 17390 | V10: 10793 | W10: 10575
A11: Equivalência patrimonial | B11: =[83]DFC!$K$26 -> -2677 | C11: -245 | D11: -1042 | E11: 565 | F11: 93 | G11: 132 | H11: 360 | I11: 1028 | J11: 528 | K11: 1228.21183 | L11: 3237 | M11: 2968 | N11: 2095 | O11: -255 | P11: 67 | Q11: 136 | R11: 166 | S11: -48 | T11: -2710 | U11: 217 | V11: -3842.210886 | W11: -941.7424
A12: Juros e variações monetárias sobre empréstimos, financiamentos e debêntures | B12: =[83]DFC!$K$17 -> 61471 | C12: 29442 | D12: 79090 | E12: 56297 | F12: 35603 | G12: 22939 | H12: 62418 | I12: 50589 | J12: 34157 | K12: 17546.29593 | L12: 95302 | M12: 78536 | N12: 51876 | O12: 22929 | P12: 124837.434 | Q12: 130986 | R12: 76475 | S12: 38808 | T12: 247307.0394 | U12: 234993 | V12: 168163 | W12: 98912.19924
A13: Amortizaçao de custos de empréstimos, financiamentos, debêntures e obrigações com parceiros | B13: =[83]DFC!$K$24 -> 2574 | C13: 1351 | D13: 10915 | E13: 8887 | F13: 8208 | G13: 2716 | H13: 42513 | I13: 39753 | J13: 37348 | K13: 5031.64518 | L13: 19448 | M13: 14254 | N13: 10122 | O13: 1050 | P13: -1452.89102 | Q13: 0 | R13: 0 | S13: - | T13: 0 | U13: 0 | V13: 0 | W13: 0
A14: Juros e variações monetárias sobre ativos e passivos | B14: =[83]DFC!$K$21 -> 1371 | C14: - | D14: -5782 | E14: -5425 | F14: -7037 | G14: -5727 | H14: -9704 | I14: -9012 | J14: -6028 | K14: -3243 | L14: -45303 | M14: -7291 | N14: -3357 | O14: -1283 | P14: 512 | Q14: 0 | R14: 0 | S14: -
A15: Resultado com variação cambial acumulada em outros resultados abrangentes | B15: - | C15: - | D15: - | E15: - | F15: - | G15: - | H15: - | I15: - | J15: - | K15: - | L15: - | M15: - | N15: 0 | O15: 0 | P15: 0 | Q15: 0 | R15: 0 | S15: 0 | T15: -131005 | U15: 0 | V15: 0 | W15: 0
A16: Impostos diferidos | B16: - | C16: - | D16: - | E16: - | F16: - | G16: - | H16: - | I16: - | J16: - | K16: - | L16: - | M16: - | N16: 0 | O16: 0 | P16: 0 | Q16: 0 | R16: 0 | S16: 0 | T16: 0 | U16: 0 | V16: -1606 | W16: -30734.74041
A17: Ajustes a valor presente | B17: - | C17: - | D17: - | E17: - | F17: - | G17: - | H17: - | I17: - | J17: - | K17: - | L17: - | M17: 614 | N17: -75 | O17: 0 | P17: -2133 | Q17: -1719 | R17: -1462 | S17: 134 | T17: 447.78826 | U17: -1814 | V17: 3779 | W17: -13226
A18: Juros capitalizados ao imobilizado em andamento | B18: - | C18: - | D18: - | E18: - | F18: - | G18: - | H18: - | I18: - | J18: - | K18: - | L18: - | M18: - | N18: 0 | O18: 0 | P18: 0 | Q18: -23490 | R18: -15776 | S18: -7938 | T18: 0 | U18: 0 | V18: 0 | W18: 0
A19: Despesas comerciais - amortização de stand | B19: - | C19: - | D19: - | E19: - | F19: - | G19: - | H19: - | I19: - | J19: - | K19: - | L19: - | M19: - | N19: 0 | O19: 0 | P19: 0 | Q19: 0 | R19: 0 | S19: 0 | T19: 1801.47709 | U19: 1743 | V19: 508 | W19: 488
A20: Perda estimada com créditos de liquidação duvidosa | B20: - | C20: - | D20: - | E20: - | F20: - | G20: - | H20: - | I20: - | J20: - | K20: - | L20: - | M20: -6556 | N20: -6391 | O20: -3454 | P20: 2597 | Q20: 4782 | R20: 2799 | S20: -116.4631546 | T20: 21171.019 | U20: 30723 | V20: 21978 | W20: 806.13853
A21: Provisões para perdas com vendas realizadas | B21: - | C21: - | D21: - | E21: - | F21: - | G21: - | H21: - | I21: - | J21: - | K21: - | L21: - | M21: - | N21: 0 | O21: 0 | P21: 0 | Q21: 0 | R21: - | S21: 0 | T21: 0 | U21: 0 | V21: 0 | W21: 0
A22: Provisões para contingência | B22: - | C22: - | D22: - | E22: - | F22: - | G22: - | H22: - | I22: - | J22: - | K22: - | L22: - | M22: -1603 | N22: -1235 | O22: -543 | P22: -2270 | Q22: -1664 | R22: -1138 | S22: -806 | T22: -3153.51465 | U22: 509 | V22: 1795 | W22: -7590.65
A23: Provisão para plano de opções de ações | B23: - | C23: - | D23: - | E23: - | F23: - | G23: - | H23: - | I23: - | J23: - | K23: - | L23: - | M23: 1177 | N23: 837 | O23: 481.94836 | P23: 3830 | Q23: 3114 | R23: 3749 | S23: 2050 | T23: 7278.86333 | U23: 0 | V23: 4361.58341 | W23: 3391
A24: Valor Justo das Propriedades Para Investimentos | B24: =[83]DFC!$K$29 -> 282 | C24: -258 | D24: -195596 | E24: -210340 | F24: -205493 | G24: -28160 | H24: -437327.6828 | I24: -183377.4905 | J24: -112532.6413 | K24: -50751.27119 | L24: -206205 | M24: -31729 | N24: -15680 | O24: 2452 | P24: -155970 | Q24: -99661 | R24: -89259 | S24: -34838 | T24: -35578 | U24: -313861 | V24: -123514.0653 | W24: -389455.4724
A25: Atualização de cessão de uso fruto | B25: - | C25: - | D25: - | E25: - | F25: - | G25: - | H25: - | I25: 4145 | J25: 1114 | K25: - | L25: - | M25: - | N25: - | O25: - | P25: - | Q25: - | R25: - | S25: - | T25: - | U25: - | V25: - | W25: -
A26: Linearização da receita | B26: - | C26: - | D26: - | E26: - | F26: - | G26: - | H26: - | I26: - | J26: - | K26: - | L26: - | M26: - | N26: 0 | O26: 0 | P26: -2605 | Q26: 0
A27: Resultado de Operações Descontinuadas | B27: - | C27: - | D27: - | E27: - | F27: - | G27: - | H27: - | I27: - | J27: - | K27: - | L27: - | M27: - | N27: 0 | O27: 0 | P27: 0 | Q27: 0 | R27: 0 | S27: 0 | T27: 134916.8374 | U27: -26697 | V27: - | W27: 0
A28: Demais Ajustes | B28: =[83]DFC!$K$36 -> 23299 | C28: -14408 | D28: -11212 | E28: -15039 | F28: 660 | G28: 4190 | H28: -7984 | I28: -12386.24628 | J28: -1947.97159 | K28: 3863.28023 | L28: 10937 | M28: - | P28: 0 | Q28: 0
A30: Variação nos ativos e passivos circulantes e não circulantes:
A31: Títulos e valores mobiliários | B31: - | C31: - | D31: - | E31: - | F31: - | G31: - | H31: - | J31: - | K31: - | L31: - | M31: 0 | N31: 0 | O31: 0 | P31: 0 | Q31: 0 | R31: 0 | S31: 0 | T31: -1295.00673 | U31: 33605 | V31: 0 | W31: 0
A32: Contas a receber | B32: =[83]DFC!$K$39 -> -423467 | C32: -100229 | D32: -399293 | E32: -278082 | F32: -152956 | G32: -8685 | H32: -27805.04316 | I32: -35127.4568 | J32: -8498.442384 | K32: 6604.222338 | L32: -132275 | M32: -28393 | N32: -16399 | O32: 12773 | P32: 122473 | Q32: 343998 | R32: 337104 | S32: 313415 | T32: -107967.8793 | U32: 56986 | V32: 161813 | W32: -116046.1385
A33: Imóveis a comercializar | B33: =[83]DFC!$K$40 -> -21362 | C33: -7814 | D33: -13527 | E33: 48424 | F33: 45377 | G33: 16700 | H33: 57500.2004 | I33: -4314.45197 | J33: 32422.78698 | K33: 17816.80111 | L33: 12203 | M33: 331 | N33: 323 | O33: -4254 | P33: -32609 | Q33: -4938 | R33: -3720 | S33: -3802 | T33: 18677.8797 | U33: -81727 | V33: -76723 | W33: -61011
A34: Despesas com vendas a apropriar | B34: - | C34: - | D34: - | E34: - | F34: - | G34: - | H34: - | J34: - | K34: - | L34: - | M34: -1206 | N34: -3461 | O34: -1987 | P34: 1562 | Q34: - | R34: -1023 | S34: -1572 | T34: 263.02183 | U34: 966 | V34: -212.3745 | W34: 373
A35: Partes relacionadas | B35: - | C35: - | D35: 103323 | E35: 88953 | F35: 2791 | G35: 1015 | H35: - | I35: -21142 | J35: 834 | K35: -37202 | L35: 10125 | M35: -20179 | N35: -4441 | O35: -6774 | P35: -57051 | Q35: -66986 | R35: -44425 | S35: -37565 | T35: -47181.77548 | U35: 114871 | V35: -2490 | W35: -8821
A36: Demais ativos | B36: - | C36: - | D36: - | E36: 48570 | F36: 14765 | G36: - | H36: - | J36: -9013 | K36: - | M36: 10934 | N36: 10542 | O36: 5415 | P36: 6782 | Q36: 8998 | R36: -10025 | S36: -8072 | T36: 52411.25285 | U36: 21600 | V36: -19608 | W36: 8509.217
A37: Aumento (diminuição) de contas a pagar por aquisição de imóveis | B37: - | C37: - | D37: - | E37: - | F37: - | G37: - | H37: - | K37: - | L37: - | M37: 0 | N37: 0 | O37: 0 | P37: 0 | Q37: 0 | R37: 0 | S37: 0 | T37: 0 | U37: 0 | V37: 0 | W37: -6652
A38: Adiantamento de clientes | B38: =[83]DFC!$K$52 -> 23435 | C38: 45435 | D38: 143141 | E38: 64034 | F38: 29596 | G38: 6910 | H38: 10576.08964 | I38: 16730.97751 | J38: 3436.957806 | K38: 4409.405836 | L38: 14839 | M38: 14060 | N38: 33988 | O38: 13392 | P38: -32905 | Q38: -21771 | R38: -13164 | S38: -9026 | T38: 28668.20558 | U38: -27580 | V38: 38366 | W38: 36577.07447
A39: Impostos e contribuições a recolher | B39: - | C39: - | D39: - | E39: - | F39: - | G39: - | H39: - | K39: - | L39: - | M39: 0 | N39: 0 | O39: 0 | P39: 3047 | Q39: 0 | R39: 0 | S39: 0 | T39: 0 | U39: 0 | V39: -5482 | W39: 34053
A40: Outros passivos | B40: =[83]DFC!$K$53 -> 25561 | C40: -25471 | D40: 4737 | E40: - | F40: - | G40: -14812 | H40: 14050 | I40: -13048.25076 | J40: - | K40: -10839.26289 | L40: 22203 | M40: - | N40: 0 | O40: 0 | P40: -15310 | Q40: 8166 | R40: 18800 | S40: 15762 | T40: -105476.7265 | U40: -16452 | V40: -27165 | W40: -16832.12011
A41: Fornecedores | B41: - | C41: - | D41: - | E41: - | F41: - | G41: - | H41: - | I41: 33289 | J41: 3245 | K41: 298 | L41: - | M41: - | N41: - | O41: - | P41: - | Q41: - | R41: - | S41: - | T41: - | U41: - | V41: - | W41: -
D42: -
A43: Imposto de renda e contribuição social pagos | B43: =[83]DFC!$K$56 -> -27295 | C43: -12462 | D43: -27887 | E43: -19152 | F43: -3191 | G43: -3191 | H43: -6281 | I43: -3978 | J43: -2032 | K43: -1572 | L43: -2682 | M43: -1161 | N43: -2855 | O43: -293 | P43: -11230 | Q43: -3354 | R43: -2303 | S43: -1949 | T43: -7521.455154 | U43: -8699 | V43: -17148.59934 | W43: -39919.70106
A44: Juros sobre empréstimos e financiamentos pagos | B44: =[83]DFC!$K$59 -> -18170 | C44: -7147 | D44: -47367 | E44: -42679 | F44: -34651 | G44: -19670 | H44: -97042 | I44: -75739.85175 | J44: -54460 | K44: -30042 | L44: -72125 | M44: -38894 | N44: -25107 | O44: -12117 | P44: -108445.3062 | Q44: - | R44: - | S44: - | T44: 0 | U44: 0 | V44: 0 | W44: 0
A45: Juros sobre debêntures pagos | B45: =[83]DFC!$K$60 -> -1794 | C45: -624 | D45: -1010 | E45: -830 | F45: -436 | G45: -436 | H45: -824 | I45: - | J45: - | K45: - | L45: -62903 | M45: -48286 | N45: -31821 | O45: -16100 | P45: -5730 | Q45: - | R45: - | S45: - | T45: 0 | U45: 0 | V45: 0 | W45: 0
A46: Aquisição de terrenos a desenvolver | B46: - | C46: - | D46: -138424 | E46: -138424 | F46: - | G46: - | H46: - | I46: - | J46: - | K46: - | L46: - | M46: - | P46: - | Q46: - | R46: - | S46: -
A48: Fluxo de caixa de atividades de investimento | B48: =SUM(B49:B58) -> -135056 | C48: =SUM(C49:C58) -> -52743 | D48: =SUM(D49:D58) -> -558671 | E48: =SUM(E49:E58) -> -403111 | F48: -90651 | G48: -12864.8552 | H48: -357140 | I48: 62710 | J48: 93511 | K48: =SUM(K49:K58)-1 -> 216106.7458 | L48: =SUM(L49:L58) -> 293341 | M48: -62322 | N48: -43441 | O48: -20941 | P48: 250167 | Q48: -41149.0893 | R48: -31244 | S48: -12622 | T48: 786377.0859 | U48: -268900 | V48: -430070 | W48: -422759
A49: Venda (aquisição) de títulos e valores mobiliários | B49: =[83]DFC!$K$65 -> -1206 | C49: 2289 | D49: -293356 | E49: - | F49: - | G49: 38583.1448 | H49: -68732 | I49: 116223 | J49: - | K49: - | L49: -106803 | M49: 0 | N49: 0 | O49: 0 | P49: 11254 | Q49: 274.9107 | R49: 0 | S49: 0 | T49: 0 | U49: 0 | V49: 0 | W49: -1341
A50: Venda (aquisição) de bens do ativo imobilizado | B50: - | C50: - | D50: - | E50: -284475 | F50: 9779 | G50: - | H50: - | I50: - | J50: 109358 | K50: 124350.4233 | L50: - | M50: 0 | N50: -42070 | O50: -20495 | P50: - | Q50: -41424 | R50: -31244 | S50: -12623 | T50: 0 | U50: 0 | V50: 0 | W50: 0
A51: Venda (aquisição) de bens do ativo imobilizado e intangível | B51: - | C51: - | D51: - | E51: - | F51: -6286 | G51: - | H51: -4573 | I51: - | J51: -1483 | K51: -495.57324 | L51: -4657 | M51: -82322 | N51: -1371 | O51: -446 | P51: -1857 | Q51: - | R51: - | S51: 1 | T51: -130375 | U51: -266400 | V51: -433139 | W51: 0
A52: Aquisição de propriedades para investimento | B52: - | C52: - | D52: - | E52: - | F52: - | G52: - | H52: - | J52: - | L52: - | P52: - | Q52: - | R52: - | S52: - | T52: - | U52: - | V52: - | W52: -
A53: Partes relacionadas, líquidas | B53: =[83]DFC!$K$71 -> -3724 | C53: 1497 | D53: 50724 | E53: 69313 | F53: -9675 | G53: -4426 | H53: -92082 | I53: -67141 | J53: -65321 | K53: - | L53: - | P53: - | Q53: - | R53: - | S53: - | T53: - | U53: - | V53: - | W53: -
A54: Venda (aquisição) de bens do ativo imobilizado e propriedade para investimentos | B54: =[83]DFC!$K$68 -> -126954 | C54: -53727 | D54: -307507 | E54: -180850 | F54: -84469 | G54: -42149 | H54: -314155 | I54: -105373 | J54: -77531 | K54: -36235.10425 | L54: -130426 | M54: 20000 | N54: 0 | O54: 0 | P54: -43743 | Q54: 0 | R54: - | S54: - | T54: 425295.9872 | U54: 0 | V54: 0 | W54: -420519
A55: Venda (aquisição) de Investimento em participações societárias | B55: =[83]DFC!$K$73 -> 2400 | C55: - | D55: - | E55: - | F55: - | G55: - | H55: 128488 | I55: 128488 | J55: 128488 | K55: 128488 | L55: 535227 | M55: 0 | N55: 0 | O55: 0 | P55: 284513 | Q55: 0 | R55: 0 | S55: 0 | T55: 491456.0987 | U55: -2500 | V55: 0 | W55: 0
A56: Aumento (diminuição) de Investimento em participações societárias | B56: - | C56: - | D56: - | E56: - | F56: - | G56: - | H56: - | J56: - | L56: - | M56: 0 | N56: 0 | O56: 0 | P56: 0 | Q56: 0 | R56: 0 | S56: - | T56: 0 | U56: 0 | V56: 0 | W56: -3249
A57: Baixa (aquisição) de bens do ativo intangível | B57: =[83]DFC!$K$69 -> -5572 | C57: -2802 | D57: -8532 | E57: -7099 | F57: - | G57: -4873 | H57: - | I57: -9487 | J57: - | L57: - | M57: 0 | N57: 0 | O57: 0 | P57: 0 | Q57: 0 | R57: 0 | S57: 0 | T57: 0 | U57: 0 | V57: 3069 | W57: 2350
A58: Aumento de capital em controladas | B58: - | C58: - | D58: - | E58: - | F58: - | G58: - | H58: -6086 | I58: - | J58: - | K58: - | L58: - | M58: - | N58: - | O58: - | P58: - | Q58: - | R58: - | S58: - | T58: - | U58: - | V58: - | W58: -
A60: Fluxo de caixa de atividades de financiamento | B60: =SUM(B61:B77) -> 55938 | C60: =SUM(C61:C77) -> 58940 | D60: =SUM(D61:D77) -> 475843 | E60: =SUM(E61:E77) -> 254899 | F60: 11029 | G60: -90372 | H60: 503127 | I60: -69505.99674 | J60: -68115 | K60: -181863.5544 | L60: -151366 | M60: =SUM(M61:M64) -> 70886 | N60: 26007 | O60: 12791 | P60: =SUM(P61:P77) -> -202915 | Q60: -303170 | R60: -293334 | S60: -312136 | T60: =SUM(T61:T77) -> -514152.9731 | U60: =SUM(U61:U77) -> -210808 | V60: =SUM(V61:V77) -> -30119.65195 | W60: =SUM(W61:W77) -> 463507
A61: Ingressos de novos empréstimos e financiamentos | B61: =[83]DFC!$K$80 -> 520431 | C61: 355872 | D61: 673883 | E61: 383845 | F61: 359420 | G61: - | H61: 1017639 | I61: 782994 | J61: 722911 | K61: 45000 | L61: 284290 | M61: 125855 | N61: 86987 | O61: 35161 | P61: 131268 | Q61: 111568 | R61: 74276 | S61: 15000 | T61: 592259.474 | U61: 738149 | V61: 444152.0592 | W61: 386406
A62: Emissão de Debêntures | B62: - | C62: - | D62: - | E62: - | F62: - | G62: -1302 | H62: - | J62: - | L62: - | M62: 42469 | N62: 10861 | O62: 0 | P62: 0 | Q62: 0 | R62: 0 | S62: 0 | T62: 0 | U62: 0 | V62: 0 | W62: 800000
A63: Pagamento de Debêntures | B63: - | C63: -12079 | D63: -339193 | E63: - | F63: - | G63: - | H63: - | J63: - | L63: -107103 | M63: 0 | N63: 0 | O63: 0 | P63: -78750 | Q63: -84480 | R63: -84480 | S63: -94311 | T63: -307432.7879 | U63: -229113 | V63: -165467.9583 | W63: -625645
A64: Pagamento de empréstimos e financiamentos | B64: =[83]DFC!$K$83 -> -320590 | C64: -287385 | D64: - | E64: -400573 | F64: -288822 | G64: -55607 | H64: -1053608 | I64: -941983.9967 | J64: -874947 | K64: -209254.5544 | L64: -328553 | M64: -97438 | N64: -71841 | O64: -22370 | P64: -255433 | Q64: -330258 | R64: -283130 | S64: -232825 | T64: -798979.6593 | U64: -911978 | V64: -283803.7528 | W64: -149564
A65: Distribuição de Dividendos | B65: =[83]DFC!$K$85 -> -144361 | C65: - | D65: -115524 | E65: -87913 | F65: -33912 | G65: -33912 | H65: -34612 | I65: -34612 | J65: -34612 | K65: -19149 | L65: - | M65: 0 | N65: 0 | O65: 0 | P65: 0 | Q65: 0 | R65: 0 | S65: 0 | T65: 0 | U65: 0 | V65: -25000 | W65: -80000
A66: Transações com Partes Relacionadas | B66: - | C66: - | D66: -89088 | E66: - | F66: - | G66: - | H66: - | J66: - | L66: - | M66: 0 | N66: 0 | O66: 0 | P66: 0 | Q66: 0 | R66: 0 | S66: 0 | T66: 0 | U66: 0 | V66: 0 | W66: 0
A67: Obrigações com Perceiros em Empreendimentos | B67: - | C67: - | D67: - | E67: - | F67: - | G67: - | H67: - | J67: - | L67: - | M67: 0 | N67: 0 | O67: 0 | P67: 0 | Q67: 0 | R67: 0 | S67: 0 | T67: 0 | U67: 0 | V67: 0 | W67: 123371
A68: Aumento (Redução) de Capital | B68: - | C68: - | D68: -26379 | E68: -26235 | F68: -1655 | G68: - | H68: -29018 | J68: - | L68: - | M68: 0 | N68: 0 | O68: 0 | P68: 0 | Q68: 0 | S68: 0 | T68: 0 | U68: 192134 | V68: 0 | W68: 5166
A69: Aumento (diminuição) de capital dos não controladores | B69: - | C69: - | D69: - | E69: - | F69: - | G69: - | H69: - | J69: - | L69: - | M69: 0 | N69: 0 | O69: 0 | P69: 0 | Q69: 0 | R69: 0 | S69: 0 | T69: 0 | U69: 0 | V69: 0 | W69: 3704
A70: Ações em Tesouraria | B70: - | C70: - | D70: -20012 | E70: - | F70: - | G70: - | H70: - | I70: - | J70: - | K70: - | L70: - | M70: - | N70: - | O70: - | P70: - | Q70: - | R70: - | S70: - | T70: - | U70: - | V70: - | W70: 69
A71: Integralização de capital | B71: =[83]DFC!$K$77 -> 5767 | C71: 5767 | D71: 424045 | E71: 413911 | F71: 7013 | G71: 7013 | H71: 519675 | I71: 6675 | J71: 6675 | K71: 1540 | L71: - | M71: - | N71: - | O71: - | P71: - | Q71: - | R71: - | S71: - | T71: - | U71: - | V71: - | W71: -
A72: Recebimento por cessão de usufruto de ativo | B72: - | C72: - | D72: - | E72: - | F72: - | G72: - | H72: 112213 | I72: 112213 | J72: 112213 | K72: - | L72: - | M72: - | N72: - | O72: - | P72: - | Q72: - | R72: - | S72: - | T72: - | U72: - | V72: - | W72: -
A73: Pagamento por cessão de usufruto de ativo | B73: - | C73: - | D73: -184 | E73: -184 | F73: -184 | G73: -179 | H73: -953 | I73: -924 | J73: -355 | K73: - | L73: - | M73: - | N73: - | O73: - | P73: - | Q73: - | R73: - | S73: - | T73: - | U73: - | V73: - | W73: -
A74: Encargos financeiros sobre arrendamentos | B74: - | C74: - | D74: - | E74: - | F74: - | G74: - | H74: - | I74: 6132 | J74: - | K74: - | L74: - | M74: - | N74: - | O74: - | P74: - | Q74: - | R74: - | S74: - | T74: - | U74: - | V74: - | W74: -
A75: Pagamento para parceiros em empreendimentos | B75: - | C75: - | D75: - | E75: - | F75: -5245 | G75: -3277 | H75: -14980 | J75: - | L75: - | M75: - | N75: - | O75: - | P75: - | Q75: - | R75: - | S75: - | T75: - | U75: - | V75: - | W75: -
A76: Pagamento de arrendamentos - principal | B76: =[83]DFC!$K$90 -> -5309 | C76: -3235 | D76: -13205 | E76: -9452 | F76: -7086 | G76: -3108 | H76: -13229 | J76: - | L76: - | M76: - | N76: - | O76: - | P76: - | Q76: - | R76: - | S76: - | T76: - | U76: - | V76: - | W76: -
A77: Aquisição de participação de minoritário | B77: - | C77: - | D77: -18500 | E77: -18500 | F77: -18500 | G77: - | H77: - | L77: - | M77: - | N77: - | O77: - | P77: - | Q77: - | R77: - | S77: - | T77: - | U77: - | V77: - | W77: -
A79: Aumento (diminuição) da disponibilidade de caixa | B79: =B82-B81 -> 143598 | C79: =C82-C81 -> 136923 | D79: =D82-D81 -> 193825 | E79: =E60+E48+E5 -> 23133 | F79: =F60+F48+F5 -> 24327 | G79: =G60+G48+G5-1 -> -89748.8552 | H79: =H60+H48+H5 -> 243784.3671 | I79: -17049.4785 | J79: 17453.62939 | K79: -6728.553454 | L79: 33424 | M79: -3290 | N79: 686 | O79: 175.94836 | P79: =P60+P48+P5 -> -60526.99077 | Q79: =Q60+Q48+Q5 -> -55512.0893 | R79: =R60+R48+R5 -> -38108 | S79: =S60+S48+S5 -> -61293.14226 | T79: =T60+T48+T5 -> -81720.88796 | U79: -153974 | V79: =V60+V48+V5-1 -> -224528.3185 | W79: =W60+W48+W5-1 -> 22952.4755
A81: Caixa no início do exercício | B81: =[83]DFC!$K$95 -> 480160 | C81: 480160 | D81: 286335 | E81: 286335 | F81: 286335 | G81: 286.335 | H81: 42550.50694 | I81: 42550.50694 | J81: 42550.50694 | K81: 42550.50694 | L81: 9126 | M81: 9126 | N81: 9126 | O81: 9126 | P81: 69653 | Q81: 31545 | R81: 8360 | S81: 69653 | T81: 151376.6919 | U81: 305351 | V81: 529880 | W81: 506928
A82: Caixa no fim do exercício | B82: =[83]DFC!$K$96 -> 623758 | C82: 617083 | D82: 480160 | E82: 309468 | F82: 310663 | G82: 196.587 | H82: 286335.4707 | I82: 25501.46033 | J82: 60003.94055 | K82: 35822.13995 | L82: 42551 | M82: 5836 | N82: 9812 | O82: 9302 | P82: 9126 | Q82: 14141 | R82: 31545 | S82: 8360 | T82: 69655 | U82: 151377 | V82: 305351.8296 | W82: 529880
A85: OBS: As informações contidas nesta planilha são gerenciais e podem apresentar divergências com as demonstrações financeiras oficiais divulgadas na CVM (ITR/DFP)
R90: -17404
R91: 23185
R92: -61293

Sheet Histórico Vendas Incorporação
A4: Vendas | B4: 2T21 | C4: 1T21 | D4: 4T20 | E4: 3T20 | F4: 2T20 | G4: 1T20 | H4: 4T19 | I4: 3T19 | J4: 2T19 | K4: 1T19 | L4: 4T18 | M4: 3T18 | N4: 2T18 | O4: 1T18 | P4: 4T17 | Q4: 3T17* | R4: 2T17
A5: R$ MM | B5: 563.6763868 | C5: 346.4 | D5: 378.6 | E5: 411.1 | F5: 339.7 | G5: 99.8 | H5: 129.2523101 | I5: 141.5378131 | J5: 60.1 | K5: 43.3 | L5: 40.2 | M5: 52.6 | N5: 30.6 | O5: 6 | P5: 8.3 | Q5: -0.1 | R5: 17.8
A6: *Impactada por distratos no empreendimento Fazenda Boa Vista
A8: Vendas contratadas (R$ milhões) | B8: 2T21 | C8: 1T21 | D8: 4T20 | E8: 3T20 | F8: 2T20 | G8: 1T20 | H8: 4T19 | I8: 3T19 | J8: 2T19 | K8: 1T19
A9: Fazenda Boa Vista | B9: 102.6239851 | C9: 105.3 | D9: 193.6 | E9: 289.4657246 | F9: 288.4 | G9: 77.3 | H9: 90.03581526 | I9: 68.7 | J9: 45.6 | K9: 30.92395481
A10: Casa | B10: 12.265 | C10: 23.98227095 | D10: 71.511013 | E10: 89.55372502 | F10: 69.7652109 | G10: 20.40670931 | H10: 25.34252357 | I10: - | J10: - | K10: 28.92395481
A11: Lotes | B11: 90.35898508 | C11: 81.30174751 | D11: 122.1277516 | E11: 199.9119996 | F11: 218.6243219 | G11: 56.866887 | H11: 64.69329169 | I11: 68.7 | J11: 45.6 | K11: 2
A12: Fasano Cidade Jardim¹ | B12: 9.621 | C12: 12.2 | D12: 35.9 | E12: 26.4850979 | F12: 5.1 | G12: 9.5 | H12: 35.3 | I12: 60.9 | J12: - | K12: -
A13: Horto Bela Vista | B13: - | C13: - | D13: 1.2 | E13: - | F13: - | G13: - | H13: - | I13: 1.7 | J13: - | K13: 4.1
A14: Townhouse | B14: - | C14: - | D14: 5 | E14: - | F14: - | G14: - | H14: - | I14: - | J14: 13.2 | K14: -
A15: Boa Vista Village | B15: 160.353066 | C15: 229.1 | D15: 143.3 | E15: 95.18273157 | F15: 46.1 | G15: 13.1 | H15: 16.9 | I15: - | J15: - | K15: -
A16: Apartamentos | B16: 64.58661802 | C16: 60.343615 | D16: 56.92263465 | E16: 35.47241157 | F16: 46.1 | G16: 13.08081038 | H16: 16.87542092 | I16: - | J16: - | K16: -
A17: Lotes | B17: 95.76644797 | C17: 168.7121036 | D17: 86.35662323 | E17: 59.71032 | F17: - | G17: - | H17: - | I17: - | J17: - | K17: -
A18: Catarina Town² | B18: 99.6 | C18: - | D18: - | E18: - | F18: - | G18: - | H18: - | I18: - | J18: - | K18: -
A19: Boa Vista Estates | B19: 190.8563749 | C19: - | D19: - | E19: - | F19: - | G19: - | H19: - | I19: - | J19: - | K19: -
A20: Outros | B20: 0.62196084 | C20: - | D20: - | E20: - | F20: - | G20: - | H20: 0.2 | I20: =11.9-1.7 -> 10.2 | J20: 1.2 | K20: 7.5
A21: Total | B21: =SUM(B9,B12:B15,B18:B20) -> 563.6763868 | C21: =SUM(C9,C12:C15,C18:C20) -> 346.6 | D21: =SUM(D9,D12:D15,D18:D20) -> 379 | E21: 411.1335541 | F21: 339.6 | G21: 99.9 | H21: 142.4358153 | I21: 141.5 | J21: 60 | K21: 42.52395481
A22: Notas: ¹No 1T21, a venda divulgada corresponde a troca de unidade; ²Corresponde a venda de terreno para a XP Investimentos conforme Fato Relevante de 14/12/2020
A24: Unidades Vendidas | B24: 2T21 | C24: 1T21 | D24: 4T20 | E24: 3T20 | F24: 2T20 | G24: 1T20 | H24: 4T19 | I24: 3T19 | J24: 2T19 | K24: 1T19
A25: Fazenda Boa Vista | B25: 6 | C25: 8 | D25: 24 | E25: 75 | F25: =F39 -> 57 | G25: 16 | H25: 25 | I25: 22 | J25: 26 | K25: 12
A26: Fasano Cidade Jardim | B26: 1 | C26: - | D26: 6 | E26: 4 | F26: 1 | G26: 3 | H26: 5 | I26: 8 | J26: - | K26: -
A27: Boa Vista Village | B27: 37 | C27: 54 | D27: 39 | E27: 27 | F27: 16 | G27: 3 | H27: 5 | I27: - | J27: - | K27: -
A28: Boa Vista Estates | B28: 12 | C28: - | D28: - | E28: - | F28: - | G28: - | H28: - | I28: - | J28: - | K28: -
A30: Fazenda Boa Vista | B30: 2T21 | C30: 1T21 | D30: 4T20 | E30: 3T20 | F30: 2T20 | G30: 1T20 | H30: 4T19 | I30: 3T19 | J30: 2T19 | K30: 1T19
A31: Terrenos | B31: 2 | C31: 2 | D31: 1 | E31: 45 | F31: 30 | G31: 9 | H31: 15 | I31: 18 | J31: 26 | K31: 11
A32: Casa | B32: 3 | C32: 6 | D32: =SUM(D33:D38) -> 23 | E32: 30 | F32: 27 | G32: =SUM(G33:G36) -> 7 | H32: =SUM(H33:H36) -> 10 | I32: 4 | J32: - | K32: 1
A33: Barn houses | B33: 2 | C33: 3 | D33: 3 | E33: 6 | F33: 7 | G33: 1 | H33: 2 | I33: - | J33: - | K33: -
A34: Fire houses | B34: - | C34: - | D34: - | E34: - | F34: 3 | G34: 5 | H34: 1 | I34: - | J34: - | K34: -
A35: Sport houses | B35: - | C35: 1 | D35: 13 | E35: 13 | F35: 17 | G35: 1 | H35: 6 | I35: 4 | J35: - | K35: 1
A36: Vila da Hípica | B36: - | C36: - | D36: - | E36: - | F36: - | G36: - | H36: 1 | I36: - | J36: - | K36: -
A37: Stone houses | B37: 1 | C37: - | D37: 1 | E37: 2 | F37: - | G37: - | H37: - | I37: - | J37: - | K37: -
A38: Garden houses | B38: - | C38: 2 | D38: 6 | E38: 9 | F38: - | G38: - | H38: - | I38: - | J38: - | K38: -
A39: Total | B39: =SUM(B31:B32) -> 5 | C39: 8 | D39: =SUM(D31:D32) -> 24 | E39: 75 | F39: 57 | G39: 16 | H39: 25 | I39: 22 | J39: 26 | K39: 12
A41: Boa Vista Village | B41: 2T21 | C41: 1T21 | D41: 4T20 | E41: 3T20 | F41: 2T20 | G41: 1T20 | H41: 4T19 | I41: 3T19 | J41: 2T19 | K41: 1T19
A42: Terrenos³ | B42: 24 | C42: 41 | D42: 23 | E42: 18 | F42: - | G42: - | H42: - | I42: - | J42: - | K42: -
A43: Apartamentos | B43: 12 | C43: =SUM(C44:C45) -> 13 | D43: =SUM(D44:D45) -> 16 | E43: 9 | F43: 16 | G43: 3 | H43: 5 | I43: - | J43: - | K43: -
A44: Surf Lodge | B44: 7 | C44: 6 | D44: 11 | E44: 9 | F44: 16 | G44: 3 | H44: 5 | I44: - | J44: - | K44: -
A45: Golf Lodge | B45: 4 | C45: 7 | D45: 5 | E45: - | F45: - | G45: - | H45: - | I45: - | J45: - | K45: -
A46: Family Office | B46: 1 | C46: - | D46: - | E46: - | F46: - | G46: - | H46: - | I46: - | J46: - | K46: -
A47: Total | B47: =SUM(B42:B43,B46) -> 37 | C47: =SUM(C42:C43,C46) -> 54 | D47: 39 | E47: 27 | F47: 16 | G47: 3 | H47: 5 | I47: - | J47: - | K47: -
A48: ³Correspondem as fases 1,2 e 3 de lotes já lançadas;
A50: Boa Vista Estates | B50: 2T21 | C50: 1T21 | D50: 4T20 | E50: 3T20 | F50: 2T20 | G50: 1T20 | H50: 4T19 | I50: 3T19 | J50: 2T19 | K50: 1T19
A51: Estâncias | B51: 12 | C51: - | D51: - | E51: - | F51: - | G51: - | H51: - | I51: - | J51: - | K51: -

Sheet Projetos Lançados e a Lançar
A3: Projetos | B3: Área Total Disponível(m²) | C3: Área Privativa remanescente (m²) | D3: VGV (R$ mil)¹ | E3: Valor de Custo (R$ mil) | F3: Status | G3: Tipo | H3: Lançamento | I3: Entrega² | J3: Google Maps
A4: Boa Vista | B4: =SUM(B5:B9) -> 27778733 | C4: =SUM(C5:C9) -> 3456410.18 | D4: =SUM(D5:D9) -> 14153907.05 | E4: =SUM(E5:E8) -> 436012.7566 | F4: - | G4: - | H4: - | I4: - | J4: Localização
A5: Fazenda Boa Vista³ | B5: 12000000 | C5: =104682+3357.42 -> 108039.42 | D5: 328044.62 | E5: 205196.5161 | F5: Lançado | G5: Venda de lotes/venda de casas | H5: - | I5: 2007 | J5: -
A6: Boa Vista Village | B6: 2936548 | C6: =141784+12667 -> 154451 | D6: 3384534.96 | E6: 107251.4292 | F6: Lançado e a lançar | G6: Multi-Uso | H6: 2019-12-01 | I6: 1ª fase no 1S23 | J6: -
A7: Village Terrenos | B7: 142185 | C7: 142185 | D7: 213276.795 | F7: Lançado e a lançar | G7: Venda de lotes | H7: 1ª fase 3T20 | I7: - | J7: -
A8: Boa Vista Estates | B8: 6600000 | C8: =SUM('[85]Projetos lançados'!$C$37,'[85]Projetos lançados'!$C$40:$C$42) -> 3051734.76 | D8: 5144717.338 | E8: 123564.8113 | F8: Pré-lançado e a lançar | G8: Multi-Uso | H8: Jun/21 (pré lançamento) | I8: - | J8: -
A9: Complexo Boa Vista IV | B9: 6100000 | C9: TBD | D9: 5083333.333 | E9: TBD | F9: A lançar | G9: Multi-Uso | H9: - | I9: - | J9: -
A10: Parque Catarina | B10: =SUM(B11:B12) -> 1250400 | C10: =SUM(C11:C12) -> 788996 | D10: 15648000 | E10: =SUM(E11:E12) -> 78579.76517 | F10: - | G10: - | H10: - | I10: - | J10: Localização
A11: Catarina Resort | B11: 50400 | C11: 36000 | D11: 648000 | E11: 64823.009 | F11: A lançar | G11: Multi-Uso | H11: 2022 | I11: 2023 | J11: -
A12: Catarina Town | B12: 1200000 | C12: 752996 | D12: 15000000 | E12: 13756.75617 | F12: A lançar | G12: Multi-Uso | H12: 2S21 | I12: 1ªfase em 2025 | J12: -
A13: SP | B13: =SUM(B14:B18) -> 245561 | C13: =SUM(C14:C18) -> 228918 | D13: 6281625 | E13: =SUM(E14:E18) -> 404323.5528 | F13: - | G13: - | H13: - | I13: - | J13: -
A14: Fasano Cidade Jardim | B14: 31833 | C14: 12450 | D14: 435750 | E14: 139984.776 | F14: Lançado | G14: Venda unidades residenciais | H14: 2019-09-01 | I14: 2023 | J14: Localização
A15: Real Parque Residences | B15: 132000 | C15: 80000 | D15: 1360000 | E15: 168250.2728 | F15: A lançar | G15: Venda unidades residenciais | H15: 2S21 | I15: 1ª fase no 2S23 | J15: Localização
A16: EMAE - Entorno SCJ | B16: 20256 | C16: 78367 | D16: 2742845 | E16: 47880.10836 | F16: A lançar | G16: Multi-Uso | H16: - | I16: - | J16: Localização
A17: Santiago 3 - Entorno SCJ | B17: 13072 | C17: 58101 | D17: 1743030 | E17: 48208.39563 | F17: A lançar | G17: Multi-Uso | H17: - | I17: - | J17: -
A18: Terreno Embargado | B18: 48400 | C18: - | D18: - | E18: - | F18: - | G18: - | H18: - | I18: - | J18: Localização
A19: TOTAL | B19: =SUM(B13,B10,B4) -> 29274694 | C19: =SUM(C13,C10,C4) -> 4474324.18 | D19: =SUM(D13,D10,D4) -> 36083532.05 | E19: =E13+E10+E4 -> 918916.0746 | F19: - | G19: - | H19: - | I19: - | J19: -
A21: ¹Todas as projeções de VGV são baseadas na melhor expectativa da Administração, levando em conta condições macroeconômicas e de mercado disponíveis no momento e sujeitos a execução do projeto;
A22: ²Sujeito a alteração;
A23: ³Área privativa e VGV não inclui projetos de locação;
A24: 4Difere da Nota 6 do ITR pois considera Santiago 3 e Catarina Resort e desconsidera Horto.
A26: Para acessar o site:
A27: Fazenda Boa Vista, clique aqui
A28: Boa Vista Village, clique aqui.
A29: Fasano Cidade Jardim, clique aqui.

Sheet Projetos Lançados
A3: Projetos de incorporação lançados (Fases lançadas e a lançar)
A5: FBV (lotes + área para uso misto) | B5: m² | C5: R$/m² | D5: VGV (R$ MM)
B6: 104681.54 | C6: 3000 | D6: 314.04462
A8: FBV (casas para venda) | B8: m² | C8: R$/m² | D8: VGV (R$ MM)
B9: 3357.42 | C9: 4169.86853 | D9: 14
A11: FBV ( casas + terrenos para locação )¹ | B11: m² lote | C11: R$/m² | D11: VGV (R$ MM) lotes + casas
B12: 119535.86 | C12: - | D12: 418.60758
A13: ¹Não inclui área do HFBV e BV Market de mais de 100 mil m². Atualmente as unidades para a locação não estão à venda. Preço do lote R$ 3,0 mil/m².
A15: Total do projeto - Fazenda Boa Vista | B15: 227574.82 | C15: - | D15: =SUM(D12,D9,D6) -> 746.6522
A17: Village Apartamentos + Family Office | B17: m² | C17: R$/m² | D17: VGV (R$ MM)
B18: =SUM(B21,B24,B27) -> 12667.22 | C18: - | D18: =SUM(D21,D24,D27) -> 268.58696
A20: Village unidades Surf Lodge | B20: m² | C20: R$/m² | D20: VGV (R$ MM)
B21: 1780.81 | C21: 22000 | D21: 39.17782
A23: Village unidades Golf Lodge | B23: m² | C23: R$/m² | D23: VGV (R$ MM)
B24: 5840.47 | C24: 22000 | D24: 128.49034
A26: Village Family Office | B26: m² | C26: R$/m² | D26: VGV (R$ MM)
B27: 5045.94 | C27: 20000 | D27: 100.9188
A29: Village Lotes | B29: m² | C29: R$/m² | D29: VGV (R$ MM)
B30: 106084.53 | C30: 1500 | D30: 159.126795
A32: Village - A lançar | B32: m² | C32: R$/m² | D32: VGV (R$ MM)
A33: Apartamentos | B33: 141634 | C33: 22000 | D33: 3115.948
A34: Lotes | B34: 36100 | C34: 1500 | D34: 54.15
A36: Total do projeto - Boa Vista Village | B36: =B34+B33+B30+B18 -> 296485.75 | C36: - | D36: =SUM(D34,D33,D18,D30) -> 3597.811755
A38: Boa Vista Estates (pré-lançamento - estâncias) | B38: m² | C38: R$/m² | D38: VGV (R$ MM)
B39: 965516.87 | C39: 1000 | D39: 965.51687
A41: Boa Vista Estates - A lançar | B41: m² | C41: R$/m² | D41: VGV (R$ MM)
A42: Estâncias | B42: 1004599.54 | C42: 1100 | D42: 1105.059494
A43: Lotes | B43: 518770.76 | C43: 2000 | D43: 1037.54152
A44: Casas + lote¹ | B44: 562847.59 | C44: - | D44: 2036.599454
A45: ¹Preço unitário da casa: R$ 12 mihões a unidade; Preço de lote: R$ 2,3 mil/m²;
A46: Total do projeto - Boa Vista Estates | B46: 3051734.76 | C46: - | D46: 5144.717338
A48: FCJ | B48: m² | C48: R$/m² | D48: VGV (R$ MM)
B49: 12450 | C49: 35000 | D49: 435.75
A51: Total projetos lançados (fases lançadas e a lançar)¹ | B51: 3588245.33 | C51: - | D51: 9924.931293
A52: ¹Não inclui projetos não lançados (Catarina Town e Catarina Resort) e terrenos (Complexo Boa Vista IV e Entorno do SCJ)

Sheet POC - Receita a apropriar
A4: POC/Receita a apropriar¹
C5: 2T21 | F5: 1T21 | I5: 4T20 | L5: 3T20 | O5: 2T20
A6: Projeto | C6: POC | D6: Receita a apropriar (R$ milhões) | F6: POC | G6: Receita a apropriar (R$ milhões) | I6: POC | J6: Receita a apropriar (R$ milhões) | L6: POC | M6: Receita a apropriar (R$ milhões) | O6: POC | P6: Receita a apropriar (R$ milhões)
A7: Boa Vista Village² | C7: 0.54 | D7: 134.2346178 | F7: 0.425 | G7: 132.5361153 | I7: 0.3874 | J7: 104.2363262 | L7: 0.3405 | M7: 74.67607015 | O7: 0.2921 | P7: 55.0455961
A8: Fasano Cidade Jardim | C8: 0.51 | D8: 87.81827536 | F8: 0.4831 | G8: 88.61937373 | I8: 0.4531 | J8: 93.762692 | L8: 0.4367 | M8: 77.06368363 | O8: 0.4011 | P8: 66.0718458
A9: Club Fasano Cidade Jardim | C9: 0.24 | D9: 1.064 | F9: 0.2225 | G9: 0 | I9: 0.2153 | J9: 0 | L9: 0.2801 | M9: 0.36837283 | O9: 0.2758 | P9: 0.3707904
A10: Casas Fazenda Boa Vista* | C10: 0.35 | D10: 218.9728889 | F10: 0.2542 | G10: 242.6035845 | I10: 0.1952 | J10: 242.2762176 | L10: 0.173 | M10: 189.8196764 | O10: 0.4008 | P10: 44.583476
A11: Total | C11: - | D11: =SUM(D7:D10) -> 442.089782 | F11: - | G11: =SUM(G7:G10) -> 463.7590735 | I11: - | J11: 440.2752358 | L11: - | M11: =SUM(M7:M10) -> 341.927803 | O11: - | P11: =SUM(P7:P10) -> 166.0717083
A12: *POC médio
A13: ¹Para lotes não há POC
A14: ²Só considera fases lançadas

Sheet VGV a ser lançado por ano
B3: VGV a ser lançado (em R$ MM) | C3: 2021 | D3: 2022 | E3: 2023 | F3: 2024 | G3: 2025 | H3: 2026 | I3: 2027 | J3: 2028 | K3: 2029 | L3: 2030 - 2035
B4: Boa Vista Village¹ | C4: 2487 | D4: - | E4: - | F4: - | G4: 611 | H4: 248 | I4: - | J4: 54 | K4: 369 | L4: -
B5: Catarina Resort² | C5: - | D5: 648 | E5: - | F5: - | G5: - | H5: - | I5: - | J5: - | K5: - | L5: -
B6: Catarina Town³ | C6: 1000 | D6: 1000 | E6: 1000 | F6: 1000 | G6: 1000 | H6: 1000 | I6: 1000 | J6: 1000 | K6: 1000 | L6: 6000
B7: Real Parque Residencial4 | C7: 453 | D7: - | E7: 453 | F7: - | G7: 453 | H7: - | I7: - | J7: - | K7: - | L7: -
B8: Boa Vista Estates5 | C8: 1352.1077 | D8: TBD | E8: TBD | F8: TBD | G8: TBD | H8: TBD | I8: TBD | J8: TBD | K8: TBD | L8: TBD
B9: Total | C9: =SUM(C4:C8) -> 5292.1077 | D9: =SUM(D4:D7) -> 1648 | E9: 1453 | F9: 1000 | G9: 2064 | H9: 1248 | I9: 1000 | J9: 1054 | K9: =SUM(K4:K7) -> 1369 | L9: =SUM(L4:L7) -> 6000
B11: ¹Fases 1B, 2, 3, 4,5 e 6, respectivamente; Considera apenas apartamentos;
B12: ²Não considera unidades hoteleiras;
B13: ³O projeto será desenvolvido em 3 fases com R$ 5bi de VGV cada;
B14: 4Fases 1, 2 e 3;
B15: 5Pré-lançamento em junho/2021; Lançamento das próximas fases a ser definido;
B16: OBS: Os valores acima não representam um guidance e estão sujeitos a mudanças;

Sheet Hístorico de Projetos Inco.
A3: Histórico de lançamentos da incoporação (a partir de 2006)
A4: OBS: i. VGV total do projeto; ii. FBV, Fasano Cidade Jardim e Boa Vista Village são projetos em venda e os VGV são projetados (data base out/20);
A6: Parque Cidade Jardim | B6: Lançamento | C6: VGV | D6: Local | F6: Residência Cidade Jardim | G6: Lançamento | H6: VGV | I6: Local
B7: 2006 | C7: R$ 921 milhões | D7: São Paulo - SP | G7: 2012 | H7: R$ 225 milhões | I7: São Paulo - SP
A9: Fazenda Boa Vista¹ | B9: Lançamento | C9: VGV | D9: Local | F9: Cidade Jardim Corporate Center | G9: Lançamento | H9: VGV | I9: Local
B10: 2007 | C10: R$ 2,9 bilhões | D10: Porto Feliz - SP | G10: 2012 | H10: R$ 821 milhões | I10: São Paulo - SP
A12: Praça Vila Nova | B12: Lançamento | C12: VGV | D12: Local | F12: Mena Barreto 423 | G12: Lançamento | H12: VGV | I12: Local
B13: 2009 | C13: R$ 249 milhões | D13: São Paulo - SP | G13: 2013 | H13: R$ 76 milhões | I13: São Paulo - SP
A15: Benedito Lapin | B15: Lançamento | C15: VGV | D15: Local | F15: Cidade Jardim Townhouses | G15: Lançamento | H15: VGV | I15: Local
B16: 2010 | C16: R$ 81 milhões | D16: São Paulo - SP | G16: 2014 | H16: R$ 36 milhões | I16: São Paulo - SP
A18: Vitra | B18: Lançamento | C18: VGV | D18: Local | F18: Fasano Cidade Jardim | G18: Lançamento | H18: VGV | I18: Local
B19: 2010 | C19: R$ 128 milhões | D19: São Paulo - SP | G19: 2019 | H19: R$ 639 milhões | I19: São Paulo - SP
A21: Horto Bela Vista | B21: Lançamento | C21: VGV | D21: Local | F21: Boa Vista Village² | G21: Lançamento | H21: VGV | I21: Local
B22: 2011 | C22: R$ 1,5 bilhões | D22: Salvador - BA | G22: 2019 | H22: R$ 4,5 bilhões | I22: Porto Feliz - SP
A24: ¹ Projeto faseado sendo a 1ª fase lançada em 2007. O VGV corresponde ao total do projeto; | F24: Boa Vista Village (abertura por fases)³ | G24: Condomínio/Tipo | H24: Lançamento | I24: VGV (R$ milhões) | J24: Local
A25: ² Projeto faseado sendo 1ª fase pré lançada em dez/2019. O VGV corresponde ao total do projeto das vendas de aptos e lotes; | F25: Fase 1A | G25: Surf Lodge | H25: 2019-12-01 | I25: 690 | J25: Porto Feliz- SP
A26: ³ Apenas apartamentos; | F26: Fase 1B | G26: Golf Residences | H26: 2021-03-01 | I26: 1888
F27: Fase 2 | G27: Grand Lodge | H27: 2021-09-01 | I27: 599
F28: Fase 3 | G28: Equestrian Club Resort | H28: 2025-03-01 | I28: 611
F29: Fase 4 | G29: Boutique Hotel | H29: 2026-09-01 | I29: 245
F30: Fase 5 | G30: Apenas Lotes | H30: 2028-03-01 | I30: 54
F31: Fase 6 | G31: Apenas Lotes | H31: 2029-09-01 | I31: 369

Sheet Carteira de Recebiveis (Inco)
A3: Carteira de Recebiveis (Incorporação) | B3: 2T21 | C3: 1T21 | D3: 4T20 | E3: 3T20 | F3: 2T20 | G3: 1T20 | H3: 4T19 | I3: 3T19 | J3: 2T19 | K3: 1T19 | L3: 4T18 | M3: 3T18 | N3: 2T18 | O3: 1T18
A4: Total da Carteira (R$MM) | B4: 1357 | C4: 1141 | D4: 1012.9 | E4: 758.8 | F4: 554.5 | G4: 332.4 | H4: 295 | I4: 277.4 | J4: 193.9 | K4: 191.2 | L4: 180.9 | M4: 193.6 | N4: 156.7 | O4: 179.1
A5: Juros médio (%)* | B5: 0.0263 | C5: 0.0256 | D5: 0.0242 | E5: 0.0265 | F5: 0.0265 | G5: 0.0305 | H5: 0.0318 | I5: 0.0362 | J5: 0.0445 | K5: - | L5: - | M5: - | N5: - | O5: -
A6: Prazo médio (anos) | B6: 1.34 | C6: 1.12 | D6: 1.2 | E6: 1.24 | F6: 1.25 | G6: 1.4 | H6: - | I6: - | J6: - | K6: - | L6: - | M6: - | N6: - | O6: -
A8: Indexadores (%)* | B8: =B3 -> 2T21 | C8: 1T21 | D8: 4T20 | E8: 3T20 | F8: 2T20 | G8: 1T20 | H8: 4T19 | I8: 3T19 | J8: 2T19 | K8: 1T19 | L8: 4T18 | M8: 3T18 | N8: 2T18 | O8: 1T18
A9: IGP-M | B9: 0.0779 | C9: 0.129 | D9: 0.163 | E9: 0.227 | F9: 0.269 | G9: 0.3131 | H9: 0.33 | I9: 0.43 | J9: 0.59 | K9: 0.65 | L9: 0.67 | M9: 0.64 | N9: 0.72 | O9: 0.77
A10: Fixo | B10: 0.1938 | C10: 0.202 | D10: 0.201 | E10: 0.147 | F10: 0.194 | G10: 0.1844 | H10: 0.22 | I10: 0.28 | J10: 0.18 | K10: 0.14 | L10: 0.1 | M10: 0.1 | N10: 0.08 | O10: 0.06
A11: IPCA | B11: 0.4045 | C11: 0.322 | D11: 0.249 | E11: 0.227 | F11: 0.134 | G11: - | H11: - | I11: - | J11: 0.11 | K11: 0.09 | L11: 0.1 | M11: 0.08 | N11: - | O11: -
A12: INCC | B12: 0.2715 | C12: 0.305 | D12: 0.336 | E12: 0.359 | F12: 0.347 | G12: 0.3656 | H12: 0.35 | I12: 0.19 | J12: - | K12: - | L12: 0.06 | M12: 0.06 | N12: 0.04 | O12: 0.03
A13: TR | B13: - | C13: - | D13: - | E13: - | F13: - | G13: - | H13: - | I13: - | J13: - | K13: - | L13: 0.06 | M13: 0.11 | N13: 0.15 | O13: 0.13
A14: CDI | B14: - | C14: - | D14: - | E14: - | F14: - | G14: - | H14: - | I14: - | J14: - | K14: - | L14: 0.01 | M14: 0.01 | N14: 0.01 | O14: 0.01
A15: Outros | B15: 0.0523 | C15: 0.042 | D15: 0.051 | E15: 0.04 | F15: 0.056 | G15: 0.137 | H15: 0.1 | I15: 0.1 | J15: 0.12 | K15: 0.12 | L15: - | M15: - | N15: - | O15: -
A17: *Acrescidos ao indexador

Sheet JHSF Malls Indicadores
A3: Indicadores | B3: 2T21 | C3: 1T21 | D3: 2020 | E3: 4T20 | F3: 3T20 | G3: 2T20 | H3: 1T20 | I3: 2019 | J3: 4T19 | K3: 3T19 | L3: 2T19 | M3: 1T19 | N3: 2018 | O3: 4T18 | P3: 3T18 | Q3: 2T18 | R3: 1T18 | S3: 2017 | T3: 4T17 | U3: 3T17 | V3: 2T17 | W3: 1T17 | X3: 2016 | Y3: 4T16 | Z3: 3T16 | AA3: 2T16 | AB3: 1T16 | AC3: 2015 | AD3: 4T15 | AE3: 3T15 | AF3: 2T15 | AG3: 1T15
A4: ABL Total (m²) | B4: 161538 | C4: 160310 | D4: 155150 | E4: 159959 | F4: 154713 | G4: 154713 | H4: 159221 | I4: 152787 | J4: 152546 | K4: 152447 | L4: 152172 | M4: 157289 | N4: 162291 | O4: 162291 | P4: 153389 | Q4: 148005 | R4: 148007 | S4: 147880.17 | T4: 147880.17 | U4: 147845.65 | V4: 147894.64 | W4: 147106.18 | X4: 148523 | Y4: 148523 | Z4: 150583.99 | AA4: 150517.95 | AB4: 150561.07 | AC4: 150191 | AD4: 150191 | AE4: 181171.71 | AF4: 181171.71 | AG4: 181171.71
A5: ABL Própria (m²) | B5: 66620 | C5: 65719 | D5: 61921 | E5: 62900 | F5: 61595 | G5: 61595 | H5: 61594 | I5: 62115 | J5: 50448 | K5: 60671 | L5: 60533 | M5: 67855 | N5: 73439.66667 | O5: 73439.66667 | P5: 108922 | Q5: 100689 | R5: 103544 | S5: 103418.8821 | T5: 103418.8821 | U5: 103391.2661 | V5: 103424.0894 | W5: 103029.0618 | X5: 105304.4526 | Y5: 105304.4526 | Z5: 117960.2463 | AA5: 117897.2183 | AB5: 117940.3383 | AC5: 117333 | AD5: 117333 | AE5: 148790.6954 | AF5: 148790.6954 | AG5: 148790.6954
A6: Vendas (R$' milhões) | B6: 720.947 | C6: 422.2 | D6: 1977.4 | E6: 874.3 | F6: 493.982 | G6: 109.3 | H6: 499.8 | I6: 2533.169 | J6: 791.75 | K6: 592.646 | L6: 621.764 | M6: 527.009 | N6: 2181 | O6: 685 | P6: 519 | Q6: 516 | R6: 462.083 | S6: 2033.301862 | T6: 625.6133737 | U6: 483.8256705 | V6: 497.861495 | W6: 426.0013229 | X6: 1876.9531 | Y6: 578.9494222 | Z6: 430.36552 | AA6: 460.762424 | AB6: 406.8757333 | AC6: 1760 | AD6: 555.9303736 | AE6: 410.6710056 | AF6: 431.8499024 | AG6: 362.9347783
A7: Taxa De Ocupação (%) | B7: 0.958 | C7: 0.962 | D7: 0.97 | E7: 0.978 | F7: 0.978 | G7: 0.965 | H7: 0.968 | I7: 0.97 | J7: 0.981 | K7: 0.981 | L7: 0.973 | M7: 0.962 | N7: 0.95 | O7: 0.958 | P7: 0.946 | Q7: 0.95 | R7: 0.953 | S7: 0.9515611995 | T7: 0.9515611995 | U7: 0.940523512 | V7: 0.9422314044 | W7: 0.929303754 | X7: 0.9124876093 | Y7: 0.9124876093 | Z7: 0.9148510467 | AA7: 0.9150373542 | AB7: 0.9136784891 | AC7: 0.9338540196 | AD7: 0.9338540196 | AE7: 0.9383966266 | AF7: 0.9237616906 | AG7: 0.9224763319
A8: Custo de Ocupação (%) | B8: 0.102 | C8: 0.123 | D8: 0.096 | E8: 0.082 | F8: 0.092 | G8: 0.187 | H8: 0.106 | I8: 0.094 | J8: 0.086 | K8: 0.096 | L8: 0.094 | M8: 0.103 | N8: 0.098 | O8: 0.09 | P8: 0.102 | Q8: 0.101 | R8: 0.103 | S8: 0.102 | T8: 0.091 | U8: 0.098 | V8: 0.103 | W8: 0.117 | X8: 0.111 | Y8: 0.102 | Z8: 0.115 | AA8: 0.097 | AB8: 0.119 | AC8: 0.112 | AD8: 0.101 | AE8: 0.109 | AF8: 0.101 | AG8: 0.115
A9: SSS (%) | B9: 4.715 | C9: -0.185 | D9: -0.198 | E9: 0.103 | F9: -0.143 | G9: -0.803 | H9: -0.054 | I9: 0.099 | J9: 0.12 | K9: 0.078 | L9: 0.118 | M9: 0.069 | N9: 0.033 | O9: 0.055 | P9: 0.042 | Q9: 0.003 | R9: 0.03 | S9: 0.0381389084 | T9: 0.01652762194 | U9: 0.0717685781 | V9: 0.0481006854 | W9: 0.02139118204 | X9: 0.01115708572 | Y9: 0.02128247774 | Z9: -0.01547698638 | AA9: 0.006769594013 | AB9: 0.03108096989 | AC9: 0.0646 | AD9: 0.005299609353 | AE9: 0.07205207301 | AF9: 0.1124062399 | AG9: 0.09392770688
A10: SAS (%) | B10: 4.776 | C10: -0.187 | D10: -0.199 | E10: 0.095 | F10: -0.142 | G10: -0.804 | H10: -0.048 | I10: 0.105 | J10: 0.13 | K10: 0.085 | L10: 0.123 | M10: 0.073 | N10: 0.039 | O10: 0.054 | P10: 0.042 | Q10: 0.009 | R10: 0.05 | S10: 0.04615984136 | T10: 0.03065033321 | U10: 0.0753038806 | V10: 0.05564240736 | W10: 0.02769447364 | X10: 0.02411476759 | Y10: 0.03765890454 | Z10: -0.005707036097 | AA10: 0.0164995721 | AB10: 0.04584797485 | AC10: 0.0686 | AD10: 0.01511818878 | AE10: 0.07849949799 | AF10: 0.1116184244 | AG10: 0.09110942653
A11: SSR (%) | B11: 3.851 | C11: -0.176 | D11: -0.244 | E11: 0.071 | F11: -0.238 | G11: -0.781 | H11: -0.047 | I11: 0.075 | J11: 0.086 | K11: 0.062 | L11: 0.088 | M11: 0.059 | N11: 0.072 | O11: 0.096 | P11: 0.11 | Q11: 0.048 | R11: 0.033 | S11: 0.04462578563 | T11: 0.02481543921 | U11: 0.02287523019 | V11: 0.03448107982 | W11: 0.02965193278 | X11: 0.07048815017 | Y11: 0.07327223866 | Z11: 0.1085439609 | AA11: 0.04070640149 | AB11: 0.06250089368 | AC11: 0.0574 | AD11: 0.03965173168 | AE11: 0.03999090406 | AF11: 0.06449364665 | AG11: 0.08968042925
A12: SAR (%) | B12: 3.842 | C12: -0.185 | D12: -0.243 | E12: 0.065 | F12: -0.229 | G12: -0.782 | H12: -0.045 | I12: 0.07 | J12: 0.079 | K12: 0.059 | L12: 0.082 | M12: 0.056 | N12: 0.072 | O12: 0.099 | P12: 0.107 | Q12: 0.044 | R12: 0.035 | S12: 0.03819183406 | T12: 0.02216906502 | U12: 0.0270928449 | V12: 0.02607757084 | W12: 0.006369622365 | X12: 0.06420429427 | Y12: 0.05740256296 | Z12: 0.1064889456 | AA12: 0.04257729649 | AB12: 0.05587468444 | AC12: 0.0488 | AD12: 0.02957988054 | AE12: 0.03734684297 | AF12: 0.06027641472 | AG12: 0.07100272521
A14: Taxa de Ocupação | B14: =B3 -> 2T21 | C14: 1T21 | D14: 2020 | E14: 4T20 | F14: 3T20 | G14: 2T20 | H14: 1T20 | I14: 2019 | J14: 4T19 | K14: 3T19 | L14: 2T19 | M14: 1T19 | N14: 2018 | O14: 4T18 | P14: 3T18 | Q14: 2T18 | R14: 1T18
A15: Shopping Cidade Jardim | B15: 0.996 | C15: 0.996 | D15: 0.992 | E15: 0.998 | F15: 0.989 | G15: 0.986 | H15: 0.993 | I15: 0.991 | J15: 0.995 | K15: 0.996 | L15: 0.99 | M15: 0.987 | N15: 0.972 | O15: 0.966 | P15: 0.966 | Q15: 0.979 | R15: 0.98
A16: Shopping Bela Vista | B16: 0.96 | C16: 0.963 | D16: 0.965 | E16: 0.97 | F16: 0.979 | G16: 0.953 | H16: 0.967 | I16: 0.972 | J16: 0.976 | K16: 0.979 | L16: 0.971 | M16: 0.964 | N16: 0.971 | O16: 0.972 | P16: 0.976 | Q16: 0.97 | R16: 0.964
A17: Shopping Ponta Negra | B17: 0.871 | C17: 0.886 | D17: 0.952 | E17: 0.952 | F17: 0.95 | G17: 0.957 | H17: 0.949 | I17: 0.942 | J17: 0.956 | K17: 0.951 | L17: 0.949 | M17: 0.914 | N17: 0.869 | O17: 0.904 | P17: 0.845 | Q17: 0.86 | R17: 0.866
A18: Catarina Fashion Outlet | B18: 1 | C18: 0.999 | D18: 0.978 | E18: 0.998 | F18: 0.996 | G18: 0.966 | H18: 0.96 | I18: 0.99 | J18: 0.999 | K18: 0.999 | L18: 0.982 | M18: 0.983 | N18: 0.987 | O18: 0.986 | P18: 0.987 | Q18: 0.993 | R18: 1
A19: Shops Jardins | B19: 0.991 | C19: 0.944 | D19: 0.901 | E19: 0.967 | F19: - | G19: - | H19: - | I19: - | J19: - | K19: - | L19: - | M19: - | N19: - | O19: - | P19: - | Q19: - | R19: -
A20: Boa Vista Market | B20: 0.98 | C20: 0.981 | D20: 1 | E20: 1 | F20: - | G20: - | H20: - | I20: - | J20: - | K20: - | L20: - | M20: - | N20: - | O20: - | P20: - | Q20: - | R20: -

Sheet JHSF Malls - Composição Receita (hidden)
M1: 0 | N1: 0 | O1: 0 | P1: 0
A2: RECEITA COMBINADA JHSF MALLS | D2: 2T19 | E2: 1T19 | F2: 2018 | G2: 3T18² | H2: 2T18² | I2: 1T18 | J2: 2017 | K2: 2016¹ | L2: 2015¹ | M2: 4T15 | N2: 3T15 | O2: 2T15 | P2: 1T15
A3: Receita Bruta | E3: =SUM(E4:E7) -> 41249.37995 | F3: 201574 | G3: 149231 | H3: 97440 | I3: 47400 | J3: 185911 | K3: 229933 | L3: 229277 | M3: 66686.29261 | N3: 58468.90408 | O3: 61011.79312 | P3: 58190.47144
A4: Receita de Locação | E4: =17948523.78/1000 -> 17948.52378 | F4: 99497 | G4: 73715 | H4: 49505 | I4: 24129 | J4: 92368 | K4: 120996 | L4: 106528 | M4: 38864.74375 | N4: 34150.27139 | O4: 36495.29309 | P4: 33194.19738
A5: Receita de Cessão | E5: =1030726.93/1000 -> 1030.72693 | F5: 6481 | G5: 5046 | H5: 3535 | I5: 1914 | J5: 10654 | K5: 15219 | L5: 15758 | M5: 6419.645247 | N5: 4311.244205 | O5: 4661.453745 | P5: 5895.449559
A6: Receita de Estacionamento | E6: =10550713.01/1000 -> 10550.71301 | F6: 36050 | G6: 25888 | H6: 16797 | I6: 8379 | J6: 38231 | K6: 36969 | L6: 35058 | M6: 9950.999268 | N6: 8323.54403 | O6: 8075.91905 | P6: 7960.26185
A7: Serviços Prestados | E7: =11719416.23/1000 -> 11719.41623 | F7: 59544 | G7: 44580 | H7: 27601 | I7: 12977 | J7: 44658 | K7: 56749 | L7: 71933 | M7: 5626.593574 | N7: 5407.7377 | O7: 5661.12027 | P7: 4765.9549
A8: ¹ inclui receitas com serviços prestados ao SMT e considera 100% do SCJ
A9: ² trimestres acumulados
A10: Receitas de Serviços fornecidos para o SMT | G10: 0 | H10: 0 | I10: 0 | J10: 0 | K10: 15395 | L10: 25363 | M10: 6419.645247 | N10: 4311.244205 | O10: 4661.453745 | P10: 5895.449559
A11: Receitas de 33% do SCJ | G11: 0 | H11: 0 | I11: 0 | J11: 0 | K11: 24116 | L11: 28849 | M11: 9950.999268 | N11: 8323.54403 | O11: 8075.91905 | P11: 7960.26185
A12: Receita Bruta Ajustada | G12: 0 | H12: 0 | I12: 0 | J12: 0 | K12: 190422 | L12: 175065 | M12: 5626.593574 | N12: 5407.7377 | O12: 5661.12027 | P12: 4765.9549
A14: Shopping Cidade Jardim | G14: 1T18 | J14: 2017 | K14: 2016 | L14: 2015 | M14: 4T15 | N14: 3T15 | O14: 2T15 | P14: 1T15
A15: Receita Bruta | L15: 90160.87113 | M15: 23202.94302 | N15: 21383.93025 | O15: 23533.32723 | P15: 22040.67062
A16: Receita de Locação | L16: 56515.88326 | M16: 13934.79477 | N16: 13454.93221 | O16: 15234.9583 | P16: 13891.19799
A17: Aluguel Mínimo | L17: 29278.21472 | M17: 5608.663305 | N17: 7557.82681 | O17: 8663.02747 | P17: 7448.69713
A18: Merchandise e Locações Temporárias | L18: 8819.31059 | M18: 2802.12223 | N18: 1750.08168 | O18: 1515.31906 | P18: 2751.78762
A19: Aluguel Complementar | L19: 5941.955588 | M19: 1654.861828 | N19: 1395.69857 | O19: 1690.04807 | P19: 1201.34712
A20: Aluguel Percentual | L20: 10782.59191 | M20: 3239.095607 | N20: 2457.799812 | O20: 2974.25698 | P20: 2111.43951
A21: 13.º Aluguel | L21: 1693.810455 | M21: 630.051795 | N21: 293.52534 | O21: 392.306715 | P21: 377.926605
A22: Receita de Cessão | L22: 4712.628568 | M22: 1669.284891 | N22: 925.1662917 | O22: 957.7308949 | P22: 1160.44649
A23: Receita de Estacionamento | L23: 20056.07564 | M23: 5305.3098 | N23: 4790.0014 | O23: 5006.43884 | P23: 4954.3256
A24: Receita de Administração | L24: 7267.61349 | M24: 1875.39406 | N24: 1834.58468 | O24: 1937.19535 | P24: 1620.4394
A25: Receita de Servços de Energia e Telecomunicação | L25: 1608.670175 | M25: 418.1595066 | N25: 379.24567 | O25: 397.00385 | P25: 414.2611483
A28: Shopping Bela Vista | G28: 1T18 | J28: 2017 | K28: 2016 | L28: 2015 | M28: 4T15 | N28: 3T15 | O28: 2T15 | P28: 1T15
A29: Receita Bruta | L29: 28066.20791 | M29: 7729.962008 | N29: 6755.488849 | O29: 7626.261255 | P29: 5954.495799
A30: Receita de Locação | L30: 14234.79158 | M30: 3961.051231 | N30: 3392.314949 | O30: 4015.921585 | P30: 2865.503809
A31: Aluguel Mínimo | L31: 13490.807 | M31: 3670.809956 | N31: 3241.067182 | O31: 3864.673818 | P31: 2714.256042
A32: Merchandise e Locações Temporárias | L32: 0 | M32: 0 | N32: 0 | O32: 0 | P32: 0
A33: Aluguel Complementar | L33: 0 | M33: 0 | N33: 0 | O33: 0 | P33: 0
A34: Aluguel Percentual | L34: 0 | M34: 0 | N34: 0 | O34: 0 | P34: 0
A35: 13.º Aluguel | L35: 743.9845779 | M35: 290.2412754 | N35: 151.2477675 | O35: 151.2477675 | P35: 151.2477675
A36: Receita de Cessão | L36: 3876.153965 | M36: 1028.625995 | N36: 871.02434 | O36: 958.20777 | P36: 1018.29586
A37: Receita de Estacionamento | L37: 1281.700658 | M37: 934.6205785 | N37: 347.08008 | O37: 0 | P37: 0
A38: Receita de Administração | L38: 1146.209124 | M38: 228.649004 | N38: 233.23643 | O38: 684.32369 | P38: 0
A39: Receita de Servços de Energia e Telecomunicação | L39: 7527.35259 | M39: 1577.0152 | N39: 1911.83305 | O39: 1967.80821 | P39: 2070.69613
A41: Shopping Metrô Tucuruvi | G41: 1T18 | J41: 2017 | K41: 2016 | L41: 2015 | M41: 4T15 | N41: 3T15 | O41: 2T15 | P41: 1T15
A42: Receita Bruta | L42: 69621.12476 | M42: 18131.54799 | N42: 17051.886 | O42: 17002.68104 | P42: 17435.00973
A43: Receita de Locação | L43: 38583.11683 | M43: 10398.70027 | N43: 9324.604543 | O43: 9596.300143 | P43: 9263.511874
A44: Aluguel Mínimo | L44: 27889.4799 | M44: 7325.98885 | N44: 6846.83437 | O44: 6860.12367 | P44: 6856.533006
A45: Merchandise e Locações Temporárias | L45: 5646.90764 | M45: 1678.37417 | N45: 1394.85065 | O45: 1336.68954 | P45: 1236.99328
A46: Aluguel Complementar | L46: 3376.93734 | M46: 1183.23197 | N46: 557.62753 | O46: 902.23457 | P46: 733.84327
A47: Aluguel Percentual | L47: 89.97672 | M47: 39.22823 | N47: 50.74849 | O47: 0 | P47: 0
A48: 13.º Aluguel | L48: 1579.815235 | M48: 171.8770525 | N48: 474.5435025 | O48: 497.2523625 | P48: 436.1423175
A49: Receita de Cessão | L49: 5675.283509 | M49: 1227.41321 | N49: 1188.887254 | O49: 1301.083461 | P49: 1957.899584
A50: Receita de Estacionamento | L50: 7888.78788 | M50: 2245.27502 | N50: 1956.66536 | O50: 1836.6645 | P50: 1850.183
A51: Receita de Administração | L51: 7077.46644 | M51: 1844.55306 | N51: 1795.22319 | O51: 1740.61596 | P51: 1697.07423
A52: Receita de Servços de Energia e Telecomunicação | L52: 10396.4701 | M52: 2415.606428 | N52: 2786.50565 | O52: 2528.01698 | P52: 2666.341046
A55: Shopping Ponta Negra | G55: 1T18 | J55: 2017 | K55: 2016 | L55: 2015 | M55: 4T15 | N55: 3T15 | O55: 2T15 | P55: 1T15
A56: Receita Bruta | L56: 34867.16473 | M56: 10147.56933 | N56: 8477.558699 | O56: 7711.404258 | P56: 8530.632442
A57: Receita de Locação | L57: 17488.49392 | M57: 4862.22614 | N57: 4495.765672 | O57: 3898.331532 | P57: 4232.170572
A58: Aluguel Mínimo | L58: 15236.00225 | M58: 4306.500716 | N58: 3942.878808 | O58: 3386.01288 | P58: 3600.609848
A59: Merchandise e Locações Temporárias | L59: 661.249336 | M59: 149.088624 | N59: 128.044904 | O59: 194.284344 | P59: 189.831464
A60: Aluguel Complementar | L60: 565.969544 | M60: 188.706872 | N60: 152.028904 | O60: 184.571712 | P60: 40.662056
A61: Aluguel Percentual | L61: 281.8769008 | M61: 59.4072048 | N61: 39.686512 | O61: 44.0036 | P61: 138.779584
A62: 13.º Aluguel | L62: 743.3958832 | M62: 158.5227232 | N62: 233.126544 | O62: 89.458996 | P62: 262.28762
A63: Receita de Cessão | L63: 5617.745903 | M63: 2067.36124 | N63: 1027.817557 | O63: 1063.378826 | P63: 1459.18828
A64: Receita de Estacionamento | L64: 5084.16002 | M64: 1465.79387 | N64: 1229.79719 | O64: 1232.81571 | P64: 1155.75325
A65: Receita de Administração | L65: 4585.50018 | M65: 1228.62526 | N65: 1171.89254 | O65: 983.41886 | P65: 1201.56352
A66: Receita de Servços de Energia e Telecomunicação | L66: 2091.264714 | M66: 523.5628245 | N66: 552.28574 | O66: 533.45933 | P66: 481.9568199
A69: Catarina Fashion Outlet | G69: 1T18 | J69: 2017 | K69: 2016 | L69: 2015 | M69: 4T15 | N69: 3T15 | O69: 2T15 | P69: 1T15
A70: Receita Bruta | L70: 21642.0927 | M70: 7474.270256 | N70: 4800.040276 | O70: 5138.119331 | P70: 4229.662837
A71: Receita de Locação | L71: 15882.22003 | M71: 5707.971341 | N71: 3482.654014 | O71: 3749.781537 | P71: 2941.813138
A72: Aluguel Mínimo | L72: 7529.707777 | M72: 2439.975587 | N72: 1714.43589 | O72: 1824.40207 | P72: 1550.89423
A73: Merchandise e Locações Temporárias | L73: 866.10533 | M73: 290.97264 | N73: 214.9738 | O73: 266.15889 | P73: 94
A74: Aluguel Complementar | L74: 3332.788658 | M74: 1493.203459 | N74: 612.3575295 | O74: 777.06626 | P74: 450.16141
A75: Aluguel Percentual | L75: 3528.186454 | M75: 1179.415347 | N75: 833.8776271 | O75: 776.3961 | P75: 738.49738
A76: 13.º Aluguel | L76: 625.4318105 | M76: 304.404308 | N76: 107.0091675 | O76: 105.7582175 | P76: 108.2601175
A77: Receita de Cessão | L77: 1405.980811 | M77: 426.9599104 | N77: 298.3487624 | O77: 381.0527935 | P77: 299.619345
A78: Receita de Estacionamento | L78: 0 | M78: 0 | N78: 0 | O78: 0 | P78: 0
A79: Receita de Administração | L79: 1384.61721 | M79: 449.37219 | N79: 372.80086 | O79: 315.56641 | P79: 246.87775
A80: Receita de Servços de Energia e Telecomunicação | L80: 2969.274649 | M80: 889.9668145 | N80: 646.23664 | O80: 691.71859 | P80: 741.3526047

Sheet Projetos Malls
A3: Portfólio atual | B3: Localização | C3: % JHSF | D3: ABL Total (m²) | E3: ABL JHSF (m²) | F3: Data de abertura
A4: Shopping Cidade Jardim | B4: São Paulo - SP | C4: 0.5001 | D4: 39012 | E4: =D4*C4 -> 19509.9012 | F4: 2008
A5: Shopping Bela Vista | B5: Salvador - BA | C5: 0.2601 | D5: 51143 | E5: =D5*C5 -> 13302.2943 | F5: 2012
A6: Shopping Ponta Negra | B6: Manaus - AM | C6: 0.4001 | D6: 35029 | E6: 14015.1029 | F6: 2013
A7: Catarina Fashion Outlet | B7: São Roque - SP | C7: 0.5001 | D7: 29529 | E7: =D7*C7 -> 14767.4529 | F7: 2014
A8: Boa Vista Market | B8: Porto Feliz - SP | C8: 1 | D8: 948 | E8: 948 | F8: 2020
A9: Shops Jardins | B9: São Paulo - SP | C9: 0.7 | D9: 6000 | E9: 4200 | F9: 2020
A11: Portfólio em execução | B11: Localização | C11: % JHSF | D11: ABL Total (m²) | E11: ABL JHSF (m²) | F11: Data esperada de abertura²
A12: Faria Lima Shops¹ | B12: São Paulo - SP | C12: 0.7462 | D12: 11096 | E12: =D12*C12 -> 8279.8352 | F12: 1S23
A13: Real Parque Mall¹ | B13: São Paulo - SP | C13: 1 | D13: 30000 | E13: =D13*C13 -> 30000 | F13: 1S23
A14: Boa Vista Village Mall¹ | B14: Porto Feliz - SP | C14: 1 | D14: 15000 | E14: 15000 | F14: 1S23
A15: Catarina Fashion Outlet Expansão - Fase 1 | B15: São Roque - SP | C15: 0.68 | D15: 25000 | E15: =D15*C15 -> 17000 | F15: 2S22
A16: Catarina Fashion Outlet Expansão - Fase 2 | B16: São Roque - SP | C16: 0.68 | D16: 15000 | E16: =D16*C16 -> 10200 | F16: 1S24
A17: Shopping Cidade Jardim Expansão | B17: São Paulo - SP | C17: 0.5001 | D17: 8625 | E17: =D17*C17 -> 4313.3625 | F17: 2S21
A18: Hotel Fasano Cidade Jardim¹ | B18: São Paulo - SP | C18: 0.5001 | D18: 3000 | E18: 1500.3 | F18: 2S22
A20: ¹Projetos Greenfields e com participação JHSF prevista;
A21: ²As datas estimadas de abertura estão sujeitas a mudanças.

Sheet Fasano Operacionais
A3: Fasano Hoteis | B3: 2T21 | C3: 1T21 | D3: 2020 | E3: 4T20 | F3: 3T20 | G3: 2T20 | H3: 1T20 | I3: 2019 | J3: 4T19 | K3: 3T19 | L3: 2T19 | M3: 1T19 | N3: 2018 | O3: 4T18 | P3: 3T18 | Q3: 2T18 | R3: 1T18
A4: Diária Media (R$) | B4: 2327.669165 | C4: 2406 | D4: 2095 | E4: 2031 | F4: 1968.356438 | G4: 1910 | H4: 2223 | I4: 2056 | J4: 2129 | K4: 1953 | L4: 1903 | M4: 2082 | N4: 1889 | O4: 1986 | P4: 1785 | Q4: 1835 | R4: 2040
A5: RevPar (R$) | B5: 865.4579233 | C5: 963 | D5: 891 | E5: 1089 | F5: 883.8919831 | G5: 356 | H5: 918 | I5: 1299 | J5: 1473 | K5: 1177 | L5: 1047 | M5: 979 | N5: 1128 | O5: 1299 | P5: 1008 | Q5: 943 | R5: 1306
A6: Taxa de Ocupação (%) | B6: 0.3718131151 | C6: 0.4 | D6: 0.425 | E6: 0.536 | F6: 0.577 | G6: 0.186 | H6: 0.527 | I6: 0.632 | J6: 0.692 | K6: 0.603 | L6: 0.535 | M6: 0.611 | N6: 0.597 | O6: 0.654 | P6: 0.565 | Q6: 0.51 | R6: 0.64
A8: Fasano Restaurantes | B8: =B3 -> 2T21 | C8: 1T21 | D8: 2020 | E8: 4T20 | F8: 3T20 | G8: 2T20 | H8: 1T20 | I8: 2019 | J8: 4T19 | K8: 3T19 | L8: 2T19 | M8: 1T19 | N8: 2018 | O8: 4T18 | P8: 3T18 | Q8: 2T18 | R8: 1T18
A9: Couvert Médio (R$) | B9: 200.0187946 | C9: 166 | D9: 168 | E9: 182 | F9: 156 | G9: 161 | H9: 171 | I9: 207 | J9: 221 | K9: 212 | L9: 206 | M9: 171 | N9: 203 | O9: 203 | P9: 206 | Q9: 205 | R9: 201
A10: Nº de Couverts (Unidades) | B10: 193437 | C10: 186734 | D10: 662696 | E10: 260872 | F10: 133203 | G10: 25156 | H10: 243465 | I10: 1042360 | J10: 294286 | K10: 166816 | L10: 209115 | M10: 257589 | N10: 807657 | O10: 246864 | P10: 161259 | Q10: 180305 | R10: 190673
A12: Clique aqui, para acessar o site do fasano

Sheet Projetos Fasano
A3: Fasano Hoteis | B3: Localidade | C3: Inauguração | D3: UHS | F3: Proximas aberturas* | G3: Localidade | H3: Inauguração | I3: Aptos. Hotel | J3: Aptos. Residencia
A4: Fasano São Paulo | B4: São Paulo/SP | C4: 2003 | D4: 60 | F4: Fasano Trancoso | G4: Trancoso/BA | H4: 2S21 | I4: 40 | J4: 23
A5: Fasano Rio de Janeiro | B5: Rio de Janeiro/RJ | C5: 2007 | D5: 89 | F5: Fasano Itaim | G5: São Paulo/SP | H5: 2S22 | I5: 107 | J5: 70
A6: Fasano Boa Vista | B6: Porto Feliz/SP | C6: 2011 | D6: 46 | F6: Fasano Cidade Jardim | G6: São Paulo/SP | H6: 2S22 | I6: 47 | J6: 85
A7: Fasano Punta del Leste | B7: Punta del Leste/Uruguai | C7: 2010 | D7: 30 | F7: *Projetos futuros podem ter informações modificadas
A8: Fasano Angra dos Reis | B8: Angra dos Reis/RJ | C8: 2017 | D8: 60
A9: Fasano Belo Horizonte | B9: Belo Horizonte/MG | C9: 2018 | D9: 77
A10: Fasano Salvador | B10: Salvador/BA | C10: 2018 | D10: 70
A11: Fasano Fifth Avenue | B11: Nova York/EUA | C11: 2021 | D11: 12
A13: Fasano Restaurantes | B13: Localidade | C13: Inauguração | D13: Qtde. Assentos
A14: Restaurante Fasano | B14: São Paulo/SP | C14: 1983 | D14: 120
A15: Nonno Ruggero | B15: São Paulo/SP | C15: 2003 | D15: 46
A16: Baretto (bar) | B16: São Paulo/SP | C16: 1998 | D16: 65
A17: Trattoria | B17: São Paulo/SP | C17: 2013 | D17: 120
A18: Gero Panini Itaim | B18: São Paulo/SP | C18: 2019 | D18: 120
A19: Gero Panini Cidade Jardim | B19: São Paulo/SP | C19: 2020 | D19: 114
A20: Gero Panini Catarina Fashion Outlet | B20: São Paulo/SP | C20: 2020 | D20: 104
A21: Bistrot Parigi | B21: São Paulo/SP | C21: 2014 | D21: 120
A22: Parigi | B22: São Paulo/SP | C22: 1998 | D22: 140
A23: Gero | B23: São Paulo/SP | C23: 1993 | D23: 110
A24: Gero Panini CJ Shops | B24: São Paulo/SP | C24: 2020 | D24: 130
A25: Gero Panini Ipanema | B25: Rio de Janeiro/RJ | C25: 2020 | D25: 110
A26: Baretto-Londra (bar) | B26: Rio de Janeiro/RJ | C26: 2007 | D26: 80
A27: Gero Rio | B27: Rio de Janeiro/RJ | C27: 2020 | D27: 138
A28: Quiosque Marea | B28: Rio de Janeiro/RJ | C28: 2018 | D28: 120
A29: Gero Trattoria (Leblon) | B29: Rio de Janeiro/RJ | C29: 2015 | D29: 90
A30: Fasano Angra do Reis | B30: Angra dos Reis/RJ | C30: 2017 | D30: 76
A31: Restaurante Praia | B31: Angra dos Reis/RJ | C31: 2017 | D31: 115
A32: Panetteria Fasano | B32: Angra dos Reis/RJ | C32: 2017 | D32: 44
A33: Restaurante Fasano Boa Vista | B33: Porto Feliz/SP | C33: 2011 | D33: 85
A34: Gero | B34: Belo Horizonte/MG | C34: 2018 | D34: 90
A35: Baretto (bar) | B35: Belo Horizonte/MG | C35: 2018 | D35: 60
A36: Fasano Salvador | B36: Salvador/BA | C36: 2018 | D36: 84
A37: Punta del Este | B37: Punta del Este, Maldonado/Uruguai | C37: 2010 | D37: 110
A38: Las Piedras | B38: Punta del Este, Maldonado/Uruguai | C38: 2010 | D38: 52
A39: Restaurante Locanda | B39: Punta del Este, Maldonado/Uruguai | C39: 2010 | D39: 42

Sheet Indicadores Aeroporto
A3: Aeroporto | B3: 2T21 x 2T20 | C3: 1T21 x 1T20 | D3: 4T20 x 3T20 | E3: 3T20 x 2T20 | F3: 2T20 x 1T20 | G3: 1T20 x 4T19³
A4: Movimento (%)¹ | B4: 2.057377049 | C4: 2.589285714 | D4: 19.84444444 | E4: 0.9046321526 | F4: 0.3107142857 | G4: 5.222222222
A5: Pouso (%) | B5: 2.162011173 | C5: 2.448979592 | D5: 20.68181818 | E5: 0.9273743017 | F5: 0.2176870748 | G5: 5.681818182
A6: Atendimento (%)² | B6: - | C6: 1.065217391 | D6: 17.25 | E6: 0.2678571429 | F6: 0.2173913043 | G6: 10.5
A7: Litros Abastecidos (%) | B7: 2.100863591 | C7: 3.986966337 | D7: 60.76523929 | E7: 0.8604337598 | F7: -0.7826203545 | G7: 99.97947103
A8: ¹Pousos e decolagens (apenas os pousos são tarifados);
A9: ²Atendimento de pista, limpeza simples, fornecimento de GPU (energia eletrica em solo), atendimento na saída, utilização das instalações do aeroporto (quartos, sala de reuniões, etc);
A10: ³O aeroporto foi inagurado em dezembro de 2019, o que justifica o a grande variação na analise 1T20 vs 4T19;
A12: Capacidade atual | B12: Hangares | C12: Metragem de hangares | D12: Pátios | E12: Pista
B13: 5 | C13: 16.300 m² | D13: 38.000m² | E13: 2.470m
A15: Capacidade pós expansão | B15: Hangares | C15: Metragem de hangares | D15: Pátios
B16: 11 | C16: 36.300 m² | D16: 58.000m²
